Workbook

Sheet Calculos (hidden)
A1: Factores utilizados en Meses de No Pago para cálculo del valor cuota
A3: N° de Cuota | B3: Equivalente | C3: Fecha | D3: Mes | E3: Marca Cuota No Pago | F3: Factor (10) | G3: Acumulado
A4: 1 | B4: =IF(E4<>"C",IF(ISERROR(1+B3)=TRUE,1,1+B3),IF(ISNUMBER(B3),B3,1)) -> 1 | C4: =+#REF! ->  | D4: =MONTH(C4) ->  | E4: =IF(ISERROR(MATCH(D4,#REF!,0))=FALSE,"C",IF(ISERROR(MATCH(D4,#REF!,0))=FALSE,"D","")) ->  | F4: =IF(E4="C",0,IF(E4 ="D",ROUND(1/((1+#REF!)^A4),9) * 2,ROUND(1/((1+#REF!)^A4),9))) ->  | G4: =ROUND(F4,9) -> 
A5: =A4+1 -> 2 | B5: =IF(E5<>"C",IF(ISERROR(1+B4)=TRUE,1,1+B4),IF(ISNUMBER(B4),B4,1)) -> 2 | C5: =DATE(YEAR(C4) + 1/12,MONTH(C4)+1,DAY(C4)) ->  | E5: =IF(ISERROR(MATCH(D5,#REF!,0))=FALSE,"C",IF(ISERROR(MATCH(D5,#REF!,0))=FALSE,"D","")) ->  | F5: =IF(E5="C",0,IF(E5 ="D",ROUND(1/((1+#REF!)^A5),9) * 2,ROUND(1/((1+#REF!)^A5),9))) ->  | G5: =G4+ROUND(F5,9) -> 
A6: 3 | B6: 3 | E6: =IF(ISERROR(MATCH(D6,#REF!,0))=FALSE,"C",IF(ISERROR(MATCH(D6,#REF!,0))=FALSE,"D","")) ->  | F6: =IF(E6="C",0,IF(E6 ="D",ROUND(1/((1+#REF!)^A6),9) * 2,ROUND(1/((1+#REF!)^A6),9))) ->  | G6: =G5+ROUND(F6,9) -> 
A7: 4 | B7: 4 | E7: =IF(ISERROR(MATCH(D7,#REF!,0))=FALSE,"C",IF(ISERROR(MATCH(D7,#REF!,0))=FALSE,"D","")) ->  | F7: =IF(E7="C",0,IF(E7 ="D",ROUND(1/((1+#REF!)^A7),9) * 2,ROUND(1/((1+#REF!)^A7),9))) -> 
A8: 5 | B8: 5 | E8: =IF(ISERROR(MATCH(D8,#REF!,0))=FALSE,"C",IF(ISERROR(MATCH(D8,#REF!,0))=FALSE,"D","")) ->  | F8: =IF(E8="C",0,IF(E8 ="D",ROUND(1/((1+#REF!)^A8),9) * 2,ROUND(1/((1+#REF!)^A8),9))) -> 
A9: 6 | B9: 6 | E9: =IF(ISERROR(MATCH(D9,#REF!,0))=FALSE,"C",IF(ISERROR(MATCH(D9,#REF!,0))=FALSE,"D","")) ->  | F9: =IF(E9="C",0,IF(E9 ="D",ROUND(1/((1+#REF!)^A9),9) * 2,ROUND(1/((1+#REF!)^A9),9))) -> 
A10: 7 | B10: 7 | E10: =IF(ISERROR(MATCH(D10,#REF!,0))=FALSE,"C",IF(ISERROR(MATCH(D10,#REF!,0))=FALSE,"D","")) ->  | F10: =IF(E10="C",0,IF(E10 ="D",ROUND(1/((1+#REF!)^A10),9) * 2,ROUND(1/((1+#REF!)^A10),9))) -> 
A11: 8 | B11: 8 | E11: =IF(ISERROR(MATCH(D11,#REF!,0))=FALSE,"C",IF(ISERROR(MATCH(D11,#REF!,0))=FALSE,"D","")) ->  | F11: =IF(E11="C",0,IF(E11 ="D",ROUND(1/((1+#REF!)^A11),9) * 2,ROUND(1/((1+#REF!)^A11),9))) -> 
A12: 9 | B12: 9 | E12: =IF(ISERROR(MATCH(D12,#REF!,0))=FALSE,"C",IF(ISERROR(MATCH(D12,#REF!,0))=FALSE,"D","")) ->  | F12: =IF(E12="C",0,IF(E12 ="D",ROUND(1/((1+#REF!)^A12),9) * 2,ROUND(1/((1+#REF!)^A12),9))) -> 
A13: 10 | B13: 10 | E13: =IF(ISERROR(MATCH(D13,#REF!,0))=FALSE,"C",IF(ISERROR(MATCH(D13,#REF!,0))=FALSE,"D","")) ->  | F13: =IF(E13="C",0,IF(E13 ="D",ROUND(1/((1+#REF!)^A13),9) * 2,ROUND(1/((1+#REF!)^A13),9))) -> 
A14: 11 | B14: 11 | E14: =IF(ISERROR(MATCH(D14,#REF!,0))=FALSE,"C",IF(ISERROR(MATCH(D14,#REF!,0))=FALSE,"D","")) ->  | F14: =IF(E14="C",0,IF(E14 ="D",ROUND(1/((1+#REF!)^A14),9) * 2,ROUND(1/((1+#REF!)^A14),9))) -> 
A15: 12 | B15: 12 | E15: =IF(ISERROR(MATCH(D15,#REF!,0))=FALSE,"C",IF(ISERROR(MATCH(D15,#REF!,0))=FALSE,"D","")) ->  | F15: =IF(E15="C",0,IF(E15 ="D",ROUND(1/((1+#REF!)^A15),9) * 2,ROUND(1/((1+#REF!)^A15),9))) -> 
A16: 13 | B16: 13 | E16: =IF(ISERROR(MATCH(D16,#REF!,0))=FALSE,"C",IF(ISERROR(MATCH(D16,#REF!,0))=FALSE,"D","")) ->  | F16: =IF(E16="C",0,IF(E16 ="D",ROUND(1/((1+#REF!)^A16),9) * 2,ROUND(1/((1+#REF!)^A16),9))) -> 
A17: 14 | B17: 14 | E17: =IF(ISERROR(MATCH(D17,#REF!,0))=FALSE,"C",IF(ISERROR(MATCH(D17,#REF!,0))=FALSE,"D","")) ->  | F17: =IF(E17="C",0,IF(E17 ="D",ROUND(1/((1+#REF!)^A17),9) * 2,ROUND(1/((1+#REF!)^A17),9))) -> 
A18: 15 | B18: 15 | E18: =IF(ISERROR(MATCH(D18,#REF!,0))=FALSE,"C",IF(ISERROR(MATCH(D18,#REF!,0))=FALSE,"D","")) ->  | F18: =IF(E18="C",0,IF(E18 ="D",ROUND(1/((1+#REF!)^A18),9) * 2,ROUND(1/((1+#REF!)^A18),9))) -> 
A19: 16 | B19: 16 | E19: =IF(ISERROR(MATCH(D19,#REF!,0))=FALSE,"C",IF(ISERROR(MATCH(D19,#REF!,0))=FALSE,"D","")) ->  | F19: =IF(E19="C",0,IF(E19 ="D",ROUND(1/((1+#REF!)^A19),9) * 2,ROUND(1/((1+#REF!)^A19),9))) -> 
A20: 17 | B20: 17 | E20: =IF(ISERROR(MATCH(D20,#REF!,0))=FALSE,"C",IF(ISERROR(MATCH(D20,#REF!,0))=FALSE,"D","")) ->  | F20: =IF(E20="C",0,IF(E20 ="D",ROUND(1/((1+#REF!)^A20),9) * 2,ROUND(1/((1+#REF!)^A20),9))) -> 
A21: 18 | B21: 18 | E21: =IF(ISERROR(MATCH(D21,#REF!,0))=FALSE,"C",IF(ISERROR(MATCH(D21,#REF!,0))=FALSE,"D","")) ->  | F21: =IF(E21="C",0,IF(E21 ="D",ROUND(1/((1+#REF!)^A21),9) * 2,ROUND(1/((1+#REF!)^A21),9))) -> 
A22: 19 | B22: 19 | E22: =IF(ISERROR(MATCH(D22,#REF!,0))=FALSE,"C",IF(ISERROR(MATCH(D22,#REF!,0))=FALSE,"D","")) ->  | F22: =IF(E22="C",0,IF(E22 ="D",ROUND(1/((1+#REF!)^A22),9) * 2,ROUND(1/((1+#REF!)^A22),9))) -> 
A23: 20 | B23: 20 | E23: =IF(ISERROR(MATCH(D23,#REF!,0))=FALSE,"C",IF(ISERROR(MATCH(D23,#REF!,0))=FALSE,"D","")) ->  | F23: =IF(E23="C",0,IF(E23 ="D",ROUND(1/((1+#REF!)^A23),9) * 2,ROUND(1/((1+#REF!)^A23),9))) -> 
A24: 21 | B24: 21 | E24: =IF(ISERROR(MATCH(D24,#REF!,0))=FALSE,"C",IF(ISERROR(MATCH(D24,#REF!,0))=FALSE,"D","")) ->  | F24: =IF(E24="C",0,IF(E24 ="D",ROUND(1/((1+#REF!)^A24),9) * 2,ROUND(1/((1+#REF!)^A24),9))) -> 
A25: 22 | B25: 22 | E25: =IF(ISERROR(MATCH(D25,#REF!,0))=FALSE,"C",IF(ISERROR(MATCH(D25,#REF!,0))=FALSE,"D","")) ->  | F25: =IF(E25="C",0,IF(E25 ="D",ROUND(1/((1+#REF!)^A25),9) * 2,ROUND(1/((1+#REF!)^A25),9))) -> 
A26: 23 | B26: 23 | E26: =IF(ISERROR(MATCH(D26,#REF!,0))=FALSE,"C",IF(ISERROR(MATCH(D26,#REF!,0))=FALSE,"D","")) ->  | F26: =IF(E26="C",0,IF(E26 ="D",ROUND(1/((1+#REF!)^A26),9) * 2,ROUND(1/((1+#REF!)^A26),9))) -> 
A27: 24 | B27: 24 | E27: =IF(ISERROR(MATCH(D27,#REF!,0))=FALSE,"C",IF(ISERROR(MATCH(D27,#REF!,0))=FALSE,"D","")) ->  | F27: =IF(E27="C",0,IF(E27 ="D",ROUND(1/((1+#REF!)^A27),9) * 2,ROUND(1/((1+#REF!)^A27),9))) -> 
A28: 25 | B28: 25 | E28: =IF(ISERROR(MATCH(D28,#REF!,0))=FALSE,"C",IF(ISERROR(MATCH(D28,#REF!,0))=FALSE,"D","")) ->  | F28: =IF(E28="C",0,IF(E28 ="D",ROUND(1/((1+#REF!)^A28),9) * 2,ROUND(1/((1+#REF!)^A28),9))) -> 
A29: 26 | B29: 26 | E29: =IF(ISERROR(MATCH(D29,#REF!,0))=FALSE,"C",IF(ISERROR(MATCH(D29,#REF!,0))=FALSE,"D","")) ->  | F29: =IF(E29="C",0,IF(E29 ="D",ROUND(1/((1+#REF!)^A29),9) * 2,ROUND(1/((1+#REF!)^A29),9))) -> 
A30: 27 | B30: 27 | E30: =IF(ISERROR(MATCH(D30,#REF!,0))=FALSE,"C",IF(ISERROR(MATCH(D30,#REF!,0))=FALSE,"D","")) ->  | F30: =IF(E30="C",0,IF(E30 ="D",ROUND(1/((1+#REF!)^A30),9) * 2,ROUND(1/((1+#REF!)^A30),9))) -> 
A31: 28 | B31: 28 | E31: =IF(ISERROR(MATCH(D31,#REF!,0))=FALSE,"C",IF(ISERROR(MATCH(D31,#REF!,0))=FALSE,"D","")) ->  | F31: =IF(E31="C",0,IF(E31 ="D",ROUND(1/((1+#REF!)^A31),9) * 2,ROUND(1/((1+#REF!)^A31),9))) -> 
A32: 29 | B32: 29 | E32: =IF(ISERROR(MATCH(D32,#REF!,0))=FALSE,"C",IF(ISERROR(MATCH(D32,#REF!,0))=FALSE,"D","")) ->  | F32: =IF(E32="C",0,IF(E32 ="D",ROUND(1/((1+#REF!)^A32),9) * 2,ROUND(1/((1+#REF!)^A32),9))) -> 
A33: 30 | B33: 30 | E33: =IF(ISERROR(MATCH(D33,#REF!,0))=FALSE,"C",IF(ISERROR(MATCH(D33,#REF!,0))=FALSE,"D","")) ->  | F33: =IF(E33="C",0,IF(E33 ="D",ROUND(1/((1+#REF!)^A33),9) * 2,ROUND(1/((1+#REF!)^A33),9))) -> 
A34: 31 | B34: 31 | E34: =IF(ISERROR(MATCH(D34,#REF!,0))=FALSE,"C",IF(ISERROR(MATCH(D34,#REF!,0))=FALSE,"D","")) ->  | F34: =IF(E34="C",0,IF(E34 ="D",ROUND(1/((1+#REF!)^A34),9) * 2,ROUND(1/((1+#REF!)^A34),9))) -> 
A35: 32 | B35: 32 | E35: =IF(ISERROR(MATCH(D35,#REF!,0))=FALSE,"C",IF(ISERROR(MATCH(D35,#REF!,0))=FALSE,"D","")) ->  | F35: =IF(E35="C",0,IF(E35 ="D",ROUND(1/((1+#REF!)^A35),9) * 2,ROUND(1/((1+#REF!)^A35),9))) -> 
A36: 33 | B36: 33 | E36: =IF(ISERROR(MATCH(D36,#REF!,0))=FALSE,"C",IF(ISERROR(MATCH(D36,#REF!,0))=FALSE,"D","")) ->  | F36: =IF(E36="C",0,IF(E36 ="D",ROUND(1/((1+#REF!)^A36),9) * 2,ROUND(1/((1+#REF!)^A36),9))) -> 
A37: 34 | B37: 34 | E37: =IF(ISERROR(MATCH(D37,#REF!,0))=FALSE,"C",IF(ISERROR(MATCH(D37,#REF!,0))=FALSE,"D","")) ->  | F37: =IF(E37="C",0,IF(E37 ="D",ROUND(1/((1+#REF!)^A37),9) * 2,ROUND(1/((1+#REF!)^A37),9))) -> 
A38: 35 | B38: 35 | E38: =IF(ISERROR(MATCH(D38,#REF!,0))=FALSE,"C",IF(ISERROR(MATCH(D38,#REF!,0))=FALSE,"D","")) ->  | F38: =IF(E38="C",0,IF(E38 ="D",ROUND(1/((1+#REF!)^A38),9) * 2,ROUND(1/((1+#REF!)^A38),9))) -> 
A39: 36 | B39: 36 | E39: =IF(ISERROR(MATCH(D39,#REF!,0))=FALSE,"C",IF(ISERROR(MATCH(D39,#REF!,0))=FALSE,"D","")) ->  | F39: =IF(E39="C",0,IF(E39 ="D",ROUND(1/((1+#REF!)^A39),9) * 2,ROUND(1/((1+#REF!)^A39),9))) -> 
A40: 37 | B40: 37 | E40: =IF(ISERROR(MATCH(D40,#REF!,0))=FALSE,"C",IF(ISERROR(MATCH(D40,#REF!,0))=FALSE,"D","")) ->  | F40: =IF(E40="C",0,IF(E40 ="D",ROUND(1/((1+#REF!)^A40),9) * 2,ROUND(1/((1+#REF!)^A40),9))) -> 
A41: 38 | B41: 38 | E41: =IF(ISERROR(MATCH(D41,#REF!,0))=FALSE,"C",IF(ISERROR(MATCH(D41,#REF!,0))=FALSE,"D","")) ->  | F41: =IF(E41="C",0,IF(E41 ="D",ROUND(1/((1+#REF!)^A41),9) * 2,ROUND(1/((1+#REF!)^A41),9))) -> 
A42: 39 | B42: 39 | E42: =IF(ISERROR(MATCH(D42,#REF!,0))=FALSE,"C",IF(ISERROR(MATCH(D42,#REF!,0))=FALSE,"D","")) ->  | F42: =IF(E42="C",0,IF(E42 ="D",ROUND(1/((1+#REF!)^A42),9) * 2,ROUND(1/((1+#REF!)^A42),9))) -> 
A43: 40 | B43: 40 | E43: =IF(ISERROR(MATCH(D43,#REF!,0))=FALSE,"C",IF(ISERROR(MATCH(D43,#REF!,0))=FALSE,"D","")) ->  | F43: =IF(E43="C",0,IF(E43 ="D",ROUND(1/((1+#REF!)^A43),9) * 2,ROUND(1/((1+#REF!)^A43),9))) -> 
A44: 41 | B44: 41 | E44: =IF(ISERROR(MATCH(D44,#REF!,0))=FALSE,"C",IF(ISERROR(MATCH(D44,#REF!,0))=FALSE,"D","")) ->  | F44: =IF(E44="C",0,IF(E44 ="D",ROUND(1/((1+#REF!)^A44),9) * 2,ROUND(1/((1+#REF!)^A44),9))) -> 
A45: 42 | B45: 42 | E45: =IF(ISERROR(MATCH(D45,#REF!,0))=FALSE,"C",IF(ISERROR(MATCH(D45,#REF!,0))=FALSE,"D","")) ->  | F45: =IF(E45="C",0,IF(E45 ="D",ROUND(1/((1+#REF!)^A45),9) * 2,ROUND(1/((1+#REF!)^A45),9))) -> 
A46: 43 | B46: 43 | E46: =IF(ISERROR(MATCH(D46,#REF!,0))=FALSE,"C",IF(ISERROR(MATCH(D46,#REF!,0))=FALSE,"D","")) ->  | F46: =IF(E46="C",0,IF(E46 ="D",ROUND(1/((1+#REF!)^A46),9) * 2,ROUND(1/((1+#REF!)^A46),9))) -> 
A47: 44 | B47: 44 | E47: =IF(ISERROR(MATCH(D47,#REF!,0))=FALSE,"C",IF(ISERROR(MATCH(D47,#REF!,0))=FALSE,"D","")) ->  | F47: =IF(E47="C",0,IF(E47 ="D",ROUND(1/((1+#REF!)^A47),9) * 2,ROUND(1/((1+#REF!)^A47),9))) -> 
A48: 45 | B48: 45 | E48: =IF(ISERROR(MATCH(D48,#REF!,0))=FALSE,"C",IF(ISERROR(MATCH(D48,#REF!,0))=FALSE,"D","")) ->  | F48: =IF(E48="C",0,IF(E48 ="D",ROUND(1/((1+#REF!)^A48),9) * 2,ROUND(1/((1+#REF!)^A48),9))) -> 
A49: 46 | B49: 46 | E49: =IF(ISERROR(MATCH(D49,#REF!,0))=FALSE,"C",IF(ISERROR(MATCH(D49,#REF!,0))=FALSE,"D","")) ->  | F49: =IF(E49="C",0,IF(E49 ="D",ROUND(1/((1+#REF!)^A49),9) * 2,ROUND(1/((1+#REF!)^A49),9))) -> 
A50: 47 | B50: 47 | E50: =IF(ISERROR(MATCH(D50,#REF!,0))=FALSE,"C",IF(ISERROR(MATCH(D50,#REF!,0))=FALSE,"D","")) ->  | F50: =IF(E50="C",0,IF(E50 ="D",ROUND(1/((1+#REF!)^A50),9) * 2,ROUND(1/((1+#REF!)^A50),9))) -> 
A51: 48 | B51: 48 | E51: =IF(ISERROR(MATCH(D51,#REF!,0))=FALSE,"C",IF(ISERROR(MATCH(D51,#REF!,0))=FALSE,"D","")) ->  | F51: =IF(E51="C",0,IF(E51 ="D",ROUND(1/((1+#REF!)^A51),9) * 2,ROUND(1/((1+#REF!)^A51),9))) -> 
A52: 49 | B52: 49 | E52: =IF(ISERROR(MATCH(D52,#REF!,0))=FALSE,"C",IF(ISERROR(MATCH(D52,#REF!,0))=FALSE,"D","")) ->  | F52: =IF(E52="C",0,IF(E52 ="D",ROUND(1/((1+#REF!)^A52),9) * 2,ROUND(1/((1+#REF!)^A52),9))) -> 
A53: 50 | B53: 50 | E53: =IF(ISERROR(MATCH(D53,#REF!,0))=FALSE,"C",IF(ISERROR(MATCH(D53,#REF!,0))=FALSE,"D","")) ->  | F53: =IF(E53="C",0,IF(E53 ="D",ROUND(1/((1+#REF!)^A53),9) * 2,ROUND(1/((1+#REF!)^A53),9))) -> 
A54: 51 | B54: 51 | E54: =IF(ISERROR(MATCH(D54,#REF!,0))=FALSE,"C",IF(ISERROR(MATCH(D54,#REF!,0))=FALSE,"D","")) ->  | F54: =IF(E54="C",0,IF(E54 ="D",ROUND(1/((1+#REF!)^A54),9) * 2,ROUND(1/((1+#REF!)^A54),9))) -> 
A55: 52 | B55: 52 | E55: =IF(ISERROR(MATCH(D55,#REF!,0))=FALSE,"C",IF(ISERROR(MATCH(D55,#REF!,0))=FALSE,"D","")) ->  | F55: =IF(E55="C",0,IF(E55 ="D",ROUND(1/((1+#REF!)^A55),9) * 2,ROUND(1/((1+#REF!)^A55),9))) -> 
A56: 53 | B56: 53 | E56: =IF(ISERROR(MATCH(D56,#REF!,0))=FALSE,"C",IF(ISERROR(MATCH(D56,#REF!,0))=FALSE,"D","")) ->  | F56: =IF(E56="C",0,IF(E56 ="D",ROUND(1/((1+#REF!)^A56),9) * 2,ROUND(1/((1+#REF!)^A56),9))) -> 
A57: 54 | B57: 54 | E57: =IF(ISERROR(MATCH(D57,#REF!,0))=FALSE,"C",IF(ISERROR(MATCH(D57,#REF!,0))=FALSE,"D","")) ->  | F57: =IF(E57="C",0,IF(E57 ="D",ROUND(1/((1+#REF!)^A57),9) * 2,ROUND(1/((1+#REF!)^A57),9))) -> 
A58: 55 | B58: 55 | E58: =IF(ISERROR(MATCH(D58,#REF!,0))=FALSE,"C",IF(ISERROR(MATCH(D58,#REF!,0))=FALSE,"D","")) ->  | F58: =IF(E58="C",0,IF(E58 ="D",ROUND(1/((1+#REF!)^A58),9) * 2,ROUND(1/((1+#REF!)^A58),9))) -> 
A59: 56 | B59: 56 | E59: =IF(ISERROR(MATCH(D59,#REF!,0))=FALSE,"C",IF(ISERROR(MATCH(D59,#REF!,0))=FALSE,"D","")) ->  | F59: =IF(E59="C",0,IF(E59 ="D",ROUND(1/((1+#REF!)^A59),9) * 2,ROUND(1/((1+#REF!)^A59),9))) -> 
A60: 57 | B60: 57 | E60: =IF(ISERROR(MATCH(D60,#REF!,0))=FALSE,"C",IF(ISERROR(MATCH(D60,#REF!,0))=FALSE,"D","")) ->  | F60: =IF(E60="C",0,IF(E60 ="D",ROUND(1/((1+#REF!)^A60),9) * 2,ROUND(1/((1+#REF!)^A60),9))) -> 
A61: 58 | B61: 58 | E61: =IF(ISERROR(MATCH(D61,#REF!,0))=FALSE,"C",IF(ISERROR(MATCH(D61,#REF!,0))=FALSE,"D","")) ->  | F61: =IF(E61="C",0,IF(E61 ="D",ROUND(1/((1+#REF!)^A61),9) * 2,ROUND(1/((1+#REF!)^A61),9))) -> 
A62: 59 | B62: 59 | E62: =IF(ISERROR(MATCH(D62,#REF!,0))=FALSE,"C",IF(ISERROR(MATCH(D62,#REF!,0))=FALSE,"D","")) ->  | F62: =IF(E62="C",0,IF(E62 ="D",ROUND(1/((1+#REF!)^A62),9) * 2,ROUND(1/((1+#REF!)^A62),9))) -> 
A63: 60 | B63: 60 | E63: =IF(ISERROR(MATCH(D63,#REF!,0))=FALSE,"C",IF(ISERROR(MATCH(D63,#REF!,0))=FALSE,"D","")) ->  | F63: =IF(E63="C",0,IF(E63 ="D",ROUND(1/((1+#REF!)^A63),9) * 2,ROUND(1/((1+#REF!)^A63),9))) -> 
A64: 61 | B64: 61 | E64: =IF(ISERROR(MATCH(D64,#REF!,0))=FALSE,"C",IF(ISERROR(MATCH(D64,#REF!,0))=FALSE,"D","")) ->  | F64: =IF(E64="C",0,IF(E64 ="D",ROUND(1/((1+#REF!)^A64),9) * 2,ROUND(1/((1+#REF!)^A64),9))) -> 
A65: 62 | B65: 62 | E65: =IF(ISERROR(MATCH(D65,#REF!,0))=FALSE,"C",IF(ISERROR(MATCH(D65,#REF!,0))=FALSE,"D","")) ->  | F65: =IF(E65="C",0,IF(E65 ="D",ROUND(1/((1+#REF!)^A65),9) * 2,ROUND(1/((1+#REF!)^A65),9))) -> 
A66: 63 | B66: 63 | E66: =IF(ISERROR(MATCH(D66,#REF!,0))=FALSE,"C",IF(ISERROR(MATCH(D66,#REF!,0))=FALSE,"D","")) ->  | F66: =IF(E66="C",0,IF(E66 ="D",ROUND(1/((1+#REF!)^A66),9) * 2,ROUND(1/((1+#REF!)^A66),9))) -> 
A67: 64 | B67: 64 | E67: =IF(ISERROR(MATCH(D67,#REF!,0))=FALSE,"C",IF(ISERROR(MATCH(D67,#REF!,0))=FALSE,"D","")) ->  | F67: =IF(E67="C",0,IF(E67 ="D",ROUND(1/((1+#REF!)^A67),9) * 2,ROUND(1/((1+#REF!)^A67),9))) -> 
A68: 65 | B68: 65 | D68: =MONTH(C68) ->  | E68: =IF(ISERROR(MATCH(D68,#REF!,0))=FALSE,"C",IF(ISERROR(MATCH(D68,#REF!,0))=FALSE,"D","")) ->  | F68: =IF(E68="C",0,IF(E68 ="D",ROUND(1/((1+#REF!)^A68),9) * 2,ROUND(1/((1+#REF!)^A68),9))) -> 
A69: =A68+1 -> 66 | B69: =IF(E69<>"C",IF(ISERROR(1+B68)=TRUE,1,1+B68),IF(ISNUMBER(B68),B68,1)) -> 66 | C69: =DATE(YEAR(C68) + 1/12,MONTH(C68)+1,DAY(C68)) ->  | E69: =IF(ISERROR(MATCH(D69,#REF!,0))=FALSE,"C",IF(ISERROR(MATCH(D69,#REF!,0))=FALSE,"D","")) ->  | F69: =IF(E69="C",0,IF(E69 ="D",ROUND(1/((1+#REF!)^A69),9) * 2,ROUND(1/((1+#REF!)^A69),9))) -> 
A70: 67 | B70: 67 | E70: =IF(ISERROR(MATCH(D70,#REF!,0))=FALSE,"C",IF(ISERROR(MATCH(D70,#REF!,0))=FALSE,"D","")) ->  | F70: =IF(E70="C",0,IF(E70 ="D",ROUND(1/((1+#REF!)^A70),9) * 2,ROUND(1/((1+#REF!)^A70),9))) ->  | G70: =G69+ROUND(F70,9) -> 
A71: 68 | B71: 68 | E71: =IF(ISERROR(MATCH(D71,#REF!,0))=FALSE,"C",IF(ISERROR(MATCH(D71,#REF!,0))=FALSE,"D","")) ->  | F71: =IF(E71="C",0,IF(E71 ="D",ROUND(1/((1+#REF!)^A71),9) * 2,ROUND(1/((1+#REF!)^A71),9))) -> 
A72: 69 | B72: 69 | E72: =IF(ISERROR(MATCH(D72,#REF!,0))=FALSE,"C",IF(ISERROR(MATCH(D72,#REF!,0))=FALSE,"D","")) ->  | F72: =IF(E72="C",0,IF(E72 ="D",ROUND(1/((1+#REF!)^A72),9) * 2,ROUND(1/((1+#REF!)^A72),9))) -> 
A73: 70 | B73: 70 | E73: =IF(ISERROR(MATCH(D73,#REF!,0))=FALSE,"C",IF(ISERROR(MATCH(D73,#REF!,0))=FALSE,"D","")) ->  | F73: =IF(E73="C",0,IF(E73 ="D",ROUND(1/((1+#REF!)^A73),9) * 2,ROUND(1/((1+#REF!)^A73),9))) -> 
A74: 71 | B74: 71 | E74: =IF(ISERROR(MATCH(D74,#REF!,0))=FALSE,"C",IF(ISERROR(MATCH(D74,#REF!,0))=FALSE,"D","")) ->  | F74: =IF(E74="C",0,IF(E74 ="D",ROUND(1/((1+#REF!)^A74),9) * 2,ROUND(1/((1+#REF!)^A74),9))) -> 
A75: 72 | B75: 72 | E75: =IF(ISERROR(MATCH(D75,#REF!,0))=FALSE,"C",IF(ISERROR(MATCH(D75,#REF!,0))=FALSE,"D","")) ->  | F75: =IF(E75="C",0,IF(E75 ="D",ROUND(1/((1+#REF!)^A75),9) * 2,ROUND(1/((1+#REF!)^A75),9))) -> 
A76: 73 | B76: 73 | E76: =IF(ISERROR(MATCH(D76,#REF!,0))=FALSE,"C",IF(ISERROR(MATCH(D76,#REF!,0))=FALSE,"D","")) ->  | F76: =IF(E76="C",0,IF(E76 ="D",ROUND(1/((1+#REF!)^A76),9) * 2,ROUND(1/((1+#REF!)^A76),9))) -> 
A77: 74 | B77: 74 | E77: =IF(ISERROR(MATCH(D77,#REF!,0))=FALSE,"C",IF(ISERROR(MATCH(D77,#REF!,0))=FALSE,"D","")) ->  | F77: =IF(E77="C",0,IF(E77 ="D",ROUND(1/((1+#REF!)^A77),9) * 2,ROUND(1/((1+#REF!)^A77),9))) -> 
A78: 75 | B78: 75 | E78: =IF(ISERROR(MATCH(D78,#REF!,0))=FALSE,"C",IF(ISERROR(MATCH(D78,#REF!,0))=FALSE,"D","")) ->  | F78: =IF(E78="C",0,IF(E78 ="D",ROUND(1/((1+#REF!)^A78),9) * 2,ROUND(1/((1+#REF!)^A78),9))) -> 
A79: 76 | B79: 76 | E79: =IF(ISERROR(MATCH(D79,#REF!,0))=FALSE,"C",IF(ISERROR(MATCH(D79,#REF!,0))=FALSE,"D","")) ->  | F79: =IF(E79="C",0,IF(E79 ="D",ROUND(1/((1+#REF!)^A79),9) * 2,ROUND(1/((1+#REF!)^A79),9))) -> 
A80: 77 | B80: 77 | E80: =IF(ISERROR(MATCH(D80,#REF!,0))=FALSE,"C",IF(ISERROR(MATCH(D80,#REF!,0))=FALSE,"D","")) ->  | F80: =IF(E80="C",0,IF(E80 ="D",ROUND(1/((1+#REF!)^A80),9) * 2,ROUND(1/((1+#REF!)^A80),9))) -> 
A81: 78 | B81: 78 | E81: =IF(ISERROR(MATCH(D81,#REF!,0))=FALSE,"C",IF(ISERROR(MATCH(D81,#REF!,0))=FALSE,"D","")) ->  | F81: =IF(E81="C",0,IF(E81 ="D",ROUND(1/((1+#REF!)^A81),9) * 2,ROUND(1/((1+#REF!)^A81),9))) -> 
A82: 79 | B82: 79 | E82: =IF(ISERROR(MATCH(D82,#REF!,0))=FALSE,"C",IF(ISERROR(MATCH(D82,#REF!,0))=FALSE,"D","")) ->  | F82: =IF(E82="C",0,IF(E82 ="D",ROUND(1/((1+#REF!)^A82),9) * 2,ROUND(1/((1+#REF!)^A82),9))) -> 
A83: 80 | B83: 80 | E83: =IF(ISERROR(MATCH(D83,#REF!,0))=FALSE,"C",IF(ISERROR(MATCH(D83,#REF!,0))=FALSE,"D","")) ->  | F83: =IF(E83="C",0,IF(E83 ="D",ROUND(1/((1+#REF!)^A83),9) * 2,ROUND(1/((1+#REF!)^A83),9))) -> 
A84: 81 | B84: 81 | E84: =IF(ISERROR(MATCH(D84,#REF!,0))=FALSE,"C",IF(ISERROR(MATCH(D84,#REF!,0))=FALSE,"D","")) ->  | F84: =IF(E84="C",0,IF(E84 ="D",ROUND(1/((1+#REF!)^A84),9) * 2,ROUND(1/((1+#REF!)^A84),9))) -> 
A85: 82 | B85: 82 | E85: =IF(ISERROR(MATCH(D85,#REF!,0))=FALSE,"C",IF(ISERROR(MATCH(D85,#REF!,0))=FALSE,"D","")) ->  | F85: =IF(E85="C",0,IF(E85 ="D",ROUND(1/((1+#REF!)^A85),9) * 2,ROUND(1/((1+#REF!)^A85),9))) -> 
A86: 83 | B86: 83 | E86: =IF(ISERROR(MATCH(D86,#REF!,0))=FALSE,"C",IF(ISERROR(MATCH(D86,#REF!,0))=FALSE,"D","")) ->  | F86: =IF(E86="C",0,IF(E86 ="D",ROUND(1/((1+#REF!)^A86),9) * 2,ROUND(1/((1+#REF!)^A86),9))) -> 
A87: 84 | B87: 84 | E87: =IF(ISERROR(MATCH(D87,#REF!,0))=FALSE,"C",IF(ISERROR(MATCH(D87,#REF!,0))=FALSE,"D","")) ->  | F87: =IF(E87="C",0,IF(E87 ="D",ROUND(1/((1+#REF!)^A87),9) * 2,ROUND(1/((1+#REF!)^A87),9))) -> 
A88: 85 | B88: 85 | E88: =IF(ISERROR(MATCH(D88,#REF!,0))=FALSE,"C",IF(ISERROR(MATCH(D88,#REF!,0))=FALSE,"D","")) ->  | F88: =IF(E88="C",0,IF(E88 ="D",ROUND(1/((1+#REF!)^A88),9) * 2,ROUND(1/((1+#REF!)^A88),9))) -> 
A89: 86 | B89: 86 | E89: =IF(ISERROR(MATCH(D89,#REF!,0))=FALSE,"C",IF(ISERROR(MATCH(D89,#REF!,0))=FALSE,"D","")) ->  | F89: =IF(E89="C",0,IF(E89 ="D",ROUND(1/((1+#REF!)^A89),9) * 2,ROUND(1/((1+#REF!)^A89),9))) -> 
A90: 87 | B90: 87 | E90: =IF(ISERROR(MATCH(D90,#REF!,0))=FALSE,"C",IF(ISERROR(MATCH(D90,#REF!,0))=FALSE,"D","")) ->  | F90: =IF(E90="C",0,IF(E90 ="D",ROUND(1/((1+#REF!)^A90),9) * 2,ROUND(1/((1+#REF!)^A90),9))) -> 
A91: 88 | B91: 88 | E91: =IF(ISERROR(MATCH(D91,#REF!,0))=FALSE,"C",IF(ISERROR(MATCH(D91,#REF!,0))=FALSE,"D","")) ->  | F91: =IF(E91="C",0,IF(E91 ="D",ROUND(1/((1+#REF!)^A91),9) * 2,ROUND(1/((1+#REF!)^A91),9))) -> 
A92: 89 | B92: 89 | E92: =IF(ISERROR(MATCH(D92,#REF!,0))=FALSE,"C",IF(ISERROR(MATCH(D92,#REF!,0))=FALSE,"D","")) ->  | F92: =IF(E92="C",0,IF(E92 ="D",ROUND(1/((1+#REF!)^A92),9) * 2,ROUND(1/((1+#REF!)^A92),9))) -> 
A93: 90 | B93: 90 | E93: =IF(ISERROR(MATCH(D93,#REF!,0))=FALSE,"C",IF(ISERROR(MATCH(D93,#REF!,0))=FALSE,"D","")) ->  | F93: =IF(E93="C",0,IF(E93 ="D",ROUND(1/((1+#REF!)^A93),9) * 2,ROUND(1/((1+#REF!)^A93),9))) -> 
A94: 91 | B94: 91 | E94: =IF(ISERROR(MATCH(D94,#REF!,0))=FALSE,"C",IF(ISERROR(MATCH(D94,#REF!,0))=FALSE,"D","")) ->  | F94: =IF(E94="C",0,IF(E94 ="D",ROUND(1/((1+#REF!)^A94),9) * 2,ROUND(1/((1+#REF!)^A94),9))) -> 
A95: 92 | B95: 92 | E95: =IF(ISERROR(MATCH(D95,#REF!,0))=FALSE,"C",IF(ISERROR(MATCH(D95,#REF!,0))=FALSE,"D","")) ->  | F95: =IF(E95="C",0,IF(E95 ="D",ROUND(1/((1+#REF!)^A95),9) * 2,ROUND(1/((1+#REF!)^A95),9))) -> 
A96: 93 | B96: 93 | E96: =IF(ISERROR(MATCH(D96,#REF!,0))=FALSE,"C",IF(ISERROR(MATCH(D96,#REF!,0))=FALSE,"D","")) ->  | F96: =IF(E96="C",0,IF(E96 ="D",ROUND(1/((1+#REF!)^A96),9) * 2,ROUND(1/((1+#REF!)^A96),9))) -> 
A97: 94 | B97: 94 | E97: =IF(ISERROR(MATCH(D97,#REF!,0))=FALSE,"C",IF(ISERROR(MATCH(D97,#REF!,0))=FALSE,"D","")) ->  | F97: =IF(E97="C",0,IF(E97 ="D",ROUND(1/((1+#REF!)^A97),9) * 2,ROUND(1/((1+#REF!)^A97),9))) -> 
A98: 95 | B98: 95 | E98: =IF(ISERROR(MATCH(D98,#REF!,0))=FALSE,"C",IF(ISERROR(MATCH(D98,#REF!,0))=FALSE,"D","")) ->  | F98: =IF(E98="C",0,IF(E98 ="D",ROUND(1/((1+#REF!)^A98),9) * 2,ROUND(1/((1+#REF!)^A98),9))) -> 
A99: 96 | B99: 96 | E99: =IF(ISERROR(MATCH(D99,#REF!,0))=FALSE,"C",IF(ISERROR(MATCH(D99,#REF!,0))=FALSE,"D","")) ->  | F99: =IF(E99="C",0,IF(E99 ="D",ROUND(1/((1+#REF!)^A99),9) * 2,ROUND(1/((1+#REF!)^A99),9))) -> 
A100: 97 | B100: =IF(E100<>"C",IF(ISERROR(1+B99)=TRUE,1,1+B99),IF(ISNUMBER(B99),B99,1)) -> 97 | D100: =MONTH(C100) ->  | E100: =IF(ISERROR(MATCH(D100,#REF!,0))=FALSE,"C",IF(ISERROR(MATCH(D100,#REF!,0))=FALSE,"D","")) ->  | F100: =IF(E100="C",0,IF(E100 ="D",ROUND(1/((1+#REF!)^A100),9) * 2,ROUND(1/((1+#REF!)^A100),9))) ->  | G100: =G99+ROUND(F100,9) -> 
A101: 98 | B101: 98 | E101: =IF(ISERROR(MATCH(D101,#REF!,0))=FALSE,"C",IF(ISERROR(MATCH(D101,#REF!,0))=FALSE,"D","")) ->  | F101: =IF(E101="C",0,IF(E101 ="D",ROUND(1/((1+#REF!)^A101),9) * 2,ROUND(1/((1+#REF!)^A101),9))) -> 
A102: 99 | B102: 99 | E102: =IF(ISERROR(MATCH(D102,#REF!,0))=FALSE,"C",IF(ISERROR(MATCH(D102,#REF!,0))=FALSE,"D","")) ->  | F102: =IF(E102="C",0,IF(E102 ="D",ROUND(1/((1+#REF!)^A102),9) * 2,ROUND(1/((1+#REF!)^A102),9))) -> 
A103: 100 | B103: 100 | E103: =IF(ISERROR(MATCH(D103,#REF!,0))=FALSE,"C",IF(ISERROR(MATCH(D103,#REF!,0))=FALSE,"D","")) ->  | F103: =IF(E103="C",0,IF(E103 ="D",ROUND(1/((1+#REF!)^A103),9) * 2,ROUND(1/((1+#REF!)^A103),9))) -> 
A104: 101 | B104: 101 | E104: =IF(ISERROR(MATCH(D104,#REF!,0))=FALSE,"C",IF(ISERROR(MATCH(D104,#REF!,0))=FALSE,"D","")) ->  | F104: =IF(E104="C",0,IF(E104 ="D",ROUND(1/((1+#REF!)^A104),9) * 2,ROUND(1/((1+#REF!)^A104),9))) -> 
A105: 102 | B105: 102 | E105: =IF(ISERROR(MATCH(D105,#REF!,0))=FALSE,"C",IF(ISERROR(MATCH(D105,#REF!,0))=FALSE,"D","")) ->  | F105: =IF(E105="C",0,IF(E105 ="D",ROUND(1/((1+#REF!)^A105),9) * 2,ROUND(1/((1+#REF!)^A105),9))) -> 
A106: 103 | B106: 103 | E106: =IF(ISERROR(MATCH(D106,#REF!,0))=FALSE,"C",IF(ISERROR(MATCH(D106,#REF!,0))=FALSE,"D","")) ->  | F106: =IF(E106="C",0,IF(E106 ="D",ROUND(1/((1+#REF!)^A106),9) * 2,ROUND(1/((1+#REF!)^A106),9))) -> 
A107: 104 | B107: 104 | E107: =IF(ISERROR(MATCH(D107,#REF!,0))=FALSE,"C",IF(ISERROR(MATCH(D107,#REF!,0))=FALSE,"D","")) ->  | F107: =IF(E107="C",0,IF(E107 ="D",ROUND(1/((1+#REF!)^A107),9) * 2,ROUND(1/((1+#REF!)^A107),9))) -> 
A108: 105 | B108: 105 | E108: =IF(ISERROR(MATCH(D108,#REF!,0))=FALSE,"C",IF(ISERROR(MATCH(D108,#REF!,0))=FALSE,"D","")) ->  | F108: =IF(E108="C",0,IF(E108 ="D",ROUND(1/((1+#REF!)^A108),9) * 2,ROUND(1/((1+#REF!)^A108),9))) -> 
A109: 106 | B109: 106 | E109: =IF(ISERROR(MATCH(D109,#REF!,0))=FALSE,"C",IF(ISERROR(MATCH(D109,#REF!,0))=FALSE,"D","")) ->  | F109: =IF(E109="C",0,IF(E109 ="D",ROUND(1/((1+#REF!)^A109),9) * 2,ROUND(1/((1+#REF!)^A109),9))) -> 
A110: 107 | B110: 107 | E110: =IF(ISERROR(MATCH(D110,#REF!,0))=FALSE,"C",IF(ISERROR(MATCH(D110,#REF!,0))=FALSE,"D","")) ->  | F110: =IF(E110="C",0,IF(E110 ="D",ROUND(1/((1+#REF!)^A110),9) * 2,ROUND(1/((1+#REF!)^A110),9))) -> 
A111: 108 | B111: 108 | E111: =IF(ISERROR(MATCH(D111,#REF!,0))=FALSE,"C",IF(ISERROR(MATCH(D111,#REF!,0))=FALSE,"D","")) ->  | F111: =IF(E111="C",0,IF(E111 ="D",ROUND(1/((1+#REF!)^A111),9) * 2,ROUND(1/((1+#REF!)^A111),9))) -> 
A112: 109 | B112: 109 | E112: =IF(ISERROR(MATCH(D112,#REF!,0))=FALSE,"C",IF(ISERROR(MATCH(D112,#REF!,0))=FALSE,"D","")) ->  | F112: =IF(E112="C",0,IF(E112 ="D",ROUND(1/((1+#REF!)^A112),9) * 2,ROUND(1/((1+#REF!)^A112),9))) -> 
A113: 110 | B113: 110 | E113: =IF(ISERROR(MATCH(D113,#REF!,0))=FALSE,"C",IF(ISERROR(MATCH(D113,#REF!,0))=FALSE,"D","")) ->  | F113: =IF(E113="C",0,IF(E113 ="D",ROUND(1/((1+#REF!)^A113),9) * 2,ROUND(1/((1+#REF!)^A113),9))) -> 
A114: 111 | B114: 111 | E114: =IF(ISERROR(MATCH(D114,#REF!,0))=FALSE,"C",IF(ISERROR(MATCH(D114,#REF!,0))=FALSE,"D","")) ->  | F114: =IF(E114="C",0,IF(E114 ="D",ROUND(1/((1+#REF!)^A114),9) * 2,ROUND(1/((1+#REF!)^A114),9))) -> 
A115: 112 | B115: 112 | E115: =IF(ISERROR(MATCH(D115,#REF!,0))=FALSE,"C",IF(ISERROR(MATCH(D115,#REF!,0))=FALSE,"D","")) ->  | F115: =IF(E115="C",0,IF(E115 ="D",ROUND(1/((1+#REF!)^A115),9) * 2,ROUND(1/((1+#REF!)^A115),9))) -> 
A116: 113 | B116: 113 | E116: =IF(ISERROR(MATCH(D116,#REF!,0))=FALSE,"C",IF(ISERROR(MATCH(D116,#REF!,0))=FALSE,"D","")) ->  | F116: =IF(E116="C",0,IF(E116 ="D",ROUND(1/((1+#REF!)^A116),9) * 2,ROUND(1/((1+#REF!)^A116),9))) -> 
A117: 114 | B117: 114 | E117: =IF(ISERROR(MATCH(D117,#REF!,0))=FALSE,"C",IF(ISERROR(MATCH(D117,#REF!,0))=FALSE,"D","")) ->  | F117: =IF(E117="C",0,IF(E117 ="D",ROUND(1/((1+#REF!)^A117),9) * 2,ROUND(1/((1+#REF!)^A117),9))) -> 
A118: 115 | B118: 115 | E118: =IF(ISERROR(MATCH(D118,#REF!,0))=FALSE,"C",IF(ISERROR(MATCH(D118,#REF!,0))=FALSE,"D","")) ->  | F118: =IF(E118="C",0,IF(E118 ="D",ROUND(1/((1+#REF!)^A118),9) * 2,ROUND(1/((1+#REF!)^A118),9))) -> 
A119: 116 | B119: 116 | E119: =IF(ISERROR(MATCH(D119,#REF!,0))=FALSE,"C",IF(ISERROR(MATCH(D119,#REF!,0))=FALSE,"D","")) ->  | F119: =IF(E119="C",0,IF(E119 ="D",ROUND(1/((1+#REF!)^A119),9) * 2,ROUND(1/((1+#REF!)^A119),9))) -> 
A120: 117 | B120: 117 | E120: =IF(ISERROR(MATCH(D120,#REF!,0))=FALSE,"C",IF(ISERROR(MATCH(D120,#REF!,0))=FALSE,"D","")) ->  | F120: =IF(E120="C",0,IF(E120 ="D",ROUND(1/((1+#REF!)^A120),9) * 2,ROUND(1/((1+#REF!)^A120),9))) -> 
A121: 118 | B121: 118 | E121: =IF(ISERROR(MATCH(D121,#REF!,0))=FALSE,"C",IF(ISERROR(MATCH(D121,#REF!,0))=FALSE,"D","")) ->  | F121: =IF(E121="C",0,IF(E121 ="D",ROUND(1/((1+#REF!)^A121),9) * 2,ROUND(1/((1+#REF!)^A121),9))) -> 
A122: 119 | B122: 119 | E122: =IF(ISERROR(MATCH(D122,#REF!,0))=FALSE,"C",IF(ISERROR(MATCH(D122,#REF!,0))=FALSE,"D","")) ->  | F122: =IF(E122="C",0,IF(E122 ="D",ROUND(1/((1+#REF!)^A122),9) * 2,ROUND(1/((1+#REF!)^A122),9))) -> 
A123: 120 | B123: 120 | E123: =IF(ISERROR(MATCH(D123,#REF!,0))=FALSE,"C",IF(ISERROR(MATCH(D123,#REF!,0))=FALSE,"D","")) ->  | F123: =IF(E123="C",0,IF(E123 ="D",ROUND(1/((1+#REF!)^A123),9) * 2,ROUND(1/((1+#REF!)^A123),9))) -> 
A124: 121 | B124: 121 | E124: =IF(ISERROR(MATCH(D124,#REF!,0))=FALSE,"C",IF(ISERROR(MATCH(D124,#REF!,0))=FALSE,"D","")) ->  | F124: =IF(E124="C",0,IF(E124 ="D",ROUND(1/((1+#REF!)^A124),9) * 2,ROUND(1/((1+#REF!)^A124),9))) -> 
A125: 122 | B125: 122 | E125: =IF(ISERROR(MATCH(D125,#REF!,0))=FALSE,"C",IF(ISERROR(MATCH(D125,#REF!,0))=FALSE,"D","")) ->  | F125: =IF(E125="C",0,IF(E125 ="D",ROUND(1/((1+#REF!)^A125),9) * 2,ROUND(1/((1+#REF!)^A125),9))) -> 
A126: 123 | B126: 123 | E126: =IF(ISERROR(MATCH(D126,#REF!,0))=FALSE,"C",IF(ISERROR(MATCH(D126,#REF!,0))=FALSE,"D","")) ->  | F126: =IF(E126="C",0,IF(E126 ="D",ROUND(1/((1+#REF!)^A126),9) * 2,ROUND(1/((1+#REF!)^A126),9))) -> 
A127: 124 | B127: 124 | E127: =IF(ISERROR(MATCH(D127,#REF!,0))=FALSE,"C",IF(ISERROR(MATCH(D127,#REF!,0))=FALSE,"D","")) ->  | F127: =IF(E127="C",0,IF(E127 ="D",ROUND(1/((1+#REF!)^A127),9) * 2,ROUND(1/((1+#REF!)^A127),9))) -> 
A128: 125 | B128: 125 | E128: =IF(ISERROR(MATCH(D128,#REF!,0))=FALSE,"C",IF(ISERROR(MATCH(D128,#REF!,0))=FALSE,"D","")) ->  | F128: =IF(E128="C",0,IF(E128 ="D",ROUND(1/((1+#REF!)^A128),9) * 2,ROUND(1/((1+#REF!)^A128),9))) -> 
A129: 126 | B129: 126 | E129: =IF(ISERROR(MATCH(D129,#REF!,0))=FALSE,"C",IF(ISERROR(MATCH(D129,#REF!,0))=FALSE,"D","")) ->  | F129: =IF(E129="C",0,IF(E129 ="D",ROUND(1/((1+#REF!)^A129),9) * 2,ROUND(1/((1+#REF!)^A129),9))) -> 
A130: 127 | B130: 127 | E130: =IF(ISERROR(MATCH(D130,#REF!,0))=FALSE,"C",IF(ISERROR(MATCH(D130,#REF!,0))=FALSE,"D","")) ->  | F130: =IF(E130="C",0,IF(E130 ="D",ROUND(1/((1+#REF!)^A130),9) * 2,ROUND(1/((1+#REF!)^A130),9))) -> 
A131: 128 | B131: 128 | E131: =IF(ISERROR(MATCH(D131,#REF!,0))=FALSE,"C",IF(ISERROR(MATCH(D131,#REF!,0))=FALSE,"D","")) ->  | F131: =IF(E131="C",0,IF(E131 ="D",ROUND(1/((1+#REF!)^A131),9) * 2,ROUND(1/((1+#REF!)^A131),9))) -> 
A132: 129 | B132: 129 | E132: =IF(ISERROR(MATCH(D132,#REF!,0))=FALSE,"C",IF(ISERROR(MATCH(D132,#REF!,0))=FALSE,"D","")) ->  | F132: =IF(E132="C",0,IF(E132 ="D",ROUND(1/((1+#REF!)^A132),9) * 2,ROUND(1/((1+#REF!)^A132),9))) -> 
A133: =A132+1 -> 130 | B133: 130 | C133: =DATE(YEAR(C132) + 1/12,MONTH(C132)+1,DAY(C132)) ->  | E133: =IF(ISERROR(MATCH(D133,#REF!,0))=FALSE,"C",IF(ISERROR(MATCH(D133,#REF!,0))=FALSE,"D","")) ->  | F133: =IF(E133="C",0,IF(E133 ="D",ROUND(1/((1+#REF!)^A133),9) * 2,ROUND(1/((1+#REF!)^A133),9))) -> 
A134: 131 | B134: 131 | E134: =IF(ISERROR(MATCH(D134,#REF!,0))=FALSE,"C",IF(ISERROR(MATCH(D134,#REF!,0))=FALSE,"D","")) ->  | F134: =IF(E134="C",0,IF(E134 ="D",ROUND(1/((1+#REF!)^A134),9) * 2,ROUND(1/((1+#REF!)^A134),9))) -> 
A135: 132 | B135: 132 | E135: =IF(ISERROR(MATCH(D135,#REF!,0))=FALSE,"C",IF(ISERROR(MATCH(D135,#REF!,0))=FALSE,"D","")) ->  | F135: =IF(E135="C",0,IF(E135 ="D",ROUND(1/((1+#REF!)^A135),9) * 2,ROUND(1/((1+#REF!)^A135),9))) -> 
A136: 133 | B136: 133 | E136: =IF(ISERROR(MATCH(D136,#REF!,0))=FALSE,"C",IF(ISERROR(MATCH(D136,#REF!,0))=FALSE,"D","")) ->  | F136: =IF(E136="C",0,IF(E136 ="D",ROUND(1/((1+#REF!)^A136),9) * 2,ROUND(1/((1+#REF!)^A136),9))) -> 
A137: 134 | B137: 134 | E137: =IF(ISERROR(MATCH(D137,#REF!,0))=FALSE,"C",IF(ISERROR(MATCH(D137,#REF!,0))=FALSE,"D","")) ->  | F137: =IF(E137="C",0,IF(E137 ="D",ROUND(1/((1+#REF!)^A137),9) * 2,ROUND(1/((1+#REF!)^A137),9))) -> 
A138: 135 | B138: 135 | E138: =IF(ISERROR(MATCH(D138,#REF!,0))=FALSE,"C",IF(ISERROR(MATCH(D138,#REF!,0))=FALSE,"D","")) ->  | F138: =IF(E138="C",0,IF(E138 ="D",ROUND(1/((1+#REF!)^A138),9) * 2,ROUND(1/((1+#REF!)^A138),9))) -> 
A139: 136 | B139: 136 | E139: =IF(ISERROR(MATCH(D139,#REF!,0))=FALSE,"C",IF(ISERROR(MATCH(D139,#REF!,0))=FALSE,"D","")) ->  | F139: =IF(E139="C",0,IF(E139 ="D",ROUND(1/((1+#REF!)^A139),9) * 2,ROUND(1/((1+#REF!)^A139),9))) -> 
A140: 137 | B140: 137 | E140: =IF(ISERROR(MATCH(D140,#REF!,0))=FALSE,"C",IF(ISERROR(MATCH(D140,#REF!,0))=FALSE,"D","")) ->  | F140: =IF(E140="C",0,IF(E140 ="D",ROUND(1/((1+#REF!)^A140),9) * 2,ROUND(1/((1+#REF!)^A140),9))) -> 
A141: 138 | B141: 138 | E141: =IF(ISERROR(MATCH(D141,#REF!,0))=FALSE,"C",IF(ISERROR(MATCH(D141,#REF!,0))=FALSE,"D","")) ->  | F141: =IF(E141="C",0,IF(E141 ="D",ROUND(1/((1+#REF!)^A141),9) * 2,ROUND(1/((1+#REF!)^A141),9))) -> 
A142: 139 | B142: 139 | E142: =IF(ISERROR(MATCH(D142,#REF!,0))=FALSE,"C",IF(ISERROR(MATCH(D142,#REF!,0))=FALSE,"D","")) ->  | F142: =IF(E142="C",0,IF(E142 ="D",ROUND(1/((1+#REF!)^A142),9) * 2,ROUND(1/((1+#REF!)^A142),9))) -> 
A143: 140 | B143: 140 | E143: =IF(ISERROR(MATCH(D143,#REF!,0))=FALSE,"C",IF(ISERROR(MATCH(D143,#REF!,0))=FALSE,"D","")) ->  | F143: =IF(E143="C",0,IF(E143 ="D",ROUND(1/((1+#REF!)^A143),9) * 2,ROUND(1/((1+#REF!)^A143),9))) -> 
A144: 141 | B144: 141 | E144: =IF(ISERROR(MATCH(D144,#REF!,0))=FALSE,"C",IF(ISERROR(MATCH(D144,#REF!,0))=FALSE,"D","")) ->  | F144: =IF(E144="C",0,IF(E144 ="D",ROUND(1/((1+#REF!)^A144),9) * 2,ROUND(1/((1+#REF!)^A144),9))) -> 
A145: 142 | B145: 142 | E145: =IF(ISERROR(MATCH(D145,#REF!,0))=FALSE,"C",IF(ISERROR(MATCH(D145,#REF!,0))=FALSE,"D","")) ->  | F145: =IF(E145="C",0,IF(E145 ="D",ROUND(1/((1+#REF!)^A145),9) * 2,ROUND(1/((1+#REF!)^A145),9))) -> 
A146: 143 | B146: 143 | E146: =IF(ISERROR(MATCH(D146,#REF!,0))=FALSE,"C",IF(ISERROR(MATCH(D146,#REF!,0))=FALSE,"D","")) ->  | F146: =IF(E146="C",0,IF(E146 ="D",ROUND(1/((1+#REF!)^A146),9) * 2,ROUND(1/((1+#REF!)^A146),9))) -> 
A147: 144 | B147: 144 | E147: =IF(ISERROR(MATCH(D147,#REF!,0))=FALSE,"C",IF(ISERROR(MATCH(D147,#REF!,0))=FALSE,"D","")) ->  | F147: =IF(E147="C",0,IF(E147 ="D",ROUND(1/((1+#REF!)^A147),9) * 2,ROUND(1/((1+#REF!)^A147),9))) -> 
A148: 145 | B148: 145 | E148: =IF(ISERROR(MATCH(D148,#REF!,0))=FALSE,"C",IF(ISERROR(MATCH(D148,#REF!,0))=FALSE,"D","")) ->  | F148: =IF(E148="C",0,IF(E148 ="D",ROUND(1/((1+#REF!)^A148),9) * 2,ROUND(1/((1+#REF!)^A148),9))) -> 
A149: 146 | B149: 146 | E149: =IF(ISERROR(MATCH(D149,#REF!,0))=FALSE,"C",IF(ISERROR(MATCH(D149,#REF!,0))=FALSE,"D","")) ->  | F149: =IF(E149="C",0,IF(E149 ="D",ROUND(1/((1+#REF!)^A149),9) * 2,ROUND(1/((1+#REF!)^A149),9))) -> 
A150: 147 | B150: 147 | E150: =IF(ISERROR(MATCH(D150,#REF!,0))=FALSE,"C",IF(ISERROR(MATCH(D150,#REF!,0))=FALSE,"D","")) ->  | F150: =IF(E150="C",0,IF(E150 ="D",ROUND(1/((1+#REF!)^A150),9) * 2,ROUND(1/((1+#REF!)^A150),9))) -> 
A151: 148 | B151: 148 | E151: =IF(ISERROR(MATCH(D151,#REF!,0))=FALSE,"C",IF(ISERROR(MATCH(D151,#REF!,0))=FALSE,"D","")) ->  | F151: =IF(E151="C",0,IF(E151 ="D",ROUND(1/((1+#REF!)^A151),9) * 2,ROUND(1/((1+#REF!)^A151),9))) -> 
A152: 149 | B152: 149 | E152: =IF(ISERROR(MATCH(D152,#REF!,0))=FALSE,"C",IF(ISERROR(MATCH(D152,#REF!,0))=FALSE,"D","")) ->  | F152: =IF(E152="C",0,IF(E152 ="D",ROUND(1/((1+#REF!)^A152),9) * 2,ROUND(1/((1+#REF!)^A152),9))) -> 
A153: 150 | B153: 150 | E153: =IF(ISERROR(MATCH(D153,#REF!,0))=FALSE,"C",IF(ISERROR(MATCH(D153,#REF!,0))=FALSE,"D","")) ->  | F153: =IF(E153="C",0,IF(E153 ="D",ROUND(1/((1+#REF!)^A153),9) * 2,ROUND(1/((1+#REF!)^A153),9))) -> 
A154: 151 | B154: 151 | E154: =IF(ISERROR(MATCH(D154,#REF!,0))=FALSE,"C",IF(ISERROR(MATCH(D154,#REF!,0))=FALSE,"D","")) ->  | F154: =IF(E154="C",0,IF(E154 ="D",ROUND(1/((1+#REF!)^A154),9) * 2,ROUND(1/((1+#REF!)^A154),9))) -> 
A155: 152 | B155: 152 | E155: =IF(ISERROR(MATCH(D155,#REF!,0))=FALSE,"C",IF(ISERROR(MATCH(D155,#REF!,0))=FALSE,"D","")) ->  | F155: =IF(E155="C",0,IF(E155 ="D",ROUND(1/((1+#REF!)^A155),9) * 2,ROUND(1/((1+#REF!)^A155),9))) -> 
A156: 153 | B156: 153 | E156: =IF(ISERROR(MATCH(D156,#REF!,0))=FALSE,"C",IF(ISERROR(MATCH(D156,#REF!,0))=FALSE,"D","")) ->  | F156: =IF(E156="C",0,IF(E156 ="D",ROUND(1/((1+#REF!)^A156),9) * 2,ROUND(1/((1+#REF!)^A156),9))) -> 
A157: 154 | B157: 154 | E157: =IF(ISERROR(MATCH(D157,#REF!,0))=FALSE,"C",IF(ISERROR(MATCH(D157,#REF!,0))=FALSE,"D","")) ->  | F157: =IF(E157="C",0,IF(E157 ="D",ROUND(1/((1+#REF!)^A157),9) * 2,ROUND(1/((1+#REF!)^A157),9))) -> 
A158: 155 | B158: 155 | E158: =IF(ISERROR(MATCH(D158,#REF!,0))=FALSE,"C",IF(ISERROR(MATCH(D158,#REF!,0))=FALSE,"D","")) ->  | F158: =IF(E158="C",0,IF(E158 ="D",ROUND(1/((1+#REF!)^A158),9) * 2,ROUND(1/((1+#REF!)^A158),9))) -> 
A159: 156 | B159: 156 | E159: =IF(ISERROR(MATCH(D159,#REF!,0))=FALSE,"C",IF(ISERROR(MATCH(D159,#REF!,0))=FALSE,"D","")) ->  | F159: =IF(E159="C",0,IF(E159 ="D",ROUND(1/((1+#REF!)^A159),9) * 2,ROUND(1/((1+#REF!)^A159),9))) -> 
A160: 157 | B160: 157 | E160: =IF(ISERROR(MATCH(D160,#REF!,0))=FALSE,"C",IF(ISERROR(MATCH(D160,#REF!,0))=FALSE,"D","")) ->  | F160: =IF(E160="C",0,IF(E160 ="D",ROUND(1/((1+#REF!)^A160),9) * 2,ROUND(1/((1+#REF!)^A160),9))) -> 
A161: 158 | B161: 158 | E161: =IF(ISERROR(MATCH(D161,#REF!,0))=FALSE,"C",IF(ISERROR(MATCH(D161,#REF!,0))=FALSE,"D","")) ->  | F161: =IF(E161="C",0,IF(E161 ="D",ROUND(1/((1+#REF!)^A161),9) * 2,ROUND(1/((1+#REF!)^A161),9))) -> 
A162: 159 | B162: 159 | E162: =IF(ISERROR(MATCH(D162,#REF!,0))=FALSE,"C",IF(ISERROR(MATCH(D162,#REF!,0))=FALSE,"D","")) ->  | F162: =IF(E162="C",0,IF(E162 ="D",ROUND(1/((1+#REF!)^A162),9) * 2,ROUND(1/((1+#REF!)^A162),9))) -> 
A163: 160 | B163: 160 | E163: =IF(ISERROR(MATCH(D163,#REF!,0))=FALSE,"C",IF(ISERROR(MATCH(D163,#REF!,0))=FALSE,"D","")) ->  | F163: =IF(E163="C",0,IF(E163 ="D",ROUND(1/((1+#REF!)^A163),9) * 2,ROUND(1/((1+#REF!)^A163),9))) -> 
A164: 161 | B164: =IF(E164<>"C",IF(ISERROR(1+B163)=TRUE,1,1+B163),IF(ISNUMBER(B163),B163,1)) -> 161 | D164: =MONTH(C164) ->  | E164: =IF(ISERROR(MATCH(D164,#REF!,0))=FALSE,"C",IF(ISERROR(MATCH(D164,#REF!,0))=FALSE,"D","")) ->  | F164: =IF(E164="C",0,IF(E164 ="D",ROUND(1/((1+#REF!)^A164),9) * 2,ROUND(1/((1+#REF!)^A164),9))) ->  | G164: =G163+ROUND(F164,9) -> 
A165: 162 | B165: 162 | E165: =IF(ISERROR(MATCH(D165,#REF!,0))=FALSE,"C",IF(ISERROR(MATCH(D165,#REF!,0))=FALSE,"D","")) ->  | F165: =IF(E165="C",0,IF(E165 ="D",ROUND(1/((1+#REF!)^A165),9) * 2,ROUND(1/((1+#REF!)^A165),9))) -> 
A166: 163 | B166: 163 | E166: =IF(ISERROR(MATCH(D166,#REF!,0))=FALSE,"C",IF(ISERROR(MATCH(D166,#REF!,0))=FALSE,"D","")) ->  | F166: =IF(E166="C",0,IF(E166 ="D",ROUND(1/((1+#REF!)^A166),9) * 2,ROUND(1/((1+#REF!)^A166),9))) -> 
A167: 164 | B167: 164 | E167: =IF(ISERROR(MATCH(D167,#REF!,0))=FALSE,"C",IF(ISERROR(MATCH(D167,#REF!,0))=FALSE,"D","")) ->  | F167: =IF(E167="C",0,IF(E167 ="D",ROUND(1/((1+#REF!)^A167),9) * 2,ROUND(1/((1+#REF!)^A167),9))) -> 
A168: 165 | B168: 165 | E168: =IF(ISERROR(MATCH(D168,#REF!,0))=FALSE,"C",IF(ISERROR(MATCH(D168,#REF!,0))=FALSE,"D","")) ->  | F168: =IF(E168="C",0,IF(E168 ="D",ROUND(1/((1+#REF!)^A168),9) * 2,ROUND(1/((1+#REF!)^A168),9))) -> 
A169: 166 | B169: 166 | E169: =IF(ISERROR(MATCH(D169,#REF!,0))=FALSE,"C",IF(ISERROR(MATCH(D169,#REF!,0))=FALSE,"D","")) ->  | F169: =IF(E169="C",0,IF(E169 ="D",ROUND(1/((1+#REF!)^A169),9) * 2,ROUND(1/((1+#REF!)^A169),9))) -> 
A170: 167 | B170: 167 | E170: =IF(ISERROR(MATCH(D170,#REF!,0))=FALSE,"C",IF(ISERROR(MATCH(D170,#REF!,0))=FALSE,"D","")) ->  | F170: =IF(E170="C",0,IF(E170 ="D",ROUND(1/((1+#REF!)^A170),9) * 2,ROUND(1/((1+#REF!)^A170),9))) -> 
A171: 168 | B171: 168 | E171: =IF(ISERROR(MATCH(D171,#REF!,0))=FALSE,"C",IF(ISERROR(MATCH(D171,#REF!,0))=FALSE,"D","")) ->  | F171: =IF(E171="C",0,IF(E171 ="D",ROUND(1/((1+#REF!)^A171),9) * 2,ROUND(1/((1+#REF!)^A171),9))) -> 
A172: 169 | B172: 169 | E172: =IF(ISERROR(MATCH(D172,#REF!,0))=FALSE,"C",IF(ISERROR(MATCH(D172,#REF!,0))=FALSE,"D","")) ->  | F172: =IF(E172="C",0,IF(E172 ="D",ROUND(1/((1+#REF!)^A172),9) * 2,ROUND(1/((1+#REF!)^A172),9))) -> 
A173: 170 | B173: 170 | E173: =IF(ISERROR(MATCH(D173,#REF!,0))=FALSE,"C",IF(ISERROR(MATCH(D173,#REF!,0))=FALSE,"D","")) ->  | F173: =IF(E173="C",0,IF(E173 ="D",ROUND(1/((1+#REF!)^A173),9) * 2,ROUND(1/((1+#REF!)^A173),9))) -> 
A174: 171 | B174: 171 | E174: =IF(ISERROR(MATCH(D174,#REF!,0))=FALSE,"C",IF(ISERROR(MATCH(D174,#REF!,0))=FALSE,"D","")) ->  | F174: =IF(E174="C",0,IF(E174 ="D",ROUND(1/((1+#REF!)^A174),9) * 2,ROUND(1/((1+#REF!)^A174),9))) -> 
A175: 172 | B175: 172 | E175: =IF(ISERROR(MATCH(D175,#REF!,0))=FALSE,"C",IF(ISERROR(MATCH(D175,#REF!,0))=FALSE,"D","")) ->  | F175: =IF(E175="C",0,IF(E175 ="D",ROUND(1/((1+#REF!)^A175),9) * 2,ROUND(1/((1+#REF!)^A175),9))) -> 
A176: 173 | B176: 173 | E176: =IF(ISERROR(MATCH(D176,#REF!,0))=FALSE,"C",IF(ISERROR(MATCH(D176,#REF!,0))=FALSE,"D","")) ->  | F176: =IF(E176="C",0,IF(E176 ="D",ROUND(1/((1+#REF!)^A176),9) * 2,ROUND(1/((1+#REF!)^A176),9))) -> 
A177: 174 | B177: 174 | E177: =IF(ISERROR(MATCH(D177,#REF!,0))=FALSE,"C",IF(ISERROR(MATCH(D177,#REF!,0))=FALSE,"D","")) ->  | F177: =IF(E177="C",0,IF(E177 ="D",ROUND(1/((1+#REF!)^A177),9) * 2,ROUND(1/((1+#REF!)^A177),9))) -> 
A178: 175 | B178: 175 | E178: =IF(ISERROR(MATCH(D178,#REF!,0))=FALSE,"C",IF(ISERROR(MATCH(D178,#REF!,0))=FALSE,"D","")) ->  | F178: =IF(E178="C",0,IF(E178 ="D",ROUND(1/((1+#REF!)^A178),9) * 2,ROUND(1/((1+#REF!)^A178),9))) -> 
A179: 176 | B179: 176 | E179: =IF(ISERROR(MATCH(D179,#REF!,0))=FALSE,"C",IF(ISERROR(MATCH(D179,#REF!,0))=FALSE,"D","")) ->  | F179: =IF(E179="C",0,IF(E179 ="D",ROUND(1/((1+#REF!)^A179),9) * 2,ROUND(1/((1+#REF!)^A179),9))) -> 
A180: 177 | B180: 177 | E180: =IF(ISERROR(MATCH(D180,#REF!,0))=FALSE,"C",IF(ISERROR(MATCH(D180,#REF!,0))=FALSE,"D","")) ->  | F180: =IF(E180="C",0,IF(E180 ="D",ROUND(1/((1+#REF!)^A180),9) * 2,ROUND(1/((1+#REF!)^A180),9))) -> 
A181: 178 | B181: 178 | E181: =IF(ISERROR(MATCH(D181,#REF!,0))=FALSE,"C",IF(ISERROR(MATCH(D181,#REF!,0))=FALSE,"D","")) ->  | F181: =IF(E181="C",0,IF(E181 ="D",ROUND(1/((1+#REF!)^A181),9) * 2,ROUND(1/((1+#REF!)^A181),9))) -> 
A182: 179 | B182: 179 | E182: =IF(ISERROR(MATCH(D182,#REF!,0))=FALSE,"C",IF(ISERROR(MATCH(D182,#REF!,0))=FALSE,"D","")) ->  | F182: =IF(E182="C",0,IF(E182 ="D",ROUND(1/((1+#REF!)^A182),9) * 2,ROUND(1/((1+#REF!)^A182),9))) -> 
A183: 180 | B183: 180 | E183: =IF(ISERROR(MATCH(D183,#REF!,0))=FALSE,"C",IF(ISERROR(MATCH(D183,#REF!,0))=FALSE,"D","")) ->  | F183: =IF(E183="C",0,IF(E183 ="D",ROUND(1/((1+#REF!)^A183),9) * 2,ROUND(1/((1+#REF!)^A183),9))) -> 
A184: 181 | B184: 181 | E184: =IF(ISERROR(MATCH(D184,#REF!,0))=FALSE,"C",IF(ISERROR(MATCH(D184,#REF!,0))=FALSE,"D","")) ->  | F184: =IF(E184="C",0,IF(E184 ="D",ROUND(1/((1+#REF!)^A184),9) * 2,ROUND(1/((1+#REF!)^A184),9))) -> 
A185: 182 | B185: 182 | E185: =IF(ISERROR(MATCH(D185,#REF!,0))=FALSE,"C",IF(ISERROR(MATCH(D185,#REF!,0))=FALSE,"D","")) ->  | F185: =IF(E185="C",0,IF(E185 ="D",ROUND(1/((1+#REF!)^A185),9) * 2,ROUND(1/((1+#REF!)^A185),9))) -> 
A186: 183 | B186: 183 | E186: =IF(ISERROR(MATCH(D186,#REF!,0))=FALSE,"C",IF(ISERROR(MATCH(D186,#REF!,0))=FALSE,"D","")) ->  | F186: =IF(E186="C",0,IF(E186 ="D",ROUND(1/((1+#REF!)^A186),9) * 2,ROUND(1/((1+#REF!)^A186),9))) -> 
A187: 184 | B187: 184 | E187: =IF(ISERROR(MATCH(D187,#REF!,0))=FALSE,"C",IF(ISERROR(MATCH(D187,#REF!,0))=FALSE,"D","")) ->  | F187: =IF(E187="C",0,IF(E187 ="D",ROUND(1/((1+#REF!)^A187),9) * 2,ROUND(1/((1+#REF!)^A187),9))) -> 
A188: 185 | B188: 185 | E188: =IF(ISERROR(MATCH(D188,#REF!,0))=FALSE,"C",IF(ISERROR(MATCH(D188,#REF!,0))=FALSE,"D","")) ->  | F188: =IF(E188="C",0,IF(E188 ="D",ROUND(1/((1+#REF!)^A188),9) * 2,ROUND(1/((1+#REF!)^A188),9))) -> 
A189: 186 | B189: 186 | E189: =IF(ISERROR(MATCH(D189,#REF!,0))=FALSE,"C",IF(ISERROR(MATCH(D189,#REF!,0))=FALSE,"D","")) ->  | F189: =IF(E189="C",0,IF(E189 ="D",ROUND(1/((1+#REF!)^A189),9) * 2,ROUND(1/((1+#REF!)^A189),9))) -> 
A190: 187 | B190: 187 | E190: =IF(ISERROR(MATCH(D190,#REF!,0))=FALSE,"C",IF(ISERROR(MATCH(D190,#REF!,0))=FALSE,"D","")) ->  | F190: =IF(E190="C",0,IF(E190 ="D",ROUND(1/((1+#REF!)^A190),9) * 2,ROUND(1/((1+#REF!)^A190),9))) -> 
A191: 188 | B191: 188 | E191: =IF(ISERROR(MATCH(D191,#REF!,0))=FALSE,"C",IF(ISERROR(MATCH(D191,#REF!,0))=FALSE,"D","")) ->  | F191: =IF(E191="C",0,IF(E191 ="D",ROUND(1/((1+#REF!)^A191),9) * 2,ROUND(1/((1+#REF!)^A191),9))) -> 
A192: 189 | B192: 189 | E192: =IF(ISERROR(MATCH(D192,#REF!,0))=FALSE,"C",IF(ISERROR(MATCH(D192,#REF!,0))=FALSE,"D","")) ->  | F192: =IF(E192="C",0,IF(E192 ="D",ROUND(1/((1+#REF!)^A192),9) * 2,ROUND(1/((1+#REF!)^A192),9))) -> 
A193: 190 | B193: 190 | E193: =IF(ISERROR(MATCH(D193,#REF!,0))=FALSE,"C",IF(ISERROR(MATCH(D193,#REF!,0))=FALSE,"D","")) ->  | F193: =IF(E193="C",0,IF(E193 ="D",ROUND(1/((1+#REF!)^A193),9) * 2,ROUND(1/((1+#REF!)^A193),9))) -> 
A194: 191 | B194: 191 | E194: =IF(ISERROR(MATCH(D194,#REF!,0))=FALSE,"C",IF(ISERROR(MATCH(D194,#REF!,0))=FALSE,"D","")) ->  | F194: =IF(E194="C",0,IF(E194 ="D",ROUND(1/((1+#REF!)^A194),9) * 2,ROUND(1/((1+#REF!)^A194),9))) -> 
A195: 192 | B195: 192 | E195: =IF(ISERROR(MATCH(D195,#REF!,0))=FALSE,"C",IF(ISERROR(MATCH(D195,#REF!,0))=FALSE,"D","")) ->  | F195: =IF(E195="C",0,IF(E195 ="D",ROUND(1/((1+#REF!)^A195),9) * 2,ROUND(1/((1+#REF!)^A195),9))) -> 
A196: 193 | B196: 193 | E196: =IF(ISERROR(MATCH(D196,#REF!,0))=FALSE,"C",IF(ISERROR(MATCH(D196,#REF!,0))=FALSE,"D","")) ->  | F196: =IF(E196="C",0,IF(E196 ="D",ROUND(1/((1+#REF!)^A196),9) * 2,ROUND(1/((1+#REF!)^A196),9))) -> 
A197: =A196+1 -> 194 | B197: 194 | C197: =DATE(YEAR(C196) + 1/12,MONTH(C196)+1,DAY(C196)) ->  | E197: =IF(ISERROR(MATCH(D197,#REF!,0))=FALSE,"C",IF(ISERROR(MATCH(D197,#REF!,0))=FALSE,"D","")) ->  | F197: =IF(E197="C",0,IF(E197 ="D",ROUND(1/((1+#REF!)^A197),9) * 2,ROUND(1/((1+#REF!)^A197),9))) -> 
A198: 195 | B198: 195 | E198: =IF(ISERROR(MATCH(D198,#REF!,0))=FALSE,"C",IF(ISERROR(MATCH(D198,#REF!,0))=FALSE,"D","")) ->  | F198: =IF(E198="C",0,IF(E198 ="D",ROUND(1/((1+#REF!)^A198),9) * 2,ROUND(1/((1+#REF!)^A198),9))) -> 
A199: 196 | B199: 196 | E199: =IF(ISERROR(MATCH(D199,#REF!,0))=FALSE,"C",IF(ISERROR(MATCH(D199,#REF!,0))=FALSE,"D","")) ->  | F199: =IF(E199="C",0,IF(E199 ="D",ROUND(1/((1+#REF!)^A199),9) * 2,ROUND(1/((1+#REF!)^A199),9))) -> 
A200: 197 | B200: 197 | E200: =IF(ISERROR(MATCH(D200,#REF!,0))=FALSE,"C",IF(ISERROR(MATCH(D200,#REF!,0))=FALSE,"D","")) ->  | F200: =IF(E200="C",0,IF(E200 ="D",ROUND(1/((1+#REF!)^A200),9) * 2,ROUND(1/((1+#REF!)^A200),9))) -> 
A201: 198 | B201: 198 | E201: =IF(ISERROR(MATCH(D201,#REF!,0))=FALSE,"C",IF(ISERROR(MATCH(D201,#REF!,0))=FALSE,"D","")) ->  | F201: =IF(E201="C",0,IF(E201 ="D",ROUND(1/((1+#REF!)^A201),9) * 2,ROUND(1/((1+#REF!)^A201),9))) -> 
... 185 more rows

Sheet Hoja1
C3: SIMULADOR PRÉSTAMO PERSONAL SIN GARANTÍA | G3: Soles
G4: Dólares
G6: No
B7: Moneda | C7: Soles | G7: Julio
B8: Monto del Préstamo | C8: 50000 | G8: Diciembre
B9: Fecha de Desembolso | C9: 2022-12-01 | M9: 0
B10: Plazo | C10: 48 | G10: Seguro sin retorno | M10: 30
B11: TEA* | C11: 80 | G11: Seguro con retorno | M11: 60
B12: Días de Gracia | C12: 60 | G12: Endoso | M12: 90
B13: Seguro Desgravamen** | C13: Seguro sin retorno
B14: Cuota Doble 1 | C14: No | H14: =+Simulador!Q29 -> 83.765 | I14: =+Simulador!W28 -> 0.1699999978
B15: Cuota Doble 2 | C15: No | I15: =+IF(AND(I14>-1,I14<1),"CORRECTO","INCORRECTO") -> CORRECTO
A19: Nota: Para hacer uso del simulador, debe tener habilitado la opción de macros.

Sheet Hoja1 (2)
B5: (SIMULACIÓN)
B6: CRONOGRAMA DE PAGOS
B9: Moneda : | D9: =+Hoja1!C7 -> Soles | F9: Monto del Préstamo : | H9: =+Hoja1!C8 -> 50000
B10: Producto : | D10: Préstamo Personal Sin Garantía | F10: Tasa Efectiva Anual (fija) : | H10: =+Hoja1!C11&"%" -> 80%
B11: Fecha de desembolso : | D11: =+Hoja1!C9 -> 2022-12-01 | F11: Plazo (en meses) : | H11: =+Hoja1!C10 -> 48
B12: Mes de Cuota Doble 1 : | D12: =+Hoja1!C14 -> No | F12: Tasa de Costo Efectiva Anual : | H12: =+Simulador!Q18 -> 0.8340472201 | I12: =+RATE(H11,H18,-H9-I13) -> 0.05273062651
B13: Mes de Cuota Doble 2 : | D13: =+Hoja1!C15 -> No | F13: Tasa Seguro de Desgravamen Mensual : | H13: =+IF(Hoja1!C13="Endoso",0,IF(Hoja1!C13="Banco - retorno",0.346%,0.18%)) -> 0.0018 | I13: =Simulador!Q16 -> 5146.1785
B14: Periodo de gracia : | D14: =+Hoja1!C12&" "& "días" -> 60 días
B16: =+IF(AND(Simulador!W28<1,Simulador!W28>-1),"","No ha presionado el botón de calcular, por favor volver a simular") -> 
B17: N° | C17: Fecha Vencimiento | D17: Capital | E17: Interes | F17: Interes de Gracia | G17: Seguro Desgravamen | H17: Total Cuota
B18: 1 | C18: =IFERROR(+IF(B18>0,VLOOKUP(B18,Simulador!$A$32:$T$550,3,0)," ")," ") -> 2023-02-28 | D18: =IFERROR(+IF(B18>0,VLOOKUP(B18,Simulador!$A$32:$T$550,11,0)," ")," ") -> 194.455 | E18: =IFERROR(+IF(B18>0,VLOOKUP(B18,Simulador!$A$32:$T$550,12,0)," ")," ") -> 2424.42 | F18: =IFERROR(+IF(B18>0,VLOOKUP(B18,Simulador!$A$32:$T$550,13,0)," ")," ") -> 288.71 | G18: =IFERROR(+IF(B18>0,VLOOKUP(B18,Simulador!$A$32:$T$550,20,0)," ")," ") -> 270 | H18: =IFERROR(+IF(B18>0,VLOOKUP(B18,Simulador!$A$32:$Z$550,22,0)," ")," ") -> 3177.585
B19: =IF(B18=0," ",IF(B18>=$H$11,"",B18+1)) -> 2 | C19: =IF($H$11=0," ",IF(B18=$H$11,"TOTALES",+IF(B19>0,VLOOKUP(B19,Simulador!$A$32:$T$550,3,0)," "))) -> 2023-03-30 | D19: =IF($H$11=0," ",IF(B18=$H$11,Simulador!$J$33,+IF(B19>0,VLOOKUP(B19,Simulador!$A$32:$T$550,11,0)," "))) -> 298.905 | E19: =IF($H$11=0," ",IF(B18=$H$11,Simulador!$L$31,+IF(B19>0,VLOOKUP(B19,Simulador!$A$32:$T$550,12,0)," "))) -> 2500.32 | F19: =IF($H$11=0," ",IF(B18=$H$11,Simulador!$M$31,+IF(B19>0,VLOOKUP(B19,Simulador!$A$32:$T$550,13,0)," "))) -> 288.71 | G19: =IF($H$11=0," ",IF(B18=$H$11,Simulador!$T$31,+IF(B19>0,VLOOKUP(B19,Simulador!$A$32:$T$550,20,0)," "))) -> 89.65 | H19: =IF($H$11=0," ",IF(B18=$H$11,Simulador!$V$31,+IF(B19>0,VLOOKUP(B19,Simulador!$A$32:$Z$550,22,0)," "))) -> 3177.585
B20: =IF(B19=0," ",IF(B19>=$H$11,"",B19+1)) -> 3 | C20: =IF($H$11=0," ",IF(B19=$H$11,"TOTALES",+IF(B20>0,VLOOKUP(B20,Simulador!$A$32:$T$550,3,0)," "))) -> 2023-04-30 | D20: =IF($H$11=0," ",IF(B19=$H$11,Simulador!$J$33,+IF(B20>0,VLOOKUP(B20,Simulador!$A$32:$T$550,11,0)," "))) -> 226.515 | E20: =IF($H$11=0," ",IF(B19=$H$11,Simulador!$L$31,+IF(B20>0,VLOOKUP(B20,Simulador!$A$32:$T$550,12,0)," "))) -> 2570.28 | F20: =IF($H$11=0," ",IF(B19=$H$11,Simulador!$M$31,+IF(B20>0,VLOOKUP(B20,Simulador!$A$32:$T$550,13,0)," "))) -> 288.71 | G20: =IF($H$11=0," ",IF(B19=$H$11,Simulador!$T$31,+IF(B20>0,VLOOKUP(B20,Simulador!$A$32:$T$550,20,0)," "))) -> 92.08 | H20: =IF($H$11=0," ",IF(B19=$H$11,Simulador!$V$31,+IF(B20>0,VLOOKUP(B20,Simulador!$A$32:$Z$550,22,0)," "))) -> 3177.585
B21: 4 | C21: =IF($H$11=0," ",IF(B20=$H$11,"TOTALES",+IF(B21>0,VLOOKUP(B21,Simulador!$A$32:$T$550,3,0)," "))) -> 2023-05-30 | D21: =IF($H$11=0," ",IF(B20=$H$11,Simulador!$J$33,+IF(B21>0,VLOOKUP(B21,Simulador!$A$32:$T$550,11,0)," "))) -> 326.225 | E21: =IF($H$11=0," ",IF(B20=$H$11,Simulador!$L$31,+IF(B21>0,VLOOKUP(B21,Simulador!$A$32:$T$550,12,0)," "))) -> 2473.95 | F21: =IF($H$11=0," ",IF(B20=$H$11,Simulador!$M$31,+IF(B21>0,VLOOKUP(B21,Simulador!$A$32:$T$550,13,0)," "))) -> 288.71 | G21: =IF($H$11=0," ",IF(B20=$H$11,Simulador!$T$31,+IF(B21>0,VLOOKUP(B21,Simulador!$A$32:$T$550,20,0)," "))) -> 88.7 | H21: =IF($H$11=0," ",IF(B20=$H$11,Simulador!$V$31,+IF(B21>0,VLOOKUP(B21,Simulador!$A$32:$Z$550,22,0)," "))) -> 3177.585
B22: 5 | C22: =IF($H$11=0," ",IF(B21=$H$11,"TOTALES",+IF(B22>0,VLOOKUP(B22,Simulador!$A$32:$T$550,3,0)," "))) -> 2023-06-30 | D22: =IF($H$11=0," ",IF(B21=$H$11,Simulador!$J$33,+IF(B22>0,VLOOKUP(B22,Simulador!$A$32:$T$550,11,0)," "))) -> 256.245 | E22: =IF($H$11=0," ",IF(B21=$H$11,Simulador!$L$31,+IF(B22>0,VLOOKUP(B22,Simulador!$A$32:$T$550,12,0)," "))) -> 2541.58 | F22: =IF($H$11=0," ",IF(B21=$H$11,Simulador!$M$31,+IF(B22>0,VLOOKUP(B22,Simulador!$A$32:$T$550,13,0)," "))) -> 288.71 | G22: =IF($H$11=0," ",IF(B21=$H$11,Simulador!$T$31,+IF(B22>0,VLOOKUP(B22,Simulador!$A$32:$T$550,20,0)," "))) -> 91.05 | H22: =IF($H$11=0," ",IF(B21=$H$11,Simulador!$V$31,+IF(B22>0,VLOOKUP(B22,Simulador!$A$32:$Z$550,22,0)," "))) -> 3177.585
B23: 6 | C23: =IF($H$11=0," ",IF(B22=$H$11,"TOTALES",+IF(B23>0,VLOOKUP(B23,Simulador!$A$32:$T$550,3,0)," "))) -> 2023-07-30 | D23: =IF($H$11=0," ",IF(B22=$H$11,Simulador!$J$33,+IF(B23>0,VLOOKUP(B23,Simulador!$A$32:$T$550,11,0)," "))) -> 356.515 | E23: =IF($H$11=0," ",IF(B22=$H$11,Simulador!$L$31,+IF(B23>0,VLOOKUP(B23,Simulador!$A$32:$T$550,12,0)," "))) -> 2444.7 | F23: =IF($H$11=0," ",IF(B22=$H$11,Simulador!$M$31,+IF(B23>0,VLOOKUP(B23,Simulador!$A$32:$T$550,13,0)," "))) -> 288.71 | G23: =IF($H$11=0," ",IF(B22=$H$11,Simulador!$T$31,+IF(B23>0,VLOOKUP(B23,Simulador!$A$32:$T$550,20,0)," "))) -> 87.66 | H23: =IF($H$11=0," ",IF(B22=$H$11,Simulador!$V$31,+IF(B23>0,VLOOKUP(B23,Simulador!$A$32:$Z$550,22,0)," "))) -> 3177.585
B24: 7 | C24: =IF($H$11=0," ",IF(B23=$H$11,"TOTALES",+IF(B24>0,VLOOKUP(B24,Simulador!$A$32:$T$550,3,0)," "))) -> 2023-08-30 | D24: =IF($H$11=0," ",IF(B23=$H$11,Simulador!$J$33,+IF(B24>0,VLOOKUP(B24,Simulador!$A$32:$T$550,11,0)," "))) -> 289.195 | E24: =IF($H$11=0," ",IF(B23=$H$11,Simulador!$L$31,+IF(B24>0,VLOOKUP(B24,Simulador!$A$32:$T$550,12,0)," "))) -> 2509.77 | F24: =IF($H$11=0," ",IF(B23=$H$11,Simulador!$M$31,+IF(B24>0,VLOOKUP(B24,Simulador!$A$32:$T$550,13,0)," "))) -> 288.71 | G24: =IF($H$11=0," ",IF(B23=$H$11,Simulador!$T$31,+IF(B24>0,VLOOKUP(B24,Simulador!$A$32:$T$550,20,0)," "))) -> 89.91 | H24: =IF($H$11=0," ",IF(B23=$H$11,Simulador!$V$31,+IF(B24>0,VLOOKUP(B24,Simulador!$A$32:$Z$550,22,0)," "))) -> 3177.585
B25: 8 | C25: =IF($H$11=0," ",IF(B24=$H$11,"TOTALES",+IF(B25>0,VLOOKUP(B25,Simulador!$A$32:$T$550,3,0)," "))) -> 2023-09-30 | D25: =IF($H$11=0," ",IF(B24=$H$11,Simulador!$J$33,+IF(B25>0,VLOOKUP(B25,Simulador!$A$32:$T$550,11,0)," "))) -> 304.745 | E25: =IF($H$11=0," ",IF(B24=$H$11,Simulador!$L$31,+IF(B25>0,VLOOKUP(B25,Simulador!$A$32:$T$550,12,0)," "))) -> 2494.75 | F25: =IF($H$11=0," ",IF(B24=$H$11,Simulador!$M$31,+IF(B25>0,VLOOKUP(B25,Simulador!$A$32:$T$550,13,0)," "))) -> 288.71 | G25: =IF($H$11=0," ",IF(B24=$H$11,Simulador!$T$31,+IF(B25>0,VLOOKUP(B25,Simulador!$A$32:$T$550,20,0)," "))) -> 89.38 | H25: =IF($H$11=0," ",IF(B24=$H$11,Simulador!$V$31,+IF(B25>0,VLOOKUP(B25,Simulador!$A$32:$Z$550,22,0)," "))) -> 3177.585
B26: 9 | C26: =IF($H$11=0," ",IF(B25=$H$11,"TOTALES",+IF(B26>0,VLOOKUP(B26,Simulador!$A$32:$T$550,3,0)," "))) -> 2023-10-30 | D26: =IF($H$11=0," ",IF(B25=$H$11,Simulador!$J$33,+IF(B26>0,VLOOKUP(B26,Simulador!$A$32:$T$550,11,0)," "))) -> 405.935 | E26: =IF($H$11=0," ",IF(B25=$H$11,Simulador!$L$31,+IF(B26>0,VLOOKUP(B26,Simulador!$A$32:$T$550,12,0)," "))) -> 2396.99 | F26: =IF($H$11=0," ",IF(B25=$H$11,Simulador!$M$31,+IF(B26>0,VLOOKUP(B26,Simulador!$A$32:$T$550,13,0)," "))) -> 288.71 | G26: =IF($H$11=0," ",IF(B25=$H$11,Simulador!$T$31,+IF(B26>0,VLOOKUP(B26,Simulador!$A$32:$T$550,20,0)," "))) -> 85.95 | H26: =IF($H$11=0," ",IF(B25=$H$11,Simulador!$V$31,+IF(B26>0,VLOOKUP(B26,Simulador!$A$32:$Z$550,22,0)," "))) -> 3177.585
B27: 10 | C27: =IF($H$11=0," ",IF(B26=$H$11,"TOTALES",+IF(B27>0,VLOOKUP(B27,Simulador!$A$32:$T$550,3,0)," "))) -> 2023-11-30 | D27: =IF($H$11=0," ",IF(B26=$H$11,Simulador!$J$33,+IF(B27>0,VLOOKUP(B27,Simulador!$A$32:$T$550,11,0)," "))) -> 342.965 | E27: =IF($H$11=0," ",IF(B26=$H$11,Simulador!$L$31,+IF(B27>0,VLOOKUP(B27,Simulador!$A$32:$T$550,12,0)," "))) -> 2457.86 | F27: =IF($H$11=0," ",IF(B26=$H$11,Simulador!$M$31,+IF(B27>0,VLOOKUP(B27,Simulador!$A$32:$T$550,13,0)," "))) -> 288.71 | G27: =IF($H$11=0," ",IF(B26=$H$11,Simulador!$T$31,+IF(B27>0,VLOOKUP(B27,Simulador!$A$32:$T$550,20,0)," "))) -> 88.05 | H27: =IF($H$11=0," ",IF(B26=$H$11,Simulador!$V$31,+IF(B27>0,VLOOKUP(B27,Simulador!$A$32:$Z$550,22,0)," "))) -> 3177.585
B28: 11 | C28: =IF($H$11=0," ",IF(B27=$H$11,"TOTALES",+IF(B28>0,VLOOKUP(B28,Simulador!$A$32:$T$550,3,0)," "))) -> 2023-12-30 | D28: =IF($H$11=0," ",IF(B27=$H$11,Simulador!$J$33,+IF(B28>0,VLOOKUP(B28,Simulador!$A$32:$T$550,11,0)," "))) -> 444.875 | E28: =IF($H$11=0," ",IF(B27=$H$11,Simulador!$L$31,+IF(B28>0,VLOOKUP(B28,Simulador!$A$32:$T$550,12,0)," "))) -> 2359.4 | F28: =IF($H$11=0," ",IF(B27=$H$11,Simulador!$M$31,+IF(B28>0,VLOOKUP(B28,Simulador!$A$32:$T$550,13,0)," "))) -> 288.71 | G28: =IF($H$11=0," ",IF(B27=$H$11,Simulador!$T$31,+IF(B28>0,VLOOKUP(B28,Simulador!$A$32:$T$550,20,0)," "))) -> 84.6 | H28: =IF($H$11=0," ",IF(B27=$H$11,Simulador!$V$31,+IF(B28>0,VLOOKUP(B28,Simulador!$A$32:$Z$550,22,0)," "))) -> 3177.585
B29: 12 | C29: =IF($H$11=0," ",IF(B28=$H$11,"TOTALES",+IF(B29>0,VLOOKUP(B29,Simulador!$A$32:$T$550,3,0)," "))) -> 2024-01-30 | D29: =IF($H$11=0," ",IF(B28=$H$11,Simulador!$J$33,+IF(B29>0,VLOOKUP(B29,Simulador!$A$32:$T$550,11,0)," "))) -> 385.335 | E29: =IF($H$11=0," ",IF(B28=$H$11,Simulador!$L$31,+IF(B29>0,VLOOKUP(B29,Simulador!$A$32:$T$550,12,0)," "))) -> 2416.95 | F29: =IF($H$11=0," ",IF(B28=$H$11,Simulador!$M$31,+IF(B29>0,VLOOKUP(B29,Simulador!$A$32:$T$550,13,0)," "))) -> 288.71 | G29: =IF($H$11=0," ",IF(B28=$H$11,Simulador!$T$31,+IF(B29>0,VLOOKUP(B29,Simulador!$A$32:$T$550,20,0)," "))) -> 86.59 | H29: =IF($H$11=0," ",IF(B28=$H$11,Simulador!$V$31,+IF(B29>0,VLOOKUP(B29,Simulador!$A$32:$Z$550,22,0)," "))) -> 3177.585
B30: 13 | C30: =IF($H$11=0," ",IF(B29=$H$11,"TOTALES",+IF(B30>0,VLOOKUP(B30,Simulador!$A$32:$T$550,3,0)," "))) -> 2024-02-29 | D30: =IF($H$11=0," ",IF(B29=$H$11,Simulador!$J$33,+IF(B30>0,VLOOKUP(B30,Simulador!$A$32:$T$550,11,0)," "))) -> 488.055 | E30: =IF($H$11=0," ",IF(B29=$H$11,Simulador!$L$31,+IF(B30>0,VLOOKUP(B30,Simulador!$A$32:$T$550,12,0)," "))) -> 2317.72 | F30: =IF($H$11=0," ",IF(B29=$H$11,Simulador!$M$31,+IF(B30>0,VLOOKUP(B30,Simulador!$A$32:$T$550,13,0)," "))) -> 288.71 | G30: =IF($H$11=0," ",IF(B29=$H$11,Simulador!$T$31,+IF(B30>0,VLOOKUP(B30,Simulador!$A$32:$T$550,20,0)," "))) -> 83.1 | H30: =IF($H$11=0," ",IF(B29=$H$11,Simulador!$V$31,+IF(B30>0,VLOOKUP(B30,Simulador!$A$32:$Z$550,22,0)," "))) -> 3177.585
B31: 14 | C31: =IF($H$11=0," ",IF(B30=$H$11,"TOTALES",+IF(B31>0,VLOOKUP(B31,Simulador!$A$32:$T$550,3,0)," "))) -> 2024-03-30 | D31: =IF($H$11=0," ",IF(B30=$H$11,Simulador!$J$33,+IF(B31>0,VLOOKUP(B31,Simulador!$A$32:$T$550,11,0)," "))) -> 513.435 | E31: =IF($H$11=0," ",IF(B30=$H$11,Simulador!$L$31,+IF(B31>0,VLOOKUP(B31,Simulador!$A$32:$T$550,12,0)," "))) -> 2293.22 | F31: =IF($H$11=0," ",IF(B30=$H$11,Simulador!$M$31,+IF(B31>0,VLOOKUP(B31,Simulador!$A$32:$T$550,13,0)," "))) -> 288.71 | G31: =IF($H$11=0," ",IF(B30=$H$11,Simulador!$T$31,+IF(B31>0,VLOOKUP(B31,Simulador!$A$32:$T$550,20,0)," "))) -> 82.22 | H31: =IF($H$11=0," ",IF(B30=$H$11,Simulador!$V$31,+IF(B31>0,VLOOKUP(B31,Simulador!$A$32:$Z$550,22,0)," "))) -> 3177.585
B32: 15 | C32: =IF($H$11=0," ",IF(B31=$H$11,"TOTALES",+IF(B32>0,VLOOKUP(B32,Simulador!$A$32:$T$550,3,0)," "))) -> 2024-04-30 | D32: =IF($H$11=0," ",IF(B31=$H$11,Simulador!$J$33,+IF(B32>0,VLOOKUP(B32,Simulador!$A$32:$T$550,11,0)," "))) -> 459.915 | E32: =IF($H$11=0," ",IF(B31=$H$11,Simulador!$L$31,+IF(B32>0,VLOOKUP(B32,Simulador!$A$32:$T$550,12,0)," "))) -> 2344.95 | F32: =IF($H$11=0," ",IF(B31=$H$11,Simulador!$M$31,+IF(B32>0,VLOOKUP(B32,Simulador!$A$32:$T$550,13,0)," "))) -> 288.71 | G32: =IF($H$11=0," ",IF(B31=$H$11,Simulador!$T$31,+IF(B32>0,VLOOKUP(B32,Simulador!$A$32:$T$550,20,0)," "))) -> 84.01 | H32: =IF($H$11=0," ",IF(B31=$H$11,Simulador!$V$31,+IF(B32>0,VLOOKUP(B32,Simulador!$A$32:$Z$550,22,0)," "))) -> 3177.585
B33: 16 | C33: =IF($H$11=0," ",IF(B32=$H$11,"TOTALES",+IF(B33>0,VLOOKUP(B33,Simulador!$A$32:$T$550,3,0)," "))) -> 2024-05-30 | D33: =IF($H$11=0," ",IF(B32=$H$11,Simulador!$J$33,+IF(B33>0,VLOOKUP(B33,Simulador!$A$32:$T$550,11,0)," "))) -> 564.055 | E33: =IF($H$11=0," ",IF(B32=$H$11,Simulador!$L$31,+IF(B33>0,VLOOKUP(B33,Simulador!$A$32:$T$550,12,0)," "))) -> 2244.35 | F33: =IF($H$11=0," ",IF(B32=$H$11,Simulador!$M$31,+IF(B33>0,VLOOKUP(B33,Simulador!$A$32:$T$550,13,0)," "))) -> 288.71 | G33: =IF($H$11=0," ",IF(B32=$H$11,Simulador!$T$31,+IF(B33>0,VLOOKUP(B33,Simulador!$A$32:$T$550,20,0)," "))) -> 80.47 | H33: =IF($H$11=0," ",IF(B32=$H$11,Simulador!$V$31,+IF(B33>0,VLOOKUP(B33,Simulador!$A$32:$Z$550,22,0)," "))) -> 3177.585
B34: 17 | C34: =IF($H$11=0," ",IF(B33=$H$11,"TOTALES",+IF(B34>0,VLOOKUP(B34,Simulador!$A$32:$T$550,3,0)," "))) -> 2024-06-30 | D34: =IF($H$11=0," ",IF(B33=$H$11,Simulador!$J$33,+IF(B34>0,VLOOKUP(B34,Simulador!$A$32:$T$550,11,0)," "))) -> 514.975 | E34: =IF($H$11=0," ",IF(B33=$H$11,Simulador!$L$31,+IF(B34>0,VLOOKUP(B34,Simulador!$A$32:$T$550,12,0)," "))) -> 2291.79 | F34: =IF($H$11=0," ",IF(B33=$H$11,Simulador!$M$31,+IF(B34>0,VLOOKUP(B34,Simulador!$A$32:$T$550,13,0)," "))) -> 288.71 | G34: =IF($H$11=0," ",IF(B33=$H$11,Simulador!$T$31,+IF(B34>0,VLOOKUP(B34,Simulador!$A$32:$T$550,20,0)," "))) -> 82.11 | H34: =IF($H$11=0," ",IF(B33=$H$11,Simulador!$V$31,+IF(B34>0,VLOOKUP(B34,Simulador!$A$32:$Z$550,22,0)," "))) -> 3177.585
B35: 18 | C35: =IF($H$11=0," ",IF(B34=$H$11,"TOTALES",+IF(B35>0,VLOOKUP(B35,Simulador!$A$32:$T$550,3,0)," "))) -> 2024-07-30 | D35: =IF($H$11=0," ",IF(B34=$H$11,Simulador!$J$33,+IF(B35>0,VLOOKUP(B35,Simulador!$A$32:$T$550,11,0)," "))) -> 620.165 | E35: =IF($H$11=0," ",IF(B34=$H$11,Simulador!$L$31,+IF(B35>0,VLOOKUP(B35,Simulador!$A$32:$T$550,12,0)," "))) -> 2190.18 | F35: =IF($H$11=0," ",IF(B34=$H$11,Simulador!$M$31,+IF(B35>0,VLOOKUP(B35,Simulador!$A$32:$T$550,13,0)," "))) -> 288.71 | G35: =IF($H$11=0," ",IF(B34=$H$11,Simulador!$T$31,+IF(B35>0,VLOOKUP(B35,Simulador!$A$32:$T$550,20,0)," "))) -> 78.53 | H35: =IF($H$11=0," ",IF(B34=$H$11,Simulador!$V$31,+IF(B35>0,VLOOKUP(B35,Simulador!$A$32:$Z$550,22,0)," "))) -> 3177.585
B36: 19 | C36: =IF($H$11=0," ",IF(B35=$H$11,"TOTALES",+IF(B36>0,VLOOKUP(B36,Simulador!$A$32:$T$550,3,0)," "))) -> 2024-08-30 | D36: =IF($H$11=0," ",IF(B35=$H$11,Simulador!$J$33,+IF(B36>0,VLOOKUP(B36,Simulador!$A$32:$T$550,11,0)," "))) -> 576.025 | E36: =IF($H$11=0," ",IF(B35=$H$11,Simulador!$L$31,+IF(B36>0,VLOOKUP(B36,Simulador!$A$32:$T$550,12,0)," "))) -> 2232.86 | F36: =IF($H$11=0," ",IF(B35=$H$11,Simulador!$M$31,+IF(B36>0,VLOOKUP(B36,Simulador!$A$32:$T$550,13,0)," "))) -> 288.71 | G36: =IF($H$11=0," ",IF(B35=$H$11,Simulador!$T$31,+IF(B36>0,VLOOKUP(B36,Simulador!$A$32:$T$550,20,0)," "))) -> 79.99 | H36: =IF($H$11=0," ",IF(B35=$H$11,Simulador!$V$31,+IF(B36>0,VLOOKUP(B36,Simulador!$A$32:$Z$550,22,0)," "))) -> 3177.585
B37: 20 | C37: =IF($H$11=0," ",IF(B36=$H$11,"TOTALES",+IF(B37>0,VLOOKUP(B37,Simulador!$A$32:$T$550,3,0)," "))) -> 2024-09-30 | D37: =IF($H$11=0," ",IF(B36=$H$11,Simulador!$J$33,+IF(B37>0,VLOOKUP(B37,Simulador!$A$32:$T$550,11,0)," "))) -> 607.005 | E37: =IF($H$11=0," ",IF(B36=$H$11,Simulador!$L$31,+IF(B37>0,VLOOKUP(B37,Simulador!$A$32:$T$550,12,0)," "))) -> 2202.95 | F37: =IF($H$11=0," ",IF(B36=$H$11,Simulador!$M$31,+IF(B37>0,VLOOKUP(B37,Simulador!$A$32:$T$550,13,0)," "))) -> 288.71 | G37: =IF($H$11=0," ",IF(B36=$H$11,Simulador!$T$31,+IF(B37>0,VLOOKUP(B37,Simulador!$A$32:$T$550,20,0)," "))) -> 78.92 | H37: =IF($H$11=0," ",IF(B36=$H$11,Simulador!$V$31,+IF(B37>0,VLOOKUP(B37,Simulador!$A$32:$Z$550,22,0)," "))) -> 3177.585
B38: 21 | C38: =IF($H$11=0," ",IF(B37=$H$11,"TOTALES",+IF(B38>0,VLOOKUP(B38,Simulador!$A$32:$T$550,3,0)," "))) -> 2024-10-30 | D38: =IF($H$11=0," ",IF(B37=$H$11,Simulador!$J$33,+IF(B38>0,VLOOKUP(B38,Simulador!$A$32:$T$550,11,0)," "))) -> 713.935 | E38: =IF($H$11=0," ",IF(B37=$H$11,Simulador!$L$31,+IF(B38>0,VLOOKUP(B38,Simulador!$A$32:$T$550,12,0)," "))) -> 2099.66 | F38: =IF($H$11=0," ",IF(B37=$H$11,Simulador!$M$31,+IF(B38>0,VLOOKUP(B38,Simulador!$A$32:$T$550,13,0)," "))) -> 288.71 | G38: =IF($H$11=0," ",IF(B37=$H$11,Simulador!$T$31,+IF(B38>0,VLOOKUP(B38,Simulador!$A$32:$T$550,20,0)," "))) -> 75.28 | H38: =IF($H$11=0," ",IF(B37=$H$11,Simulador!$V$31,+IF(B38>0,VLOOKUP(B38,Simulador!$A$32:$Z$550,22,0)," "))) -> 3177.585
B39: 22 | C39: =IF($H$11=0," ",IF(B38=$H$11,"TOTALES",+IF(B39>0,VLOOKUP(B39,Simulador!$A$32:$T$550,3,0)," "))) -> 2024-11-30 | D39: =IF($H$11=0," ",IF(B38=$H$11,Simulador!$J$33,+IF(B39>0,VLOOKUP(B39,Simulador!$A$32:$T$550,11,0)," "))) -> 678.035 | E39: =IF($H$11=0," ",IF(B38=$H$11,Simulador!$L$31,+IF(B39>0,VLOOKUP(B39,Simulador!$A$32:$T$550,12,0)," "))) -> 2134.37 | F39: =IF($H$11=0," ",IF(B38=$H$11,Simulador!$M$31,+IF(B39>0,VLOOKUP(B39,Simulador!$A$32:$T$550,13,0)," "))) -> 288.71 | G39: =IF($H$11=0," ",IF(B38=$H$11,Simulador!$T$31,+IF(B39>0,VLOOKUP(B39,Simulador!$A$32:$T$550,20,0)," "))) -> 76.47 | H39: =IF($H$11=0," ",IF(B38=$H$11,Simulador!$V$31,+IF(B39>0,VLOOKUP(B39,Simulador!$A$32:$Z$550,22,0)," "))) -> 3177.585
B40: 23 | C40: =IF($H$11=0," ",IF(B39=$H$11,"TOTALES",+IF(B40>0,VLOOKUP(B40,Simulador!$A$32:$T$550,3,0)," "))) -> 2024-12-30 | D40: =IF($H$11=0," ",IF(B39=$H$11,Simulador!$J$33,+IF(B40>0,VLOOKUP(B40,Simulador!$A$32:$T$550,11,0)," "))) -> 786.315 | E40: =IF($H$11=0," ",IF(B39=$H$11,Simulador!$L$31,+IF(B40>0,VLOOKUP(B40,Simulador!$A$32:$T$550,12,0)," "))) -> 2029.78 | F40: =IF($H$11=0," ",IF(B39=$H$11,Simulador!$M$31,+IF(B40>0,VLOOKUP(B40,Simulador!$A$32:$T$550,13,0)," "))) -> 288.71 | G40: =IF($H$11=0," ",IF(B39=$H$11,Simulador!$T$31,+IF(B40>0,VLOOKUP(B40,Simulador!$A$32:$T$550,20,0)," "))) -> 72.78 | H40: =IF($H$11=0," ",IF(B39=$H$11,Simulador!$V$31,+IF(B40>0,VLOOKUP(B40,Simulador!$A$32:$Z$550,22,0)," "))) -> 3177.585
B41: 24 | C41: =IF($H$11=0," ",IF(B40=$H$11,"TOTALES",+IF(B41>0,VLOOKUP(B41,Simulador!$A$32:$T$550,3,0)," "))) -> 2025-01-30 | D41: =IF($H$11=0," ",IF(B40=$H$11,Simulador!$J$33,+IF(B41>0,VLOOKUP(B41,Simulador!$A$32:$T$550,11,0)," "))) -> 756.785 | E41: =IF($H$11=0," ",IF(B40=$H$11,Simulador!$L$31,+IF(B41>0,VLOOKUP(B41,Simulador!$A$32:$T$550,12,0)," "))) -> 2058.35 | F41: =IF($H$11=0," ",IF(B40=$H$11,Simulador!$M$31,+IF(B41>0,VLOOKUP(B41,Simulador!$A$32:$T$550,13,0)," "))) -> 288.71 | G41: =IF($H$11=0," ",IF(B40=$H$11,Simulador!$T$31,+IF(B41>0,VLOOKUP(B41,Simulador!$A$32:$T$550,20,0)," "))) -> 73.74 | H41: =IF($H$11=0," ",IF(B40=$H$11,Simulador!$V$31,+IF(B41>0,VLOOKUP(B41,Simulador!$A$32:$Z$550,22,0)," "))) -> 3177.585
B42: 25 | C42: =IF($H$11=0," ",IF(B41=$H$11,"TOTALES",+IF(B42>0,VLOOKUP(B42,Simulador!$A$32:$T$550,3,0)," "))) -> 2025-02-28 | D42: =IF($H$11=0," ",IF(B41=$H$11,Simulador!$J$33,+IF(B42>0,VLOOKUP(B42,Simulador!$A$32:$T$550,11,0)," "))) -> 935.515 | E42: =IF($H$11=0," ",IF(B41=$H$11,Simulador!$L$31,+IF(B42>0,VLOOKUP(B42,Simulador!$A$32:$T$550,12,0)," "))) -> 1885.69 | F42: =IF($H$11=0," ",IF(B41=$H$11,Simulador!$M$31,+IF(B42>0,VLOOKUP(B42,Simulador!$A$32:$T$550,13,0)," "))) -> 288.71 | G42: =IF($H$11=0," ",IF(B41=$H$11,Simulador!$T$31,+IF(B42>0,VLOOKUP(B42,Simulador!$A$32:$T$550,20,0)," "))) -> 67.67 | H42: =IF($H$11=0," ",IF(B41=$H$11,Simulador!$V$31,+IF(B42>0,VLOOKUP(B42,Simulador!$A$32:$Z$550,22,0)," "))) -> 3177.585
B43: 26 | C43: =IF($H$11=0," ",IF(B42=$H$11,"TOTALES",+IF(B43>0,VLOOKUP(B43,Simulador!$A$32:$T$550,3,0)," "))) -> 2025-03-30 | D43: =IF($H$11=0," ",IF(B42=$H$11,Simulador!$J$33,+IF(B43>0,VLOOKUP(B43,Simulador!$A$32:$T$550,11,0)," "))) -> 915.205 | E43: =IF($H$11=0," ",IF(B42=$H$11,Simulador!$L$31,+IF(B43>0,VLOOKUP(B43,Simulador!$A$32:$T$550,12,0)," "))) -> 1905.35 | F43: =IF($H$11=0," ",IF(B42=$H$11,Simulador!$M$31,+IF(B43>0,VLOOKUP(B43,Simulador!$A$32:$T$550,13,0)," "))) -> 288.71 | G43: =IF($H$11=0," ",IF(B42=$H$11,Simulador!$T$31,+IF(B43>0,VLOOKUP(B43,Simulador!$A$32:$T$550,20,0)," "))) -> 68.32 | H43: =IF($H$11=0," ",IF(B42=$H$11,Simulador!$V$31,+IF(B43>0,VLOOKUP(B43,Simulador!$A$32:$Z$550,22,0)," "))) -> 3177.585
B44: 27 | C44: =IF($H$11=0," ",IF(B43=$H$11,"TOTALES",+IF(B44>0,VLOOKUP(B44,Simulador!$A$32:$T$550,3,0)," "))) -> 2025-04-30 | D44: =IF($H$11=0," ",IF(B43=$H$11,Simulador!$J$33,+IF(B44>0,VLOOKUP(B44,Simulador!$A$32:$T$550,11,0)," "))) -> 897.015 | E44: =IF($H$11=0," ",IF(B43=$H$11,Simulador!$L$31,+IF(B44>0,VLOOKUP(B44,Simulador!$A$32:$T$550,12,0)," "))) -> 1922.97 | F44: =IF($H$11=0," ",IF(B43=$H$11,Simulador!$M$31,+IF(B44>0,VLOOKUP(B44,Simulador!$A$32:$T$550,13,0)," "))) -> 288.71 | G44: =IF($H$11=0," ",IF(B43=$H$11,Simulador!$T$31,+IF(B44>0,VLOOKUP(B44,Simulador!$A$32:$T$550,20,0)," "))) -> 68.89 | H44: =IF($H$11=0," ",IF(B43=$H$11,Simulador!$V$31,+IF(B44>0,VLOOKUP(B44,Simulador!$A$32:$Z$550,22,0)," "))) -> 3177.585
B45: 28 | C45: =IF($H$11=0," ",IF(B44=$H$11,"TOTALES",+IF(B45>0,VLOOKUP(B45,Simulador!$A$32:$T$550,3,0)," "))) -> 2025-05-30 | D45: =IF($H$11=0," ",IF(B44=$H$11,Simulador!$J$33,+IF(B45>0,VLOOKUP(B45,Simulador!$A$32:$T$550,11,0)," "))) -> 1009.435 | E45: =IF($H$11=0," ",IF(B44=$H$11,Simulador!$L$31,+IF(B45>0,VLOOKUP(B45,Simulador!$A$32:$T$550,12,0)," "))) -> 1814.38 | F45: =IF($H$11=0," ",IF(B44=$H$11,Simulador!$M$31,+IF(B45>0,VLOOKUP(B45,Simulador!$A$32:$T$550,13,0)," "))) -> 288.71 | G45: =IF($H$11=0," ",IF(B44=$H$11,Simulador!$T$31,+IF(B45>0,VLOOKUP(B45,Simulador!$A$32:$T$550,20,0)," "))) -> 65.06 | H45: =IF($H$11=0," ",IF(B44=$H$11,Simulador!$V$31,+IF(B45>0,VLOOKUP(B45,Simulador!$A$32:$Z$550,22,0)," "))) -> 3177.585
B46: 29 | C46: =IF($H$11=0," ",IF(B45=$H$11,"TOTALES",+IF(B46>0,VLOOKUP(B46,Simulador!$A$32:$T$550,3,0)," "))) -> 2025-06-30 | D46: =IF($H$11=0," ",IF(B45=$H$11,Simulador!$J$33,+IF(B46>0,VLOOKUP(B46,Simulador!$A$32:$T$550,11,0)," "))) -> 999.535 | E46: =IF($H$11=0," ",IF(B45=$H$11,Simulador!$L$31,+IF(B46>0,VLOOKUP(B46,Simulador!$A$32:$T$550,12,0)," "))) -> 1823.99 | F46: =IF($H$11=0," ",IF(B45=$H$11,Simulador!$M$31,+IF(B46>0,VLOOKUP(B46,Simulador!$A$32:$T$550,13,0)," "))) -> 288.71 | G46: =IF($H$11=0," ",IF(B45=$H$11,Simulador!$T$31,+IF(B46>0,VLOOKUP(B46,Simulador!$A$32:$T$550,20,0)," "))) -> 65.35 | H46: =IF($H$11=0," ",IF(B45=$H$11,Simulador!$V$31,+IF(B46>0,VLOOKUP(B46,Simulador!$A$32:$Z$550,22,0)," "))) -> 3177.585
B47: 30 | C47: =IF($H$11=0," ",IF(B46=$H$11,"TOTALES",+IF(B47>0,VLOOKUP(B47,Simulador!$A$32:$T$550,3,0)," "))) -> 2025-07-30 | D47: =IF($H$11=0," ",IF(B46=$H$11,Simulador!$J$33,+IF(B47>0,VLOOKUP(B47,Simulador!$A$32:$T$550,11,0)," "))) -> 1113.915 | E47: =IF($H$11=0," ",IF(B46=$H$11,Simulador!$L$31,+IF(B47>0,VLOOKUP(B47,Simulador!$A$32:$T$550,12,0)," "))) -> 1713.52 | F47: =IF($H$11=0," ",IF(B46=$H$11,Simulador!$M$31,+IF(B47>0,VLOOKUP(B47,Simulador!$A$32:$T$550,13,0)," "))) -> 288.71 | G47: =IF($H$11=0," ",IF(B46=$H$11,Simulador!$T$31,+IF(B47>0,VLOOKUP(B47,Simulador!$A$32:$T$550,20,0)," "))) -> 61.44 | H47: =IF($H$11=0," ",IF(B46=$H$11,Simulador!$V$31,+IF(B47>0,VLOOKUP(B47,Simulador!$A$32:$Z$550,22,0)," "))) -> 3177.585
B48: 31 | C48: =IF($H$11=0," ",IF(B47=$H$11,"TOTALES",+IF(B48>0,VLOOKUP(B48,Simulador!$A$32:$T$550,3,0)," "))) -> 2025-08-30 | D48: =IF($H$11=0," ",IF(B47=$H$11,Simulador!$J$33,+IF(B48>0,VLOOKUP(B48,Simulador!$A$32:$T$550,11,0)," "))) -> 1113.185 | E48: =IF($H$11=0," ",IF(B47=$H$11,Simulador!$L$31,+IF(B48>0,VLOOKUP(B48,Simulador!$A$32:$T$550,12,0)," "))) -> 1714.27 | F48: =IF($H$11=0," ",IF(B47=$H$11,Simulador!$M$31,+IF(B48>0,VLOOKUP(B48,Simulador!$A$32:$T$550,13,0)," "))) -> 288.71 | G48: =IF($H$11=0," ",IF(B47=$H$11,Simulador!$T$31,+IF(B48>0,VLOOKUP(B48,Simulador!$A$32:$T$550,20,0)," "))) -> 61.42 | H48: =IF($H$11=0," ",IF(B47=$H$11,Simulador!$V$31,+IF(B48>0,VLOOKUP(B48,Simulador!$A$32:$Z$550,22,0)," "))) -> 3177.585
B49: 32 | C49: =IF($H$11=0," ",IF(B48=$H$11,"TOTALES",+IF(B49>0,VLOOKUP(B49,Simulador!$A$32:$T$550,3,0)," "))) -> 2025-09-30 | D49: =IF($H$11=0," ",IF(B48=$H$11,Simulador!$J$33,+IF(B49>0,VLOOKUP(B49,Simulador!$A$32:$T$550,11,0)," "))) -> 1173.065 | E49: =IF($H$11=0," ",IF(B48=$H$11,Simulador!$L$31,+IF(B49>0,VLOOKUP(B49,Simulador!$A$32:$T$550,12,0)," "))) -> 1656.47 | F49: =IF($H$11=0," ",IF(B48=$H$11,Simulador!$M$31,+IF(B49>0,VLOOKUP(B49,Simulador!$A$32:$T$550,13,0)," "))) -> 288.71 | G49: =IF($H$11=0," ",IF(B48=$H$11,Simulador!$T$31,+IF(B49>0,VLOOKUP(B49,Simulador!$A$32:$T$550,20,0)," "))) -> 59.34 | H49: =IF($H$11=0," ",IF(B48=$H$11,Simulador!$V$31,+IF(B49>0,VLOOKUP(B49,Simulador!$A$32:$Z$550,22,0)," "))) -> 3177.585
B50: 33 | C50: =IF($H$11=0," ",IF(B49=$H$11,"TOTALES",+IF(B50>0,VLOOKUP(B50,Simulador!$A$32:$T$550,3,0)," "))) -> 2025-10-30 | D50: =IF($H$11=0," ",IF(B49=$H$11,Simulador!$J$33,+IF(B50>0,VLOOKUP(B50,Simulador!$A$32:$T$550,11,0)," "))) -> 1290.725 | E50: =IF($H$11=0," ",IF(B49=$H$11,Simulador!$L$31,+IF(B50>0,VLOOKUP(B50,Simulador!$A$32:$T$550,12,0)," "))) -> 1542.83 | F50: =IF($H$11=0," ",IF(B49=$H$11,Simulador!$M$31,+IF(B50>0,VLOOKUP(B50,Simulador!$A$32:$T$550,13,0)," "))) -> 288.71 | G50: =IF($H$11=0," ",IF(B49=$H$11,Simulador!$T$31,+IF(B50>0,VLOOKUP(B50,Simulador!$A$32:$T$550,20,0)," "))) -> 55.32 | H50: =IF($H$11=0," ",IF(B49=$H$11,Simulador!$V$31,+IF(B50>0,VLOOKUP(B50,Simulador!$A$32:$Z$550,22,0)," "))) -> 3177.585
B51: 34 | C51: =IF($H$11=0," ",IF(B50=$H$11,"TOTALES",+IF(B51>0,VLOOKUP(B51,Simulador!$A$32:$T$550,3,0)," "))) -> 2025-11-30 | D51: =IF($H$11=0," ",IF(B50=$H$11,Simulador!$J$33,+IF(B51>0,VLOOKUP(B51,Simulador!$A$32:$T$550,11,0)," "))) -> 1305.555 | E51: =IF($H$11=0," ",IF(B50=$H$11,Simulador!$L$31,+IF(B51>0,VLOOKUP(B51,Simulador!$A$32:$T$550,12,0)," "))) -> 1528.56 | F51: =IF($H$11=0," ",IF(B50=$H$11,Simulador!$M$31,+IF(B51>0,VLOOKUP(B51,Simulador!$A$32:$T$550,13,0)," "))) -> 288.71 | G51: =IF($H$11=0," ",IF(B50=$H$11,Simulador!$T$31,+IF(B51>0,VLOOKUP(B51,Simulador!$A$32:$T$550,20,0)," "))) -> 54.76 | H51: =IF($H$11=0," ",IF(B50=$H$11,Simulador!$V$31,+IF(B51>0,VLOOKUP(B51,Simulador!$A$32:$Z$550,22,0)," "))) -> 3177.585
B52: 35 | C52: =IF($H$11=0," ",IF(B51=$H$11,"TOTALES",+IF(B52>0,VLOOKUP(B52,Simulador!$A$32:$T$550,3,0)," "))) -> 2025-12-30 | D52: =IF($H$11=0," ",IF(B51=$H$11,Simulador!$J$33,+IF(B52>0,VLOOKUP(B52,Simulador!$A$32:$T$550,11,0)," "))) -> 1425.735 | E52: =IF($H$11=0," ",IF(B51=$H$11,Simulador!$L$31,+IF(B52>0,VLOOKUP(B52,Simulador!$A$32:$T$550,12,0)," "))) -> 1412.49 | F52: =IF($H$11=0," ",IF(B51=$H$11,Simulador!$M$31,+IF(B52>0,VLOOKUP(B52,Simulador!$A$32:$T$550,13,0)," "))) -> 288.71 | G52: =IF($H$11=0," ",IF(B51=$H$11,Simulador!$T$31,+IF(B52>0,VLOOKUP(B52,Simulador!$A$32:$T$550,20,0)," "))) -> 50.65 | H52: =IF($H$11=0," ",IF(B51=$H$11,Simulador!$V$31,+IF(B52>0,VLOOKUP(B52,Simulador!$A$32:$Z$550,22,0)," "))) -> 3177.585
B53: 36 | C53: =IF($H$11=0," ",IF(B52=$H$11,"TOTALES",+IF(B53>0,VLOOKUP(B53,Simulador!$A$32:$T$550,3,0)," "))) -> 2026-01-30 | D53: =IF($H$11=0," ",IF(B52=$H$11,Simulador!$J$33,+IF(B53>0,VLOOKUP(B53,Simulador!$A$32:$T$550,11,0)," "))) -> 1452.435 | E53: =IF($H$11=0," ",IF(B52=$H$11,Simulador!$L$31,+IF(B53>0,VLOOKUP(B53,Simulador!$A$32:$T$550,12,0)," "))) -> 1386.76 | F53: =IF($H$11=0," ",IF(B52=$H$11,Simulador!$M$31,+IF(B53>0,VLOOKUP(B53,Simulador!$A$32:$T$550,13,0)," "))) -> 288.71 | G53: =IF($H$11=0," ",IF(B52=$H$11,Simulador!$T$31,+IF(B53>0,VLOOKUP(B53,Simulador!$A$32:$T$550,20,0)," "))) -> 49.68 | H53: =IF($H$11=0," ",IF(B52=$H$11,Simulador!$V$31,+IF(B53>0,VLOOKUP(B53,Simulador!$A$32:$Z$550,22,0)," "))) -> 3177.585
B54: 37 | C54: =IF($H$11=0," ",IF(B53=$H$11,"TOTALES",+IF(B54>0,VLOOKUP(B54,Simulador!$A$32:$T$550,3,0)," "))) -> 2026-02-28 | D54: =IF($H$11=0," ",IF(B53=$H$11,Simulador!$J$33,+IF(B54>0,VLOOKUP(B54,Simulador!$A$32:$T$550,11,0)," "))) -> 1620.195 | E54: =IF($H$11=0," ",IF(B53=$H$11,Simulador!$L$31,+IF(B54>0,VLOOKUP(B54,Simulador!$A$32:$T$550,12,0)," "))) -> 1224.73 | F54: =IF($H$11=0," ",IF(B53=$H$11,Simulador!$M$31,+IF(B54>0,VLOOKUP(B54,Simulador!$A$32:$T$550,13,0)," "))) -> 288.71 | G54: =IF($H$11=0," ",IF(B53=$H$11,Simulador!$T$31,+IF(B54>0,VLOOKUP(B54,Simulador!$A$32:$T$550,20,0)," "))) -> 43.95 | H54: =IF($H$11=0," ",IF(B53=$H$11,Simulador!$V$31,+IF(B54>0,VLOOKUP(B54,Simulador!$A$32:$Z$550,22,0)," "))) -> 3177.585
B55: 38 | C55: =IF($H$11=0," ",IF(B54=$H$11,"TOTALES",+IF(B55>0,VLOOKUP(B55,Simulador!$A$32:$T$550,3,0)," "))) -> 2026-03-30 | D55: =IF($H$11=0," ",IF(B54=$H$11,Simulador!$J$33,+IF(B55>0,VLOOKUP(B55,Simulador!$A$32:$T$550,11,0)," "))) -> 1659.655 | E55: =IF($H$11=0," ",IF(B54=$H$11,Simulador!$L$31,+IF(B55>0,VLOOKUP(B55,Simulador!$A$32:$T$550,12,0)," "))) -> 1186.67 | F55: =IF($H$11=0," ",IF(B54=$H$11,Simulador!$M$31,+IF(B55>0,VLOOKUP(B55,Simulador!$A$32:$T$550,13,0)," "))) -> 288.71 | G55: =IF($H$11=0," ",IF(B54=$H$11,Simulador!$T$31,+IF(B55>0,VLOOKUP(B55,Simulador!$A$32:$T$550,20,0)," "))) -> 42.55 | H55: =IF($H$11=0," ",IF(B54=$H$11,Simulador!$V$31,+IF(B55>0,VLOOKUP(B55,Simulador!$A$32:$Z$550,22,0)," "))) -> 3177.585
B56: 39 | C56: =IF($H$11=0," ",IF(B55=$H$11,"TOTALES",+IF(B56>0,VLOOKUP(B56,Simulador!$A$32:$T$550,3,0)," "))) -> 2026-04-30 | D56: =IF($H$11=0," ",IF(B55=$H$11,Simulador!$J$33,+IF(B56>0,VLOOKUP(B56,Simulador!$A$32:$T$550,11,0)," "))) -> 1706.925 | E56: =IF($H$11=0," ",IF(B55=$H$11,Simulador!$L$31,+IF(B56>0,VLOOKUP(B56,Simulador!$A$32:$T$550,12,0)," "))) -> 1141.07 | F56: =IF($H$11=0," ",IF(B55=$H$11,Simulador!$M$31,+IF(B56>0,VLOOKUP(B56,Simulador!$A$32:$T$550,13,0)," "))) -> 288.71 | G56: =IF($H$11=0," ",IF(B55=$H$11,Simulador!$T$31,+IF(B56>0,VLOOKUP(B56,Simulador!$A$32:$T$550,20,0)," "))) -> 40.88 | H56: =IF($H$11=0," ",IF(B55=$H$11,Simulador!$V$31,+IF(B56>0,VLOOKUP(B56,Simulador!$A$32:$Z$550,22,0)," "))) -> 3177.585
B57: 40 | C57: =IF($H$11=0," ",IF(B56=$H$11,"TOTALES",+IF(B57>0,VLOOKUP(B57,Simulador!$A$32:$T$550,3,0)," "))) -> 2026-05-30 | D57: =IF($H$11=0," ",IF(B56=$H$11,Simulador!$J$33,+IF(B57>0,VLOOKUP(B57,Simulador!$A$32:$T$550,11,0)," "))) -> 1834.725 | E57: =IF($H$11=0," ",IF(B56=$H$11,Simulador!$L$31,+IF(B57>0,VLOOKUP(B57,Simulador!$A$32:$T$550,12,0)," "))) -> 1017.66 | F57: =IF($H$11=0," ",IF(B56=$H$11,Simulador!$M$31,+IF(B57>0,VLOOKUP(B57,Simulador!$A$32:$T$550,13,0)," "))) -> 288.71 | G57: =IF($H$11=0," ",IF(B56=$H$11,Simulador!$T$31,+IF(B57>0,VLOOKUP(B57,Simulador!$A$32:$T$550,20,0)," "))) -> 36.49 | H57: =IF($H$11=0," ",IF(B56=$H$11,Simulador!$V$31,+IF(B57>0,VLOOKUP(B57,Simulador!$A$32:$Z$550,22,0)," "))) -> 3177.585
B58: 41 | C58: =IF($H$11=0," ",IF(B57=$H$11,"TOTALES",+IF(B58>0,VLOOKUP(B58,Simulador!$A$32:$T$550,3,0)," "))) -> 2026-06-30 | D58: =IF($H$11=0," ",IF(B57=$H$11,Simulador!$J$33,+IF(B58>0,VLOOKUP(B58,Simulador!$A$32:$T$550,11,0)," "))) -> 1897.395 | E58: =IF($H$11=0," ",IF(B57=$H$11,Simulador!$L$31,+IF(B58>0,VLOOKUP(B58,Simulador!$A$32:$T$550,12,0)," "))) -> 957.19 | F58: =IF($H$11=0," ",IF(B57=$H$11,Simulador!$M$31,+IF(B58>0,VLOOKUP(B58,Simulador!$A$32:$T$550,13,0)," "))) -> 288.71 | G58: =IF($H$11=0," ",IF(B57=$H$11,Simulador!$T$31,+IF(B58>0,VLOOKUP(B58,Simulador!$A$32:$T$550,20,0)," "))) -> 34.29 | H58: =IF($H$11=0," ",IF(B57=$H$11,Simulador!$V$31,+IF(B58>0,VLOOKUP(B58,Simulador!$A$32:$Z$550,22,0)," "))) -> 3177.585
B59: 42 | C59: =IF($H$11=0," ",IF(B58=$H$11,"TOTALES",+IF(B59>0,VLOOKUP(B59,Simulador!$A$32:$T$550,3,0)," "))) -> 2026-07-30 | D59: =IF($H$11=0," ",IF(B58=$H$11,Simulador!$J$33,+IF(B59>0,VLOOKUP(B59,Simulador!$A$32:$T$550,11,0)," "))) -> 2028.805 | E59: =IF($H$11=0," ",IF(B58=$H$11,Simulador!$L$31,+IF(B59>0,VLOOKUP(B59,Simulador!$A$32:$T$550,12,0)," "))) -> 830.3 | F59: =IF($H$11=0," ",IF(B58=$H$11,Simulador!$M$31,+IF(B59>0,VLOOKUP(B59,Simulador!$A$32:$T$550,13,0)," "))) -> 288.71 | G59: =IF($H$11=0," ",IF(B58=$H$11,Simulador!$T$31,+IF(B59>0,VLOOKUP(B59,Simulador!$A$32:$T$550,20,0)," "))) -> 29.77 | H59: =IF($H$11=0," ",IF(B58=$H$11,Simulador!$V$31,+IF(B59>0,VLOOKUP(B59,Simulador!$A$32:$Z$550,22,0)," "))) -> 3177.585
B60: 43 | C60: =IF($H$11=0," ",IF(B59=$H$11,"TOTALES",+IF(B60>0,VLOOKUP(B60,Simulador!$A$32:$T$550,3,0)," "))) -> 2026-08-30 | D60: =IF($H$11=0," ",IF(B59=$H$11,Simulador!$J$33,+IF(B60>0,VLOOKUP(B60,Simulador!$A$32:$T$550,11,0)," "))) -> 2108.525 | E60: =IF($H$11=0," ",IF(B59=$H$11,Simulador!$L$31,+IF(B60>0,VLOOKUP(B60,Simulador!$A$32:$T$550,12,0)," "))) -> 753.36 | F60: =IF($H$11=0," ",IF(B59=$H$11,Simulador!$M$31,+IF(B60>0,VLOOKUP(B60,Simulador!$A$32:$T$550,13,0)," "))) -> 288.71 | G60: =IF($H$11=0," ",IF(B59=$H$11,Simulador!$T$31,+IF(B60>0,VLOOKUP(B60,Simulador!$A$32:$T$550,20,0)," "))) -> 26.99 | H60: =IF($H$11=0," ",IF(B59=$H$11,Simulador!$V$31,+IF(B60>0,VLOOKUP(B60,Simulador!$A$32:$Z$550,22,0)," "))) -> 3177.585
B61: 44 | C61: =IF($H$11=0," ",IF(B60=$H$11,"TOTALES",+IF(B61>0,VLOOKUP(B61,Simulador!$A$32:$T$550,3,0)," "))) -> 2026-09-30 | D61: =IF($H$11=0," ",IF(B60=$H$11,Simulador!$J$33,+IF(B61>0,VLOOKUP(B61,Simulador!$A$32:$T$550,11,0)," "))) -> 2221.915 | E61: =IF($H$11=0," ",IF(B60=$H$11,Simulador!$L$31,+IF(B61>0,VLOOKUP(B61,Simulador!$A$32:$T$550,12,0)," "))) -> 643.89 | F61: =IF($H$11=0," ",IF(B60=$H$11,Simulador!$M$31,+IF(B61>0,VLOOKUP(B61,Simulador!$A$32:$T$550,13,0)," "))) -> 288.71 | G61: =IF($H$11=0," ",IF(B60=$H$11,Simulador!$T$31,+IF(B61>0,VLOOKUP(B61,Simulador!$A$32:$T$550,20,0)," "))) -> 23.07 | H61: =IF($H$11=0," ",IF(B60=$H$11,Simulador!$V$31,+IF(B61>0,VLOOKUP(B61,Simulador!$A$32:$Z$550,22,0)," "))) -> 3177.585
B62: 45 | C62: =IF($H$11=0," ",IF(B61=$H$11,"TOTALES",+IF(B62>0,VLOOKUP(B62,Simulador!$A$32:$T$550,3,0)," "))) -> 2026-10-30 | D62: =IF($H$11=0," ",IF(B61=$H$11,Simulador!$J$33,+IF(B62>0,VLOOKUP(B62,Simulador!$A$32:$T$550,11,0)," "))) -> 2359.495 | E62: =IF($H$11=0," ",IF(B61=$H$11,Simulador!$L$31,+IF(B62>0,VLOOKUP(B62,Simulador!$A$32:$T$550,12,0)," "))) -> 511.06 | F62: =IF($H$11=0," ",IF(B61=$H$11,Simulador!$M$31,+IF(B62>0,VLOOKUP(B62,Simulador!$A$32:$T$550,13,0)," "))) -> 288.71 | G62: =IF($H$11=0," ",IF(B61=$H$11,Simulador!$T$31,+IF(B62>0,VLOOKUP(B62,Simulador!$A$32:$T$550,20,0)," "))) -> 18.32 | H62: =IF($H$11=0," ",IF(B61=$H$11,Simulador!$V$31,+IF(B62>0,VLOOKUP(B62,Simulador!$A$32:$Z$550,22,0)," "))) -> 3177.585
B63: 46 | C63: =IF($H$11=0," ",IF(B62=$H$11,"TOTALES",+IF(B63>0,VLOOKUP(B63,Simulador!$A$32:$T$550,3,0)," "))) -> 2026-11-30 | D63: =IF($H$11=0," ",IF(B62=$H$11,Simulador!$J$33,+IF(B63>0,VLOOKUP(B63,Simulador!$A$32:$T$550,11,0)," "))) -> 2468.295 | E63: =IF($H$11=0," ",IF(B62=$H$11,Simulador!$L$31,+IF(B63>0,VLOOKUP(B63,Simulador!$A$32:$T$550,12,0)," "))) -> 406.03 | F63: =IF($H$11=0," ",IF(B62=$H$11,Simulador!$M$31,+IF(B63>0,VLOOKUP(B63,Simulador!$A$32:$T$550,13,0)," "))) -> 288.71 | G63: =IF($H$11=0," ",IF(B62=$H$11,Simulador!$T$31,+IF(B63>0,VLOOKUP(B63,Simulador!$A$32:$T$550,20,0)," "))) -> 14.55 | H63: =IF($H$11=0," ",IF(B62=$H$11,Simulador!$V$31,+IF(B63>0,VLOOKUP(B63,Simulador!$A$32:$Z$550,22,0)," "))) -> 3177.585
B64: 47 | C64: =IF($H$11=0," ",IF(B63=$H$11,"TOTALES",+IF(B64>0,VLOOKUP(B64,Simulador!$A$32:$T$550,3,0)," "))) -> 2026-12-30 | D64: =IF($H$11=0," ",IF(B63=$H$11,Simulador!$J$33,+IF(B64>0,VLOOKUP(B64,Simulador!$A$32:$T$550,11,0)," "))) -> 2610.545 | E64: =IF($H$11=0," ",IF(B63=$H$11,Simulador!$L$31,+IF(B64>0,VLOOKUP(B64,Simulador!$A$32:$T$550,12,0)," "))) -> 268.7 | F64: =IF($H$11=0," ",IF(B63=$H$11,Simulador!$M$31,+IF(B64>0,VLOOKUP(B64,Simulador!$A$32:$T$550,13,0)," "))) -> 288.71 | G64: =IF($H$11=0," ",IF(B63=$H$11,Simulador!$T$31,+IF(B64>0,VLOOKUP(B64,Simulador!$A$32:$T$550,20,0)," "))) -> 9.63 | H64: =IF($H$11=0," ",IF(B63=$H$11,Simulador!$V$31,+IF(B64>0,VLOOKUP(B64,Simulador!$A$32:$Z$550,22,0)," "))) -> 3177.585
B65: 48 | C65: =IF($H$11=0," ",IF(B64=$H$11,"TOTALES",+IF(B65>0,VLOOKUP(B65,Simulador!$A$32:$T$550,3,0)," "))) -> 2027-01-30 | D65: =IF($H$11=0," ",IF(B64=$H$11,Simulador!$J$33,+IF(B65>0,VLOOKUP(B65,Simulador!$A$32:$T$550,11,0)," "))) -> 2741.425 | E65: =IF($H$11=0," ",IF(B64=$H$11,Simulador!$L$31,+IF(B65>0,VLOOKUP(B65,Simulador!$A$32:$T$550,12,0)," "))) -> 142.35 | F65: =IF($H$11=0," ",IF(B64=$H$11,Simulador!$M$31,+IF(B65>0,VLOOKUP(B65,Simulador!$A$32:$T$550,13,0)," "))) -> 288.71 | G65: =IF($H$11=0," ",IF(B64=$H$11,Simulador!$T$31,+IF(B65>0,VLOOKUP(B65,Simulador!$A$32:$T$550,20,0)," "))) -> 5.1 | H65: =IF($H$11=0," ",IF(B64=$H$11,Simulador!$V$31,+IF(B65>0,VLOOKUP(B65,Simulador!$A$32:$Z$550,22,0)," "))) -> 3177.585
C66: =IF($H$11=0," ",IF(B65=$H$11,"TOTALES",+IF(B66>0,VLOOKUP(B66,Simulador!$A$32:$T$550,3,0)," "))) -> TOTALES | D66: =IF($H$11=0," ",IF(B65=$H$11,Simulador!$J$33,+IF(B66>0,VLOOKUP(B66,Simulador!$A$32:$T$550,11,0)," "))) -> 50000 | E66: =IF($H$11=0," ",IF(B65=$H$11,Simulador!$L$31,+IF(B66>0,VLOOKUP(B66,Simulador!$A$32:$T$550,12,0)," "))) -> 85421.44 | F66: =IF($H$11=0," ",IF(B65=$H$11,Simulador!$M$31,+IF(B66>0,VLOOKUP(B66,Simulador!$A$32:$T$550,13,0)," "))) -> 13858.08 | G66: =IF($H$11=0," ",IF(B65=$H$11,Simulador!$T$31,+IF(B66>0,VLOOKUP(B66,Simulador!$A$32:$T$550,20,0)," "))) -> 3244.73 | H66: =IF($H$11=0," ",IF(B65=$H$11,Simulador!$V$31,+IF(B66>0,VLOOKUP(B66,Simulador!$A$32:$Z$550,22,0)," "))) -> 152524.08
C67: =IF($H$11=0," ",IF(B66=$H$11,"TOTALES",+IF(B67>0,VLOOKUP(B67,Simulador!$A$32:$T$550,3,0)," "))) ->  | D67: =IF($H$11=0," ",IF(B66=$H$11,Simulador!$J$33,+IF(B67>0,VLOOKUP(B67,Simulador!$A$32:$T$550,11,0)," "))) ->  | E67: =IF($H$11=0," ",IF(B66=$H$11,Simulador!$L$31,+IF(B67>0,VLOOKUP(B67,Simulador!$A$32:$T$550,12,0)," "))) ->  | F67: =IF($H$11=0," ",IF(B66=$H$11,Simulador!$M$31,+IF(B67>0,VLOOKUP(B67,Simulador!$A$32:$T$550,13,0)," "))) ->  | G67: =IF($H$11=0," ",IF(B66=$H$11,Simulador!$T$31,+IF(B67>0,VLOOKUP(B67,Simulador!$A$32:$T$550,20,0)," "))) ->  | H67: =IF($H$11=0," ",IF(B66=$H$11,#REF!,+IF(B67>0,VLOOKUP(B67,Simulador!$A$32:$Z$550,22,0)," "))) -> 
C68: =IF($H$11=0," ",IF(B67=$H$11,"TOTALES",+IF(B68>0,VLOOKUP(B68,Simulador!$A$32:$T$550,3,0)," "))) ->  | D68: =IF($H$11=0," ",IF(B67=$H$11,Simulador!$J$33,+IF(B68>0,VLOOKUP(B68,Simulador!$A$32:$T$550,11,0)," "))) ->  | E68: =IF($H$11=0," ",IF(B67=$H$11,Simulador!$L$31,+IF(B68>0,VLOOKUP(B68,Simulador!$A$32:$T$550,12,0)," "))) ->  | F68: =IF($H$11=0," ",IF(B67=$H$11,Simulador!$M$31,+IF(B68>0,VLOOKUP(B68,Simulador!$A$32:$T$550,13,0)," "))) ->  | G68: =IF($H$11=0," ",IF(B67=$H$11,Simulador!$T$31,+IF(B68>0,VLOOKUP(B68,Simulador!$A$32:$T$550,20,0)," "))) ->  | H68: =IF($H$11=0," ",IF(B67=$H$11,#REF!,+IF(B68>0,VLOOKUP(B68,Simulador!$A$32:$Z$550,22,0)," "))) -> 

Sheet Simulador (hidden)
C2: SIMULADOR DE CUOTAS - CRÉDITO PLD
C5: Importe Solicitado | H5: =+Hoja1!C8 -> 50000 | L5: Fecha Desembolso | Q5: =+Hoja1!C9 -> 2022-12-01
C6: Saldo de Capital | H6: =H5 -> 50000 | L6: Fecha Final de Gracia | Q6: =+DATE(YEAR(Q5+H15),MONTH(Q5+H15),DAY(Q5+H15)) -> 2023-01-30
C7: Saldo de Interes | H7: 0 | L7: Fecha de la 1° cuota | Q7: =DATE(YEAR(EDATE(Q6,1)),MONTH(EDATE(Q6,1)),DAY(EDATE(Q6,1))) -> 2023-02-28
C8: Tasa Anual (TEA) | H8: =+Hoja1!C11 -> 80 | L8: Fecha final de vencimiento | Q8: =IF(OR($H$16>0,$H$17>0),VLOOKUP($H$14,$A$33:$C$272,3,0),DATE(YEAR(EDATE(Q6,H14)),MONTH(EDATE(Q6,H14)),DAY(EDATE(Q6,H14)))) -> 2027-01-30
C9: Tasa de Seguro de Desgravamen | H9: =+IF(Hoja1!C13="Endoso",0,IF(Hoja1!C13="Seguro con retorno",0.346%,0.18%)) -> 0.0018 | L9: Base | Q9: 360
C10: Tasa Anual (TEA) - Ajustada | H10: =+H8 -> 80 | L10: Frecuencia pago en días | Q10: 30
C11: Comision por Env. Inf | H11: 0 | L11: Tasa Equivalente - Ajustada | Q11: =ROUND((((H10/100+1)^(1/(Q9/Q10))-1)*Q9/Q10)*100,6) -> 60.242016 | R11: tea conv. A tem luego nominal anual
C12: Valor Asegurable | H12: 0 | L12: Días entre cuotas | Q12: =(Q8-Q6)/H14 -> 30.4375 | R12: dias promedio entre cuotas
C13: Tasa de Seguro Todo Riesgo | H13: 0 | I13: =+H13*12 -> 0 | J13: =+I13/365*30*H12 -> 0 | L13: Factor Aplicado - Ajustada | Q13: =ROUND(($Q$11/100)/($Q$9/$Q$12),8) -> 0.05093379 | R13: tem convertida de manera nominal a los dias entre cuotas
C14: Plazo y Nro. Cuotas | H14: =+Hoja1!C10 -> 48 | I14: =H14 -> 48 | L14: Factor Aplicado para la cuota - Ajustada | Q14: =1/((1-((1+$Q$13)^(-1*$H$14)))/$Q$13) -> 0.05610227672 | R14: Factor de cuota (ok)
C15: Días de Gracia | H15: =+Hoja1!C12 -> 60 | L15: Interes de Gracia (Se considera la TEA Normal) | Q15: =IF(H15>0,ROUND(H6*(((1+H8/100)^(ABS(H15)/Q9))-1),4),ROUND(H6*(((1+H8/100)^(ABS(H15)/Q9))-1),4) * -1) -> 5146.1785 | R15: Ok
C16: Mes de No Pago 1 | H16: 0 | L16: Saldo Interes +/- Interes Gracia | Q16: =IF(H7 + Q15>0,H7+ Q15,0) -> 5146.1785
C17: Mes de No Pago 2 | H17: 0 | L17: Seg Desg de Gracia | Q17: =IF(H15>0,ROUNDDOWN(H5*H9/30*H15,2),ROUNDDOWN(H5*H9/30*H15,2)*0) -> 180
C18: Mes Cuota Doble 1 | H18: =+IF(Hoja1!C14="No",0,IF(Hoja1!C14="Julio",7,12)) -> 0 | L18: TCEA | Q18: =+$AH$31 -> 0.8340472201
C19: Mes Cuota Doble 2 | H19: =+IF(Hoja1!C15="No",0,IF(Hoja1!C15="Julio",7,12)) -> 0
O21: Suavización | U21: Validador Cuota Doble
O22: Ultimo saldo de Principal | Q22: =VLOOKUP(I14,$F$32:$W$272,18,FALSE) -> 0.33 | U22: Cuota Simple | W22: =+VLOOKUP("",$D$33:$V$272,19,0) -> 3177.585
F23: Valor de cuota por dias de gracia | J23: =+ROUND(IF(OR(H16+H17>0,H18+H19>0),Q16/VLOOKUP(H14,'Calculos PLD'!$A$3:$G$386,7,FALSE),Simulador!Q16*Simulador!$Q$14),2) -> 288.71 | K23: =Q16/SUM(AN33:INDIRECT(CONCATENATE("AE",32+I14-1))) -> 0.00196781812 | O23: Numero de Dias | Q23: =Q8-Q6 -> 1461 | U23: Cuota Doble | W23: =+IFERROR(VLOOKUP("D",$D$33:$V$272,19,0)," ") -> 
F24: Valor de cuota por capital | J24: =ROUND(IF(OR(H16 + H17 > 0,H18 + H19>0), ROUNDUP(H6/VLOOKUP(H14,'Calculos PLD'!$A$3:$G$386,7,FALSE),2),H6*$Q$14),2) -> 2805.11 | L24: sin desgravamen | O24: Valor de Cuota Nivelada | Q24: =ROUND(+Q22/ROUND(1*(((1+H10/100)^(Q23/Q9))-1),4),2) -> 0.03 | U24: Factor | W24: =+IFERROR(W23/W22," ") -> 
F25: Valor de Seg Desg por dia de gracia | J25: =$Q$17/(($I$14+COUNTIF(D33:INDIRECT(CONCATENATE("C",32+I14-1)),"D"))*(1/((1+0)^($Q$10/$Q$9)))) -> 3.75
F26: Seguro de Desgravamen (FPF) | J26: =$H$5*$H$9 -> 90 | O26: Factor Ajuste | Q26: =Q24*Q14 -> 0.001683068302 | S26: Se copia LO DEL COSTADO a partir de la primera corrida | U26: Calce de Capital
F27: Comision por Env.Inf | J27: 0 | O27: Exceso de Int + Gracia | Q27: =SUM(X33:X152) -> 0 | R27: =ROUND(IF(OR(H16+ H17> 0,H18 + H19>0),ROUNDUP($Q$27/VLOOKUP(H14,'Calculos PLD'!$A$3:$G$386,7,FALSE),2),$Q$27*$Q$14),2) -> 0 | S27: 0 | U27: Suma Capital (K) | W27: =+SUM($K$33:$K$272) -> 49999.83
F28: Seguro Todo Riesgo | J28: =ROUND($H$12*$H$13,2) -> 0 | O28: Factor Ajuste 2 | Q28: =+Q22/H14 -> 0.006875 | U28: Validador | W28: =+$H$5-W27 -> 0.1699999978 | AA28: <- El valor tiene que ser cercano a cero.
F29: Cuota | J29: =J23+J24+J26+J27+ J28+J25 -> 3187.57 | O29: Digite Factor de Ajuste Anterior mas El Actual | Q29: 83.765 | R29: Se actualiza en cada simulación (Validar que la celda W28 sea cero) | T29: =$W$272 -> 
L31: =+SUM(L33:L272) -> 85421.44 | M31: 13858.08 | N31: 99279.52 | O31: 149279.35 | P31: 0 | Q31: 3064.73 | R31: 180 | S31: 0 | T31: =+SUM(T33:T272) -> 3244.73 | U31: 0 | V31: =+SUM(V33:V272) -> 152524.08 | AG31: TIR | AH31: =(1+XIRR(AH32:AH272,AG32:AG272))^(360/365)-1 -> 0.8340472201 | AM31: Minicronograma de Gracia
C32: Fecha Vcto. | D32: Marca | E32: Nro. Cuota (De acuerdo a Plazo) | F32: Nro. Cuota | G32: Periodo Base | H32: Tasa | I32: Nro. Dias | J32: Principal* | K32: Capital | L32: Interes | M32: Interes de Gracia | N32: Interes Total | O32: Valor Cuota (variable) | P32: Comision por Env. Inf | Q32: Tasa de Seguro de Desgravamen* | R32: Importe de Gracia Desgravamen | S32: Importe Desgravamen por No Pago | T32: Seg. Desgravamen Total | U32: Seguro Todo Riesgo | V32: Cuota | W32: Saldo Principal | X32: Exceso | Y32: Nuevo Interes I | Z32: Nuevo Desgravamen I (no se utiliza) | AA32: Nuevo Interes (SF2INT) replica columna L | AB32: Nuevo Desgravamen (SF2GRV) replica columna Q | AC32: Desgravamen Gracia replica columna R | AD32: Desgravamen No Pago S | AE32: Total Cuota (SF2PAG) igual a columna V | AG32: =+Q5 -> 2022-12-01 | AH32: =-H5 -> -50000 | AJ32: VALIDADORES | AM32: Dias Transcurridos Acumulados | AN32: Factor Simple Actualizacion | AO32: Principal | AP32: Capital | AQ32: Interes | AR32: Cuota Gracia | AS32: Saldo Deuda
A33: 1 | B33: =IF(A33="","",IF(A33<=$H$22,0,1)) -> 1 | C33: =IF(OR(MONTH(EDATE($Q$6,E33))=$H$16,MONTH(EDATE($Q$6,E33))=$H$17),IF(ABS($H$17-$H$16)=1,EDATE($Q$6,E33+2),EDATE($Q$6,E33+1)),EDATE($Q$6,E33)) -> 2023-02-28 | D33: =IF(B33="","",IF(OR(MONTH(C33)=$H$18,MONTH(C33)=$H$19),"D","")) ->  | E33: =IF(OR(MONTH(Q7)=H16, MONTH(Q7)=H17),IF(ABS(H17-H16)=1,3,2),1) -> 1 | F33: =1 -> 1 | G33: =$Q$9 -> 360 | H33: =IF(B33="","",$H$10) -> 80 | I33: =C33-Q6 -> 29 | J33: =H6 -> 50000 | K33: =IF(B33="","",IF((IF(ISERROR(MATCH(MONTH(C33),$H$18:$H$19,0))=FALSE,$J$24 + $Q$29,0) + $J$24+$Q$29+$S$27)-L33<0,0.01,IF(ISERROR(MATCH(MONTH(C33),$H$18:$H$19,0))=FALSE,$J$24 + $Q$29,0)+ ($J$24+$Q$29+$S$27)-L33)- R33 -S33-Q33) -> 194.455 | L33: =IF(B33="","",IF($J$24+$Q$29<ROUND(ROUND(J33*(((1+(H33/100))^(I33/G33))-1),4),2),$J$24+$Q$29 +-0.01,IF(ROUND(ROUND(J33*(((1+(H33/100))^(I33/G33))-1),4),2)>$J$24,$J$24+ -0.01,ROUND(ROUND(J33*(((1+(H33/100))^(I33/G33))-1),4),2)))) -> 2424.42 | M33: =IF(B33="","",IF(ISERROR(MATCH(MONTH(C33),$H$18:$H$19,0))=FALSE,$J$23,0) + $J$23) -> 288.71 | N33: =IF(B33="","",L33+M33) -> 2713.13 | O33: =IF(B33="","",K33+N33) -> 2907.585 | P33: =IF(B33="","",$J$27) -> 0 | Q33: =IF(B33="","",ROUND($H$9*J33,2)) -> 90 | R33: =IF(B33="","",(E33-F33)*ROUNDDOWN($H$5*$H$9/30*30,2) + ROUNDDOWN($H$5*$H$9/30*H15,2)) -> 180 | S33: =IF(B33="","",IF(E33-0>1,ROUNDDOWN($J33*$H$9/30*(DATE(YEAR($C33),MONTH($C33)-1,DAY($C33))-C32),2),0)) -> 0 | T33: =IF(B33="","",Q33+R33+S33) -> 270 | U33: =IF(B33="","",$J$28) -> 0 | V33: =IF(B33="","",O33+P33+Q33+R33+S33+U33) -> 3177.585 | W33: =IF(B33="","",(ROUND(J33-K33,2))) -> 49805.55 | X33: =IF(B33="","",IF(ROUND(ROUND(J33*(((1+(H33/100))^(I33/G33))-1),4),2) - $J$24<0,0,ROUND(ROUND(J33*(((1+(H33/100))^(I33/G33))-1),4),2) - $J$24)) -> 0 | Z33: =SUM(K33:M33) -> 2907.585 | AA33: =+L33 -> 2424.42 | AB33: =+Q33 -> 90 | AC33: 180 | AD33: 0 | AE33: =IFERROR(AA33+K33 + P33 + U33+AB33 + M33 + AC33 + AD33,"") -> 3177.585 | AF33: =IFERROR(IF(D33="D",$J$24*2,$J$24)+Q33,0) -> 2895.11 | AG33: =+IF(C33="",0,C33) -> 2023-02-28 | AH33: =+IF(AE33="",0,AE33) -> 3177.585 | AJ33: =+IFERROR(AE33-V33,0) -> 0 | AK33: =+IFERROR(AA33-L33,0) -> 0 | AM33: =I33 -> 29 | AN33: =(1/((1+($J$8/100))^(AM33/$Q$9))*1) * IF(D33="D",2,1) -> 1 | AO33: =Q16 -> 5146.1785 | AP33: =AR33-AQ33 -> 0.00196781812 | AQ33: =(((1+($J$8/100))^((K33)/$Q$9))-1)*AO33 -> 0 | AR33: =IF(D33="D",$K$23,0)+ $K$23 -> 0.00196781812 | AS33: =AO33-AP33 -> 5146.176532
A34: =+IF(A33>=$H$14,"",A33+1) -> 2 | B34: =IF(A34="","",IF(A34<=$H$22,0,1)) -> 1 | C34: =IF(B34="","",IF(OR(MONTH(EDATE($Q$6,E34))=$H$16,MONTH(EDATE($Q$6,E34))=$H$17),IF(ABS($H$17-$H$16)=1,EDATE($Q$6,E34+2),EDATE($Q$6,E34+1)),EDATE($Q$6,E34))) -> 2023-03-30 | E34: =+IF(B34="","",IF(OR(MONTH(DATE(YEAR(C33)+0.0833333333333333,MONTH(C33)+1,DAY(C33)))=$H$16,MONTH(DATE(YEAR(C33)+0.5,MONTH(C33)+1,DAY(C33)))=$H$17),IF(ABS($H$17-$H$16)=1,E33+1,E33+2),E33+1)) -> 2 | F34: =+IF(B34="","",F33+1) -> 2 | G34: =IF(B34="","",$Q$9) -> 360 | H34: =IF(B34="","",$H$10) -> 80 | I34: =IF(B34="","",C34-C33) -> 30 | J34: =IF(B34="","",W33) -> 49805.55 | K34: 298.905 | L34: 2500.32 | M34: 288.71 | N34: 2789.03 | O34: 3087.935 | P34: 0 | Q34: =IF(B34="","",ROUND($H$9*J34/30*$I34,2)-S34) -> 89.65 | S34: =IF(B34="","",IF(E34-E33>1,ROUNDDOWN($J34*$H$9/30*(DATE(YEAR($C34),MONTH($C34)-1,DAY($C34))-C33),2),0)) -> 0 | T34: 89.65 | U34: 0 | V34: =IF(B34="","",O34+P34+Q34+R34+S34+U34) -> 3177.585 | W34: 49506.65 | X34: 0 | Z34: 3087.935 | AA34: =+L34 -> 2500.32 | AB34: 89.65 | AC34: 0 | AD34: 0 | AE34: 3177.585 | AF34: =IFERROR(IF(D34="D",$J$24*2,$J$24)+Q34,0) -> 2894.76 | AG34: 2023-03-30 | AH34: 3177.585 | AJ34: =+IFERROR(AE34-V34,0) -> 0 | AK34: =+IFERROR(AA34-L34,0) -> 0 | AM34: =I34 + AM33 -> 59 | AN34: 1 | AO34: =AS33 -> 5146.176532 | AP34: =AR34-AQ34 -> 0.00196781812 | AQ34: 0 | AR34: 0.00196781812 | AS34: =AO34-AP34 -> 5146.174564
A35: =+IF(A34>=$H$14,"",A34+1) -> 3 | B35: 1 | C35: 2023-04-30 | E35: =+IF(B35="","",IF(OR(MONTH(DATE(YEAR(C34)+0.0833333333333333,MONTH(C34)+1,DAY(C34)))=$H$16,MONTH(DATE(YEAR(C34)+0.5,MONTH(C34)+1,DAY(C34)))=$H$17),IF(ABS($H$17-$H$16)=1,E34+1,E34+2),E34+1)) -> 3 | F35: =+IF(B35="","",F34+1) -> 3 | G35: =IF(B35="","",$Q$9) -> 360 | H35: 80 | I35: =IF(B35="","",C35-C34) -> 31 | J35: =IF(B35="","",W34) -> 49506.65 | K35: 226.515 | L35: 2570.28 | M35: 288.71 | N35: 2858.99 | O35: 3085.505 | P35: 0 | Q35: =IF(B35="","",ROUND($H$9*J35/30*$I35,2)-S35) -> 92.08 | S35: 0 | T35: 92.08 | U35: 0 | V35: 3177.585 | W35: 49280.14 | X35: 0 | Z35: 3085.505 | AA35: 2570.28 | AB35: 92.08 | AC35: 0 | AD35: 0 | AE35: 3177.585 | AF35: 2897.19 | AG35: 2023-04-30 | AH35: 3177.585 | AJ35: 0 | AK35: 0 | AM35: 90 | AN35: 1 | AO35: =AS34 -> 5146.174564 | AP35: 0.00196781812 | AQ35: 0 | AR35: 0.00196781812 | AS35: 5146.172597
A36: 4 | B36: 1 | C36: 2023-05-30 | E36: 4 | F36: 4 | G36: 360 | H36: 80 | I36: 30 | J36: 49280.14 | K36: 326.225 | L36: 2473.95 | M36: 288.71 | N36: 2762.66 | O36: 3088.885 | P36: 0 | Q36: 88.7 | S36: 0 | T36: 88.7 | U36: 0 | V36: 3177.585 | W36: 48953.91 | X36: 0 | Z36: 3088.885 | AA36: 2473.95 | AB36: 88.7 | AC36: 0 | AD36: 0 | AE36: 3177.585 | AF36: 2893.81 | AG36: 2023-05-30 | AH36: 3177.585 | AJ36: 0 | AK36: 0 | AM36: 120 | AN36: 1 | AO36: 5146.172597 | AP36: 0.00196781812 | AQ36: 0 | AR36: 0.00196781812 | AS36: 5146.170629
A37: 5 | B37: 1 | C37: 2023-06-30 | E37: 5 | F37: 5 | G37: 360 | H37: 80 | I37: 31 | J37: 48953.91 | K37: 256.245 | L37: 2541.58 | M37: 288.71 | N37: 2830.29 | O37: 3086.535 | P37: 0 | Q37: 91.05 | S37: 0 | T37: 91.05 | U37: 0 | V37: 3177.585 | W37: 48697.67 | X37: 0 | Z37: 3086.535 | AA37: 2541.58 | AB37: 91.05 | AC37: 0 | AD37: 0 | AE37: 3177.585 | AF37: 2896.16 | AG37: 2023-06-30 | AH37: 3177.585 | AJ37: 0 | AK37: 0 | AM37: 151 | AN37: 1 | AO37: 5146.170629 | AP37: 0.00196781812 | AQ37: 0 | AR37: 0.00196781812 | AS37: 5146.168661
A38: 6 | B38: 1 | C38: 2023-07-30 | E38: 6 | F38: 6 | G38: 360 | H38: 80 | I38: 30 | J38: 48697.67 | K38: 356.515 | L38: 2444.7 | M38: 288.71 | N38: 2733.41 | O38: 3089.925 | P38: 0 | Q38: 87.66 | S38: 0 | T38: 87.66 | U38: 0 | V38: 3177.585 | W38: 48341.16 | X38: 0 | Z38: 3089.925 | AA38: 2444.7 | AB38: 87.66 | AC38: 0 | AD38: 0 | AE38: 3177.585 | AF38: 2892.77 | AG38: 2023-07-30 | AH38: 3177.585 | AJ38: 0 | AK38: 0 | AM38: 181 | AN38: 1 | AO38: 5146.168661 | AP38: 0.00196781812 | AQ38: 0 | AR38: 0.00196781812 | AS38: 5146.166693
A39: 7 | B39: 1 | C39: 2023-08-30 | E39: 7 | F39: 7 | G39: 360 | H39: 80 | I39: 31 | J39: 48341.16 | K39: 289.195 | L39: 2509.77 | M39: 288.71 | N39: 2798.48 | O39: 3087.675 | P39: 0 | Q39: 89.91 | S39: 0 | T39: 89.91 | U39: 0 | V39: 3177.585 | W39: 48051.97 | X39: 0 | Z39: 3087.675 | AA39: 2509.77 | AB39: 89.91 | AC39: 0 | AD39: 0 | AE39: 3177.585 | AF39: 2895.02 | AG39: 2023-08-30 | AH39: 3177.585 | AJ39: 0 | AK39: 0 | AM39: 212 | AN39: 1 | AO39: 5146.166693 | AP39: 0.00196781812 | AQ39: 0 | AR39: 0.00196781812 | AS39: 5146.164725
A40: 8 | B40: 1 | C40: 2023-09-30 | E40: 8 | F40: 8 | G40: 360 | H40: 80 | I40: 31 | J40: 48051.97 | K40: 304.745 | L40: 2494.75 | M40: 288.71 | N40: 2783.46 | O40: 3088.205 | P40: 0 | Q40: 89.38 | S40: 0 | T40: 89.38 | U40: 0 | V40: 3177.585 | W40: 47747.23 | X40: 0 | Z40: 3088.205 | AA40: 2494.75 | AB40: 89.38 | AC40: 0 | AD40: 0 | AE40: 3177.585 | AF40: 2894.49 | AG40: 2023-09-30 | AH40: 3177.585 | AJ40: 0 | AK40: 0 | AM40: 243 | AN40: 1 | AO40: 5146.164725 | AP40: 0.00196781812 | AQ40: 0 | AR40: 0.00196781812 | AS40: 5146.162757
A41: 9 | B41: 1 | C41: 2023-10-30 | E41: 9 | F41: 9 | G41: 360 | H41: 80 | I41: 30 | J41: 47747.23 | K41: 405.935 | L41: 2396.99 | M41: 288.71 | N41: 2685.7 | O41: 3091.635 | P41: 0 | Q41: 85.95 | S41: 0 | T41: 85.95 | U41: 0 | V41: 3177.585 | W41: 47341.3 | X41: 0 | Z41: 3091.635 | AA41: 2396.99 | AB41: 85.95 | AC41: 0 | AD41: 0 | AE41: 3177.585 | AF41: 2891.06 | AG41: 2023-10-30 | AH41: 3177.585 | AJ41: 0 | AK41: 0 | AM41: 273 | AN41: 1 | AO41: 5146.162757 | AP41: 0.00196781812 | AQ41: 0 | AR41: 0.00196781812 | AS41: 5146.16079
A42: 10 | B42: 1 | C42: 2023-11-30 | E42: 10 | F42: 10 | G42: 360 | H42: 80 | I42: 31 | J42: 47341.3 | K42: 342.965 | L42: 2457.86 | M42: 288.71 | N42: 2746.57 | O42: 3089.535 | P42: 0 | Q42: 88.05 | S42: 0 | T42: 88.05 | U42: 0 | V42: 3177.585 | W42: 46998.34 | X42: 0 | Z42: 3089.535 | AA42: 2457.86 | AB42: 88.05 | AC42: 0 | AD42: 0 | AE42: 3177.585 | AF42: 2893.16 | AG42: 2023-11-30 | AH42: 3177.585 | AJ42: 0 | AK42: 0 | AM42: 304 | AN42: 1 | AO42: 5146.16079 | AP42: 0.00196781812 | AQ42: 0 | AR42: 0.00196781812 | AS42: 5146.158822
A43: 11 | B43: 1 | C43: 2023-12-30 | E43: 11 | F43: 11 | G43: 360 | H43: 80 | I43: 30 | J43: 46998.34 | K43: 444.875 | L43: 2359.4 | M43: 288.71 | N43: 2648.11 | O43: 3092.985 | P43: 0 | Q43: 84.6 | S43: 0 | T43: 84.6 | U43: 0 | V43: 3177.585 | W43: 46553.47 | X43: 0 | Z43: 3092.985 | AA43: 2359.4 | AB43: 84.6 | AC43: 0 | AD43: 0 | AE43: 3177.585 | AF43: 2889.71 | AG43: 2023-12-30 | AH43: 3177.585 | AJ43: 0 | AK43: 0 | AM43: 334 | AN43: 1 | AO43: 5146.158822 | AP43: 0.00196781812 | AQ43: 0 | AR43: 0.00196781812 | AS43: 5146.156854
A44: 12 | B44: 1 | C44: 2024-01-30 | E44: 12 | F44: 12 | G44: 360 | H44: 80 | I44: 31 | J44: 46553.47 | K44: 385.335 | L44: 2416.95 | M44: 288.71 | N44: 2705.66 | O44: 3090.995 | P44: 0 | Q44: 86.59 | S44: 0 | T44: 86.59 | U44: 0 | V44: 3177.585 | W44: 46168.14 | X44: 0 | Z44: 3090.995 | AA44: 2416.95 | AB44: 86.59 | AC44: 0 | AD44: 0 | AE44: 3177.585 | AF44: 2891.7 | AG44: 2024-01-30 | AH44: 3177.585 | AJ44: 0 | AK44: 0 | AM44: 365 | AN44: 1 | AO44: 5146.156854 | AP44: 0.00196781812 | AQ44: 0 | AR44: 0.00196781812 | AS44: 5146.154886
A45: 13 | B45: 1 | C45: 2024-02-29 | E45: 13 | F45: 13 | G45: 360 | H45: 80 | I45: 30 | J45: 46168.14 | K45: 488.055 | L45: 2317.72 | M45: 288.71 | N45: 2606.43 | O45: 3094.485 | P45: 0 | Q45: 83.1 | S45: 0 | T45: 83.1 | U45: 0 | V45: 3177.585 | W45: 45680.09 | X45: 0 | Z45: 3094.485 | AA45: 2317.72 | AB45: 83.1 | AC45: 0 | AD45: 0 | AE45: 3177.585 | AF45: 2888.21 | AG45: =+IF(C45="",0,C45) -> 2024-02-29 | AH45: =+IF(AE45="",0,AE45) -> 3177.585 | AJ45: 0 | AK45: 0 | AM45: 395 | AN45: 1 | AO45: 5146.154886 | AP45: 0.00196781812 | AQ45: 0 | AR45: 0.00196781812 | AS45: 5146.152918
A46: 14 | B46: 1 | C46: 2024-03-30 | E46: 14 | F46: 14 | G46: 360 | H46: 80 | I46: 30 | J46: 45680.09 | K46: 513.435 | L46: 2293.22 | M46: 288.71 | N46: 2581.93 | O46: 3095.365 | P46: 0 | Q46: 82.22 | S46: 0 | T46: 82.22 | U46: 0 | V46: 3177.585 | W46: 45166.65 | X46: 0 | Z46: 3095.365 | AA46: 2293.22 | AB46: 82.22 | AC46: 0 | AD46: 0 | AE46: 3177.585 | AF46: 2887.33 | AG46: =+IF(C46="",0,C46) -> 2024-03-30 | AH46: =+IF(AE46="",0,AE46) -> 3177.585 | AJ46: 0 | AK46: 0 | AM46: 425 | AN46: 1 | AO46: 5146.152918 | AP46: 0.00196781812 | AQ46: 0 | AR46: 0.00196781812 | AS46: 5146.150951
A47: 15 | B47: 1 | C47: 2024-04-30 | E47: 15 | F47: 15 | G47: 360 | H47: 80 | I47: 31 | J47: 45166.65 | K47: 459.915 | L47: 2344.95 | M47: 288.71 | N47: 2633.66 | O47: 3093.575 | P47: 0 | Q47: 84.01 | S47: 0 | T47: 84.01 | U47: 0 | V47: 3177.585 | W47: 44706.74 | X47: 0 | Z47: 3093.575 | AA47: 2344.95 | AB47: 84.01 | AC47: 0 | AD47: 0 | AE47: 3177.585 | AF47: 2889.12 | AG47: 2024-04-30 | AH47: 3177.585 | AJ47: 0 | AK47: 0 | AM47: 456 | AN47: 1 | AO47: 5146.150951 | AP47: 0.00196781812 | AQ47: 0 | AR47: 0.00196781812 | AS47: 5146.148983
A48: 16 | B48: 1 | C48: 2024-05-30 | E48: 16 | F48: 16 | G48: 360 | H48: 80 | I48: 30 | J48: 44706.74 | K48: 564.055 | L48: 2244.35 | M48: 288.71 | N48: 2533.06 | O48: 3097.115 | P48: 0 | Q48: 80.47 | S48: 0 | T48: 80.47 | U48: 0 | V48: 3177.585 | W48: 44142.69 | X48: 0 | Z48: 3097.115 | AA48: 2244.35 | AB48: 80.47 | AC48: 0 | AD48: 0 | AE48: 3177.585 | AF48: 2885.58 | AG48: 2024-05-30 | AH48: 3177.585 | AJ48: 0 | AK48: 0 | AM48: 486 | AN48: 1 | AO48: 5146.148983 | AP48: 0.00196781812 | AQ48: 0 | AR48: 0.00196781812 | AS48: 5146.147015
A49: 17 | B49: 1 | C49: 2024-06-30 | E49: 17 | F49: 17 | G49: 360 | H49: 80 | I49: 31 | J49: 44142.69 | K49: 514.975 | L49: 2291.79 | M49: 288.71 | N49: 2580.5 | O49: 3095.475 | P49: 0 | Q49: 82.11 | S49: 0 | T49: 82.11 | U49: 0 | V49: 3177.585 | W49: 43627.72 | X49: 0 | Z49: 3095.475 | AA49: 2291.79 | AB49: 82.11 | AC49: 0 | AD49: 0 | AE49: 3177.585 | AF49: 2887.22 | AG49: 2024-06-30 | AH49: 3177.585 | AJ49: 0 | AK49: 0 | AM49: 517 | AN49: 1 | AO49: 5146.147015 | AP49: 0.00196781812 | AQ49: 0 | AR49: 0.00196781812 | AS49: 5146.145047
A50: 18 | B50: 1 | C50: 2024-07-30 | E50: 18 | F50: 18 | G50: 360 | H50: 80 | I50: 30 | J50: 43627.72 | K50: 620.165 | L50: 2190.18 | M50: 288.71 | N50: 2478.89 | O50: 3099.055 | P50: 0 | Q50: 78.53 | S50: 0 | T50: 78.53 | U50: 0 | V50: 3177.585 | W50: 43007.56 | X50: 0 | Z50: 3099.055 | AA50: 2190.18 | AB50: 78.53 | AC50: 0 | AD50: 0 | AE50: 3177.585 | AF50: 2883.64 | AG50: 2024-07-30 | AH50: 3177.585 | AJ50: 0 | AK50: 0 | AM50: 547 | AN50: 1 | AO50: 5146.145047 | AP50: 0.00196781812 | AQ50: 0 | AR50: 0.00196781812 | AS50: 5146.143079
A51: 19 | B51: 1 | C51: 2024-08-30 | E51: 19 | F51: 19 | G51: 360 | H51: 80 | I51: 31 | J51: 43007.56 | K51: 576.025 | L51: 2232.86 | M51: 288.71 | N51: 2521.57 | O51: 3097.595 | P51: 0 | Q51: 79.99 | S51: 0 | T51: 79.99 | U51: 0 | V51: 3177.585 | W51: 42431.54 | X51: 0 | Z51: 3097.595 | AA51: 2232.86 | AB51: 79.99 | AC51: 0 | AD51: 0 | AE51: 3177.585 | AF51: 2885.1 | AG51: 2024-08-30 | AH51: 3177.585 | AJ51: 0 | AK51: 0 | AM51: 578 | AN51: 1 | AO51: 5146.143079 | AP51: 0.00196781812 | AQ51: 0 | AR51: 0.00196781812 | AS51: 5146.141111
A52: 20 | B52: 1 | C52: 2024-09-30 | E52: 20 | F52: 20 | G52: 360 | H52: 80 | I52: 31 | J52: 42431.54 | K52: 607.005 | L52: 2202.95 | M52: 288.71 | N52: 2491.66 | O52: 3098.665 | P52: 0 | Q52: 78.92 | S52: 0 | T52: 78.92 | U52: 0 | V52: 3177.585 | W52: 41824.54 | X52: 0 | Z52: 3098.665 | AA52: 2202.95 | AB52: 78.92 | AC52: 0 | AD52: 0 | AE52: 3177.585 | AF52: 2884.03 | AG52: 2024-09-30 | AH52: 3177.585 | AJ52: 0 | AK52: 0 | AM52: 609 | AN52: 1 | AO52: 5146.141111 | AP52: 0.00196781812 | AQ52: 0 | AR52: 0.00196781812 | AS52: 5146.139144
A53: 21 | B53: 1 | C53: 2024-10-30 | E53: 21 | F53: 21 | G53: 360 | H53: 80 | I53: 30 | J53: 41824.54 | K53: 713.935 | L53: 2099.66 | M53: 288.71 | N53: 2388.37 | O53: 3102.305 | P53: 0 | Q53: 75.28 | S53: 0 | T53: 75.28 | U53: 0 | V53: 3177.585 | W53: 41110.61 | X53: 0 | Z53: 3102.305 | AA53: 2099.66 | AB53: 75.28 | AC53: 0 | AD53: 0 | AE53: 3177.585 | AF53: 2880.39 | AG53: 2024-10-30 | AH53: 3177.585 | AJ53: 0 | AK53: 0 | AM53: 639 | AN53: 1 | AO53: 5146.139144 | AP53: 0.00196781812 | AQ53: 0 | AR53: 0.00196781812 | AS53: 5146.137176
A54: 22 | B54: 1 | C54: 2024-11-30 | E54: 22 | F54: 22 | G54: 360 | H54: 80 | I54: 31 | J54: 41110.61 | K54: 678.035 | L54: 2134.37 | M54: 288.71 | N54: 2423.08 | O54: 3101.115 | P54: 0 | Q54: 76.47 | S54: 0 | T54: 76.47 | U54: 0 | V54: 3177.585 | W54: 40432.57 | X54: 0 | Z54: 3101.115 | AA54: 2134.37 | AB54: 76.47 | AC54: 0 | AD54: 0 | AE54: 3177.585 | AF54: 2881.58 | AG54: 2024-11-30 | AH54: 3177.585 | AJ54: 0 | AK54: 0 | AM54: 670 | AN54: 1 | AO54: 5146.137176 | AP54: 0.00196781812 | AQ54: 0 | AR54: 0.00196781812 | AS54: 5146.135208
A55: 23 | B55: 1 | C55: 2024-12-30 | E55: 23 | F55: 23 | G55: 360 | H55: 80 | I55: 30 | J55: 40432.57 | K55: 786.315 | L55: 2029.78 | M55: 288.71 | N55: 2318.49 | O55: 3104.805 | P55: 0 | Q55: 72.78 | S55: 0 | T55: 72.78 | U55: 0 | V55: 3177.585 | W55: 39646.26 | X55: 0 | Z55: 3104.805 | AA55: 2029.78 | AB55: 72.78 | AC55: 0 | AD55: 0 | AE55: 3177.585 | AF55: 2877.89 | AG55: 2024-12-30 | AH55: 3177.585 | AJ55: 4.547473509e-13 | AK55: 0 | AM55: 700 | AN55: 1 | AO55: 5146.135208 | AP55: 0.00196781812 | AQ55: 0 | AR55: 0.00196781812 | AS55: 5146.13324
A56: 24 | B56: 1 | C56: 2025-01-30 | E56: 24 | F56: 24 | G56: 360 | H56: 80 | I56: 31 | J56: 39646.26 | K56: 756.785 | L56: 2058.35 | M56: 288.71 | N56: 2347.06 | O56: 3103.845 | P56: 0 | Q56: 73.74 | S56: 0 | T56: 73.74 | U56: 0 | V56: 3177.585 | W56: 38889.48 | X56: 0 | Z56: 3103.845 | AA56: 2058.35 | AB56: 73.74 | AC56: 0 | AD56: 0 | AE56: 3177.585 | AF56: 2878.85 | AG56: 2025-01-30 | AH56: 3177.585 | AJ56: 0 | AK56: 0 | AM56: 731 | AN56: 1 | AO56: 5146.13324 | AP56: 0.00196781812 | AQ56: 0 | AR56: 0.00196781812 | AS56: 5146.131272
A57: 25 | B57: 1 | C57: 2025-02-28 | E57: 25 | F57: 25 | G57: 360 | H57: 80 | I57: 29 | J57: 38889.48 | K57: 935.515 | L57: 1885.69 | M57: 288.71 | N57: 2174.4 | O57: 3109.915 | P57: 0 | Q57: 67.67 | S57: 0 | T57: 67.67 | U57: 0 | V57: 3177.585 | W57: 37953.97 | X57: 0 | Z57: 3109.915 | AA57: 1885.69 | AB57: 67.67 | AC57: 0 | AD57: 0 | AE57: 3177.585 | AF57: 2872.78 | AG57: 2025-02-28 | AH57: 3177.585 | AJ57: 0 | AK57: 0 | AM57: 760 | AN57: 1 | AO57: 5146.131272 | AP57: 0.00196781812 | AQ57: 0 | AR57: 0.00196781812 | AS57: 5146.129305
A58: 26 | B58: 1 | C58: 2025-03-30 | E58: 26 | F58: 26 | G58: 360 | H58: 80 | I58: 30 | J58: 37953.97 | K58: 915.205 | L58: 1905.35 | M58: 288.71 | N58: 2194.06 | O58: 3109.265 | P58: 0 | Q58: 68.32 | S58: 0 | T58: 68.32 | U58: 0 | V58: 3177.585 | W58: 37038.77 | X58: 0 | Z58: 3109.265 | AA58: 1905.35 | AB58: 68.32 | AC58: 0 | AD58: 0 | AE58: 3177.585 | AF58: 2873.43 | AG58: 2025-03-30 | AH58: 3177.585 | AJ58: 0 | AK58: 0 | AM58: 790 | AN58: 1 | AO58: 5146.129305 | AP58: 0.00196781812 | AQ58: 0 | AR58: 0.00196781812 | AS58: 5146.127337
A59: 27 | B59: 1 | C59: 2025-04-30 | E59: 27 | F59: 27 | G59: 360 | H59: 80 | I59: 31 | J59: 37038.77 | K59: 897.015 | L59: 1922.97 | M59: 288.71 | N59: 2211.68 | O59: 3108.695 | P59: 0 | Q59: 68.89 | S59: 0 | T59: 68.89 | U59: 0 | V59: 3177.585 | W59: 36141.76 | X59: 0 | Z59: 3108.695 | AA59: 1922.97 | AB59: 68.89 | AC59: 0 | AD59: 0 | AE59: 3177.585 | AF59: 2874 | AG59: 2025-04-30 | AH59: 3177.585 | AJ59: 4.547473509e-13 | AK59: 0 | AM59: 821 | AN59: 1 | AO59: 5146.127337 | AP59: 0.00196781812 | AQ59: 0 | AR59: 0.00196781812 | AS59: 5146.125369
A60: 28 | B60: 1 | C60: 2025-05-30 | E60: 28 | F60: 28 | G60: 360 | H60: 80 | I60: 30 | J60: 36141.76 | K60: 1009.435 | L60: 1814.38 | M60: 288.71 | N60: 2103.09 | O60: 3112.525 | P60: 0 | Q60: 65.06 | S60: 0 | T60: 65.06 | U60: 0 | V60: 3177.585 | W60: 35132.32 | X60: 0 | Z60: 3112.525 | AA60: 1814.38 | AB60: 65.06 | AC60: 0 | AD60: 0 | AE60: 3177.585 | AF60: 2870.17 | AG60: 2025-05-30 | AH60: 3177.585 | AJ60: 0 | AK60: 0 | AM60: 851 | AN60: 1 | AO60: 5146.125369 | AP60: 0.00196781812 | AQ60: 0 | AR60: 0.00196781812 | AS60: 5146.123401
A61: 29 | B61: 1 | C61: 2025-06-30 | E61: 29 | F61: 29 | G61: 360 | H61: 80 | I61: 31 | J61: 35132.32 | K61: 999.535 | L61: 1823.99 | M61: 288.71 | N61: 2112.7 | O61: 3112.235 | P61: 0 | Q61: 65.35 | S61: 0 | T61: 65.35 | U61: 0 | V61: 3177.585 | W61: 34132.79 | X61: 0 | Z61: 3112.235 | AA61: 1823.99 | AB61: 65.35 | AC61: 0 | AD61: 0 | AE61: 3177.585 | AF61: 2870.46 | AG61: 2025-06-30 | AH61: 3177.585 | AJ61: 4.547473509e-13 | AK61: 0 | AM61: 882 | AN61: 1 | AO61: 5146.123401 | AP61: 0.00196781812 | AQ61: 0 | AR61: 0.00196781812 | AS61: 5146.121433
A62: 30 | B62: 1 | C62: 2025-07-30 | E62: 30 | F62: 30 | G62: 360 | H62: 80 | I62: 30 | J62: 34132.79 | K62: 1113.915 | L62: 1713.52 | M62: 288.71 | N62: 2002.23 | O62: 3116.145 | P62: 0 | Q62: 61.44 | S62: 0 | T62: 61.44 | U62: 0 | V62: 3177.585 | W62: 33018.88 | X62: 0 | Z62: 3116.145 | AA62: 1713.52 | AB62: 61.44 | AC62: 0 | AD62: 0 | AE62: 3177.585 | AF62: 2866.55 | AG62: 2025-07-30 | AH62: 3177.585 | AJ62: 0 | AK62: 0 | AM62: 912 | AN62: 1 | AO62: 5146.121433 | AP62: 0.00196781812 | AQ62: 0 | AR62: 0.00196781812 | AS62: 5146.119465
A63: 31 | B63: 1 | C63: 2025-08-30 | E63: 31 | F63: 31 | G63: 360 | H63: 80 | I63: 31 | J63: 33018.88 | K63: 1113.185 | L63: 1714.27 | M63: 288.71 | N63: 2002.98 | O63: 3116.165 | P63: 0 | Q63: 61.42 | S63: 0 | T63: 61.42 | U63: 0 | V63: 3177.585 | W63: 31905.7 | X63: 0 | Z63: 3116.165 | AA63: 1714.27 | AB63: 61.42 | AC63: 0 | AD63: 0 | AE63: 3177.585 | AF63: 2866.53 | AG63: 2025-08-30 | AH63: 3177.585 | AJ63: 0 | AK63: 0 | AM63: 943 | AN63: 1 | AO63: 5146.119465 | AP63: 0.00196781812 | AQ63: 0 | AR63: 0.00196781812 | AS63: 5146.117498
A64: 32 | B64: 1 | C64: 2025-09-30 | E64: 32 | F64: 32 | G64: 360 | H64: 80 | I64: 31 | J64: 31905.7 | K64: 1173.065 | L64: 1656.47 | M64: 288.71 | N64: 1945.18 | O64: 3118.245 | P64: 0 | Q64: 59.34 | S64: 0 | T64: 59.34 | U64: 0 | V64: 3177.585 | W64: 30732.64 | X64: 0 | Z64: 3118.245 | AA64: 1656.47 | AB64: 59.34 | AC64: 0 | AD64: 0 | AE64: 3177.585 | AF64: 2864.45 | AG64: 2025-09-30 | AH64: 3177.585 | AJ64: 0 | AK64: 0 | AM64: 974 | AN64: 1 | AO64: 5146.117498 | AP64: 0.00196781812 | AQ64: 0 | AR64: 0.00196781812 | AS64: 5146.11553
A65: 33 | B65: 1 | C65: 2025-10-30 | E65: 33 | F65: 33 | G65: 360 | H65: 80 | I65: 30 | J65: 30732.64 | K65: 1290.725 | L65: 1542.83 | M65: 288.71 | N65: 1831.54 | O65: 3122.265 | P65: 0 | Q65: 55.32 | S65: 0 | T65: 55.32 | U65: 0 | V65: 3177.585 | W65: 29441.92 | X65: 0 | Z65: 3122.265 | AA65: 1542.83 | AB65: 55.32 | AC65: 0 | AD65: 0 | AE65: 3177.585 | AF65: 2860.43 | AG65: 2025-10-30 | AH65: 3177.585 | AJ65: 0 | AK65: 0 | AM65: 1004 | AN65: 1 | AO65: 5146.11553 | AP65: 0.00196781812 | AQ65: 0 | AR65: 0.00196781812 | AS65: 5146.113562
A66: 34 | B66: 1 | C66: 2025-11-30 | E66: 34 | F66: 34 | G66: 360 | H66: 80 | I66: 31 | J66: 29441.92 | K66: 1305.555 | L66: 1528.56 | M66: 288.71 | N66: 1817.27 | O66: 3122.825 | P66: 0 | Q66: 54.76 | S66: 0 | T66: 54.76 | U66: 0 | V66: 3177.585 | W66: 28136.37 | X66: 0 | Z66: 3122.825 | AA66: 1528.56 | AB66: 54.76 | AC66: 0 | AD66: 0 | AE66: 3177.585 | AF66: 2859.87 | AG66: 2025-11-30 | AH66: 3177.585 | AJ66: 0 | AK66: 0 | AM66: 1035 | AN66: 1 | AO66: 5146.113562 | AP66: 0.00196781812 | AQ66: 0 | AR66: 0.00196781812 | AS66: 5146.111594
A67: 35 | B67: 1 | C67: 2025-12-30 | E67: 35 | F67: 35 | G67: 360 | H67: 80 | I67: 30 | J67: 28136.37 | K67: 1425.735 | L67: 1412.49 | M67: 288.71 | N67: 1701.2 | O67: 3126.935 | P67: 0 | Q67: 50.65 | S67: 0 | T67: 50.65 | U67: 0 | V67: 3177.585 | W67: 26710.64 | X67: 0 | Z67: 3126.935 | AA67: 1412.49 | AB67: 50.65 | AC67: 0 | AD67: 0 | AE67: 3177.585 | AF67: 2855.76 | AG67: 2025-12-30 | AH67: 3177.585 | AJ67: 0 | AK67: 0 | AM67: 1065 | AN67: 1 | AO67: 5146.111594 | AP67: 0.00196781812 | AQ67: 0 | AR67: 0.00196781812 | AS67: 5146.109626
A68: 36 | B68: 1 | C68: 2026-01-30 | E68: 36 | F68: 36 | G68: 360 | H68: 80 | I68: 31 | J68: 26710.64 | K68: 1452.435 | L68: 1386.76 | M68: 288.71 | N68: 1675.47 | O68: 3127.905 | P68: 0 | Q68: 49.68 | S68: 0 | T68: 49.68 | U68: 0 | V68: 3177.585 | W68: 25258.21 | X68: 0 | Z68: 3127.905 | AA68: 1386.76 | AB68: 49.68 | AC68: 0 | AD68: 0 | AE68: 3177.585 | AF68: 2854.79 | AG68: 2026-01-30 | AH68: 3177.585 | AJ68: 0 | AK68: 0 | AM68: 1096 | AN68: 1 | AO68: 5146.109626 | AP68: 0.00196781812 | AQ68: 0 | AR68: 0.00196781812 | AS68: 5146.107659
A69: 37 | B69: 1 | C69: 2026-02-28 | E69: 37 | F69: 37 | G69: 360 | H69: 80 | I69: 29 | J69: 25258.21 | K69: 1620.195 | L69: 1224.73 | M69: 288.71 | N69: 1513.44 | O69: 3133.635 | P69: 0 | Q69: 43.95 | S69: 0 | T69: 43.95 | U69: 0 | V69: 3177.585 | W69: 23638.02 | X69: 0 | Z69: 3133.635 | AA69: 1224.73 | AB69: 43.95 | AC69: 0 | AD69: 0 | AE69: 3177.585 | AF69: 2849.06 | AG69: 2026-02-28 | AH69: 3177.585 | AJ69: 0 | AK69: 0 | AM69: 1125 | AN69: 1 | AO69: 5146.107659 | AP69: 0.00196781812 | AQ69: 0 | AR69: 0.00196781812 | AS69: 5146.105691
A70: 38 | B70: 1 | C70: 2026-03-30 | E70: 38 | F70: 38 | G70: 360 | H70: 80 | I70: 30 | J70: 23638.02 | K70: 1659.655 | L70: 1186.67 | M70: 288.71 | N70: 1475.38 | O70: 3135.035 | P70: 0 | Q70: 42.55 | S70: 0 | T70: 42.55 | U70: 0 | V70: 3177.585 | W70: 21978.37 | X70: 0 | Z70: 3135.035 | AA70: 1186.67 | AB70: 42.55 | AC70: 0 | AD70: 0 | AE70: 3177.585 | AF70: 2847.66 | AG70: 2026-03-30 | AH70: 3177.585 | AJ70: 0 | AK70: 0 | AM70: 1155 | AN70: 1 | AO70: 5146.105691 | AP70: 0.00196781812 | AQ70: 0 | AR70: 0.00196781812 | AS70: 5146.103723
A71: 39 | B71: 1 | C71: 2026-04-30 | E71: 39 | F71: 39 | G71: 360 | H71: 80 | I71: 31 | J71: 21978.37 | K71: 1706.925 | L71: 1141.07 | M71: 288.71 | N71: 1429.78 | O71: 3136.705 | P71: 0 | Q71: 40.88 | S71: 0 | T71: 40.88 | U71: 0 | V71: 3177.585 | W71: 20271.45 | X71: 0 | Z71: 3136.705 | AA71: 1141.07 | AB71: 40.88 | AC71: 0 | AD71: 0 | AE71: 3177.585 | AF71: 2845.99 | AG71: 2026-04-30 | AH71: 3177.585 | AJ71: 0 | AK71: 0 | AM71: 1186 | AN71: 1 | AO71: 5146.103723 | AP71: 0.00196781812 | AQ71: 0 | AR71: 0.00196781812 | AS71: 5146.101755
A72: 40 | B72: 1 | C72: 2026-05-30 | E72: 40 | F72: 40 | G72: 360 | H72: 80 | I72: 30 | J72: 20271.45 | K72: 1834.725 | L72: 1017.66 | M72: 288.71 | N72: 1306.37 | O72: 3141.095 | P72: 0 | Q72: 36.49 | S72: 0 | T72: 36.49 | U72: 0 | V72: 3177.585 | W72: 18436.73 | X72: 0 | Z72: 3141.095 | AA72: 1017.66 | AB72: 36.49 | AC72: 0 | AD72: 0 | AE72: 3177.585 | AF72: 2841.6 | AG72: 2026-05-30 | AH72: 3177.585 | AJ72: 0 | AK72: 0 | AM72: 1216 | AN72: 1 | AO72: 5146.101755 | AP72: 0.00196781812 | AQ72: 0 | AR72: 0.00196781812 | AS72: 5146.099787
A73: 41 | B73: 1 | C73: 2026-06-30 | E73: 41 | F73: 41 | G73: 360 | H73: 80 | I73: 31 | J73: 18436.73 | K73: 1897.395 | L73: 957.19 | M73: 288.71 | N73: 1245.9 | O73: 3143.295 | P73: 0 | Q73: 34.29 | S73: 0 | T73: 34.29 | U73: 0 | V73: 3177.585 | W73: 16539.34 | X73: 0 | Z73: 3143.295 | AA73: 957.19 | AB73: 34.29 | AC73: 0 | AD73: 0 | AE73: 3177.585 | AF73: 2839.4 | AG73: 2026-06-30 | AH73: 3177.585 | AJ73: 0 | AK73: 0 | AM73: 1247 | AN73: 1 | AO73: 5146.099787 | AP73: 0.00196781812 | AQ73: 0 | AR73: 0.00196781812 | AS73: 5146.097819
A74: 42 | B74: 1 | C74: 2026-07-30 | E74: 42 | F74: 42 | G74: 360 | H74: 80 | I74: 30 | J74: 16539.34 | K74: 2028.805 | L74: 830.3 | M74: 288.71 | N74: 1119.01 | O74: 3147.815 | P74: 0 | Q74: 29.77 | S74: 0 | T74: 29.77 | U74: 0 | V74: 3177.585 | W74: 14510.54 | X74: 0 | Z74: 3147.815 | AA74: 830.3 | AB74: 29.77 | AC74: 0 | AD74: 0 | AE74: 3177.585 | AF74: 2834.88 | AG74: 2026-07-30 | AH74: 3177.585 | AJ74: 0 | AK74: 0 | AM74: 1277 | AN74: 1 | AO74: 5146.097819 | AP74: 0.00196781812 | AQ74: 0 | AR74: 0.00196781812 | AS74: 5146.095852
A75: 43 | B75: 1 | C75: 2026-08-30 | E75: 43 | F75: 43 | G75: 360 | H75: 80 | I75: 31 | J75: 14510.54 | K75: 2108.525 | L75: 753.36 | M75: 288.71 | N75: 1042.07 | O75: 3150.595 | P75: 0 | Q75: 26.99 | S75: 0 | T75: 26.99 | U75: 0 | V75: 3177.585 | W75: 12402.02 | X75: 0 | Z75: 3150.595 | AA75: 753.36 | AB75: 26.99 | AC75: 0 | AD75: 0 | AE75: 3177.585 | AF75: 2832.1 | AG75: 2026-08-30 | AH75: 3177.585 | AJ75: 0 | AK75: 0 | AM75: 1308 | AN75: 1 | AO75: 5146.095852 | AP75: 0.00196781812 | AQ75: 0 | AR75: 0.00196781812 | AS75: 5146.093884
A76: 44 | B76: 1 | C76: 2026-09-30 | E76: 44 | F76: 44 | G76: 360 | H76: 80 | I76: 31 | J76: 12402.02 | K76: 2221.915 | L76: 643.89 | M76: 288.71 | N76: 932.6 | O76: 3154.515 | P76: 0 | Q76: 23.07 | S76: 0 | T76: 23.07 | U76: 0 | V76: 3177.585 | W76: 10180.11 | X76: 0 | Z76: 3154.515 | AA76: 643.89 | AB76: 23.07 | AC76: 0 | AD76: 0 | AE76: 3177.585 | AF76: 2828.18 | AG76: 2026-09-30 | AH76: 3177.585 | AJ76: 0 | AK76: 0 | AM76: 1339 | AN76: 1 | AO76: 5146.093884 | AP76: 0.00196781812 | AQ76: 0 | AR76: 0.00196781812 | AS76: 5146.091916
A77: 45 | B77: 1 | C77: 2026-10-30 | E77: 45 | F77: 45 | G77: 360 | H77: 80 | I77: 30 | J77: 10180.11 | K77: 2359.495 | L77: 511.06 | M77: 288.71 | N77: 799.77 | O77: 3159.265 | P77: 0 | Q77: 18.32 | S77: 0 | T77: 18.32 | U77: 0 | V77: 3177.585 | W77: 7820.61 | X77: 0 | Z77: 3159.265 | AA77: 511.06 | AB77: 18.32 | AC77: 0 | AD77: 0 | AE77: 3177.585 | AF77: 2823.43 | AG77: 2026-10-30 | AH77: 3177.585 | AJ77: 0 | AK77: 0 | AM77: 1369 | AN77: 1 | AO77: 5146.091916 | AP77: 0.00196781812 | AQ77: 0 | AR77: 0.00196781812 | AS77: 5146.089948
A78: 46 | B78: 1 | C78: 2026-11-30 | E78: 46 | F78: 46 | G78: 360 | H78: 80 | I78: 31 | J78: 7820.61 | K78: 2468.295 | L78: 406.03 | M78: 288.71 | N78: 694.74 | O78: 3163.035 | P78: 0 | Q78: 14.55 | S78: 0 | T78: 14.55 | U78: 0 | V78: 3177.585 | W78: 5352.31 | X78: 0 | Z78: 3163.035 | AA78: 406.03 | AB78: 14.55 | AC78: 0 | AD78: 0 | AE78: 3177.585 | AF78: 2819.66 | AG78: 2026-11-30 | AH78: 3177.585 | AJ78: 0 | AK78: 0 | AM78: 1400 | AN78: 1 | AO78: 5146.089948 | AP78: 0.00196781812 | AQ78: 0 | AR78: 0.00196781812 | AS78: 5146.08798
A79: 47 | B79: 1 | C79: 2026-12-30 | E79: 47 | F79: 47 | G79: 360 | H79: 80 | I79: 30 | J79: 5352.31 | K79: 2610.545 | L79: 268.7 | M79: 288.71 | N79: 557.41 | O79: 3167.955 | P79: 0 | Q79: 9.63 | S79: 0 | T79: 9.63 | U79: 0 | V79: 3177.585 | W79: 2741.76 | X79: 0 | Z79: 3167.955 | AA79: 268.7 | AB79: 9.63 | AC79: 0 | AD79: 0 | AE79: 3177.585 | AF79: 2814.74 | AG79: 2026-12-30 | AH79: 3177.585 | AJ79: 0 | AK79: 0 | AM79: 1430 | AN79: 1 | AO79: 5146.08798 | AP79: 0.00196781812 | AQ79: 0 | AR79: 0.00196781812 | AS79: 5146.086013
A80: 48 | B80: 1 | C80: 2027-01-30 | E80: 48 | F80: 48 | G80: 360 | H80: 80 | I80: 31 | J80: 2741.76 | K80: 2741.425 | L80: 142.35 | M80: 288.71 | N80: 431.06 | O80: 3172.485 | P80: 0 | Q80: 5.1 | S80: 0 | T80: 5.1 | U80: 0 | V80: 3177.585 | W80: 0.33 | X80: 0 | Z80: 3172.485 | AA80: 142.35 | AB80: 5.1 | AC80: 0 | AD80: 0 | AE80: 3177.585 | AF80: 2810.21 | AG80: 2027-01-30 | AH80: 3177.585 | AJ80: 0 | AK80: 0 | AM80: 1461 | AN80: 1 | AO80: 5146.086013 | AP80: 0.00196781812 | AQ80: 0 | AR80: 0.00196781812 | AS80: 5146.084045
Z81: 0 | AC81: 0 | AF81: 0 | AG81: 00:00:00 | AH81: 0 | AJ81: 0 | AK81: 0 | AO81: 5146.084045 | AR81: 0.00196781812
Z82: 0 | AC82: 0 | AF82: 0 | AG82: 00:00:00 | AH82: 0 | AJ82: 0 | AK82: 0 | AR82: 0.00196781812
Z83: 0 | AC83: 0 | AF83: 0 | AG83: 00:00:00 | AH83: 0 | AJ83: 0 | AK83: 0 | AR83: 0.00196781812
Z84: 0 | AC84: 0 | AF84: 0 | AG84: 00:00:00 | AH84: 0 | AJ84: 0 | AK84: 0 | AR84: 0.00196781812
Z85: 0 | AC85: 0 | AF85: 0 | AG85: 00:00:00 | AH85: 0 | AJ85: 0 | AK85: 0 | AR85: 0.00196781812
Z86: 0 | AC86: 0 | AF86: 0 | AG86: 00:00:00 | AH86: 0 | AJ86: 0 | AK86: 0 | AR86: 0.00196781812
Z87: 0 | AC87: 0 | AF87: 0 | AG87: 00:00:00 | AH87: 0 | AJ87: 0 | AK87: 0 | AR87: 0.00196781812
Z88: 0 | AC88: 0 | AF88: 0 | AG88: 00:00:00 | AH88: 0 | AJ88: 0 | AK88: 0 | AR88: 0.00196781812
Z89: 0 | AC89: 0 | AF89: 0 | AG89: 00:00:00 | AH89: 0 | AJ89: 0 | AK89: 0 | AR89: 0.00196781812
Z90: 0 | AC90: 0 | AF90: 0 | AG90: 00:00:00 | AH90: 0 | AJ90: 0 | AK90: 0 | AR90: 0.00196781812
Z91: 0 | AC91: 0 | AF91: 0 | AG91: 00:00:00 | AH91: 0 | AJ91: 0 | AK91: 0 | AR91: 0.00196781812
Z92: 0 | AC92: 0 | AF92: 0 | AG92: 00:00:00 | AH92: 0 | AJ92: 0 | AK92: 0 | AR92: 0.00196781812
Z93: 0 | AC93: 0 | AF93: 0 | AG93: 00:00:00 | AH93: 0 | AJ93: 0 | AK93: 0 | AR93: 0.00196781812
Z94: 0 | AC94: 0 | AF94: 0 | AG94: 00:00:00 | AH94: 0 | AJ94: 0 | AK94: 0 | AR94: 0.00196781812
Z95: 0 | AC95: 0 | AF95: 0 | AG95: 00:00:00 | AH95: 0 | AJ95: 0 | AK95: 0 | AR95: 0.00196781812
Z96: 0 | AC96: 0 | AF96: 0 | AG96: 00:00:00 | AH96: 0 | AJ96: 0 | AK96: 0 | AR96: 0.00196781812
D97: =IF(B97="","",IF(OR(MONTH(C97)=$H$18,MONTH(C97)=$H$19),"D","")) ->  | K97: =IF(B97="","",IF((IF(ISERROR(MATCH(MONTH(C97),$H$18:$H$19,0))=FALSE,$J$24 + $Q$29,0) + $J$24+$Q$29+$S$27)-L97<0,0.01,IF(ISERROR(MATCH(MONTH(C97),$H$18:$H$19,0))=FALSE,$J$24 + $Q$29,0)+ ($J$24+$Q$29+$S$27)-L97)- R97 -S97-Q97) ->  | L97: =IF(B97="","",IF($J$24+$Q$29<ROUND(ROUND(J97*(((1+(H97/100))^(I97/G97))-1),4),2),$J$24+$Q$29 +-0.01,IF(ROUND(ROUND(J97*(((1+(H97/100))^(I97/G97))-1),4),2)>$J$24,$J$24+ -0.01,ROUND(ROUND(J97*(((1+(H97/100))^(I97/G97))-1),4),2)))) ->  | M97: =IF(B97="","",IF(ISERROR(MATCH(MONTH(C97),$H$18:$H$19,0))=FALSE,$J$23,0) + $J$23) ->  | N97: =IF(B97="","",L97+M97) ->  | O97: =IF(B97="","",K97+N97) ->  | P97: =IF(B97="","",$J$27) ->  | T97: =IF(B97="","",Q97+R97+S97) ->  | U97: =IF(B97="","",$J$28) ->  | W97: =IF(B97="","",(ROUND(J97-K97,2))) ->  | X97: =IF(B97="","",IF(ROUND(ROUND(J97*(((1+(H97/100))^(I97/G97))-1),4),2) - $J$24<0,0,ROUND(ROUND(J97*(((1+(H97/100))^(I97/G97))-1),4),2) - $J$24)) ->  | Z97: =SUM(K97:M97) -> 0 | AB97: =+Q97 ->  | AC97: 0 | AE97: =IFERROR(AA97+K97 + P97 + U97+AB97 + M97 + AC97 + AD97,"") ->  | AF97: 0 | AG97: 00:00:00 | AH97: 0 | AJ97: 0 | AK97: 0 | AN97: =(1/((1+($J$8/100))^(AM97/$Q$9))*1) * IF(D97="D",2,1) ->  | AQ97: =(((1+($J$8/100))^((K97)/$Q$9))-1)*AO97 ->  | AR97: =IF(D97="D",$K$23,0)+ $K$23 -> 0.00196781812
B98: =IF(A98="","",IF(A98<=$H$22,0,1)) ->  | C98: =IF(B98="","",IF(OR(MONTH(EDATE($Q$6,E98))=$H$16,MONTH(EDATE($Q$6,E98))=$H$17),IF(ABS($H$17-$H$16)=1,EDATE($Q$6,E98+2),EDATE($Q$6,E98+1)),EDATE($Q$6,E98))) ->  | H98: =IF(B98="","",$H$10) ->  | S98: =IF(B98="","",IF(E98-E97>1,ROUNDDOWN($J98*$H$9/30*(DATE(YEAR($C98),MONTH($C98)-1,DAY($C98))-C97),2),0)) ->  | V98: =IF(B98="","",O98+P98+Q98+R98+S98+U98) ->  | Z98: 0 | AA98: =+L98 ->  | AC98: 0 | AF98: =IFERROR(IF(D98="D",$J$24*2,$J$24)+Q98,0) -> 0 | AG98: 00:00:00 | AH98: 0 | AJ98: =+IFERROR(AE98-V98,0) -> 0 | AK98: =+IFERROR(AA98-L98,0) -> 0 | AM98: =I98 + AM97 ->  | AP98: =AR98-AQ98 ->  | AR98: 0.00196781812 | AS98: =AO98-AP98 -> 
A99: =+IF(A98>=$H$14,"",A98+1) ->  | E99: =+IF(B99="","",IF(OR(MONTH(DATE(YEAR(C98)+0.0833333333333333,MONTH(C98)+1,DAY(C98)))=$H$16,MONTH(DATE(YEAR(C98)+0.5,MONTH(C98)+1,DAY(C98)))=$H$17),IF(ABS($H$17-$H$16)=1,E98+1,E98+2),E98+1)) ->  | F99: =+IF(B99="","",F98+1) ->  | G99: =IF(B99="","",$Q$9) ->  | I99: =IF(B99="","",C99-C98) ->  | J99: =IF(B99="","",W98) ->  | Q99: =IF(B99="","",ROUND($H$9*J99/30*$I99,2)-S99) ->  | Z99: 0 | AC99: 0 | AF99: 0 | AG99: 00:00:00 | AH99: 0 | AJ99: 0 | AK99: 0 | AO99: =AS98 ->  | AR99: 0.00196781812
Z100: 0 | AC100: 0 | AF100: 0 | AG100: 00:00:00 | AH100: 0 | AJ100: 0 | AK100: 0 | AR100: 0.00196781812
Z101: 0 | AC101: 0 | AF101: 0 | AG101: 00:00:00 | AH101: 0 | AJ101: 0 | AK101: 0 | AR101: 0.00196781812
Z102: 0 | AC102: 0 | AF102: 0 | AG102: 00:00:00 | AH102: 0 | AJ102: 0 | AK102: 0 | AR102: 0.00196781812
Z103: 0 | AC103: 0 | AF103: 0 | AG103: 00:00:00 | AH103: 0 | AJ103: 0 | AK103: 0 | AR103: 0.00196781812
Z104: 0 | AC104: 0 | AF104: 0 | AG104: 00:00:00 | AH104: 0 | AJ104: 0 | AK104: 0 | AR104: 0.00196781812
Z105: 0 | AC105: 0 | AF105: 0 | AG105: 00:00:00 | AH105: 0 | AJ105: 0 | AK105: 0 | AR105: 0.00196781812
Z106: 0 | AC106: 0 | AF106: 0 | AG106: 00:00:00 | AH106: 0 | AJ106: 0 | AK106: 0 | AR106: 0.00196781812
Z107: 0 | AC107: 0 | AF107: 0 | AG107: 00:00:00 | AH107: 0 | AJ107: 0 | AK107: 0 | AR107: 0.00196781812
Z108: 0 | AC108: 0 | AF108: 0 | AG108: 00:00:00 | AH108: 0 | AJ108: 0 | AK108: 0 | AR108: 0.00196781812
Z109: 0 | AC109: 0 | AF109: 0 | AG109: 00:00:00 | AH109: 0 | AJ109: 0 | AK109: 0 | AR109: 0.00196781812
Z110: 0 | AC110: 0 | AF110: 0 | AG110: =+IF(C110="",0,C110) -> 00:00:00 | AH110: =+IF(AE110="",0,AE110) -> 0 | AJ110: 0 | AK110: 0 | AR110: 0.00196781812
Z111: 0 | AC111: 0 | AF111: 0 | AG111: 00:00:00 | AH111: 0 | AJ111: 0 | AK111: 0 | AR111: 0.00196781812
Z112: 0 | AC112: 0 | AF112: 0 | AG112: 00:00:00 | AH112: 0 | AJ112: 0 | AK112: 0 | AR112: 0.00196781812
Z113: 0 | AC113: 0 | AF113: 0 | AG113: 00:00:00 | AH113: 0 | AJ113: 0 | AK113: 0 | AR113: 0.00196781812
Z114: 0 | AC114: 0 | AF114: 0 | AG114: 00:00:00 | AH114: 0 | AJ114: 0 | AK114: 0 | AR114: 0.00196781812
Z115: 0 | AC115: 0 | AF115: 0 | AG115: 00:00:00 | AH115: 0 | AJ115: 0 | AK115: 0 | AR115: 0.00196781812
Z116: 0 | AC116: 0 | AF116: 0 | AG116: 00:00:00 | AH116: 0 | AJ116: 0 | AK116: 0 | AR116: 0.00196781812
Z117: 0 | AC117: 0 | AF117: 0 | AG117: 00:00:00 | AH117: 0 | AJ117: 0 | AK117: 0 | AR117: 0.00196781812
Z118: 0 | AC118: 0 | AF118: 0 | AG118: 00:00:00 | AH118: 0 | AJ118: 0 | AK118: 0 | AR118: 0.00196781812
Z119: 0 | AC119: 0 | AF119: 0 | AG119: 00:00:00 | AH119: 0 | AJ119: 0 | AK119: 0 | AR119: 0.00196781812
Z120: 0 | AC120: 0 | AF120: 0 | AG120: 00:00:00 | AH120: 0 | AJ120: 0 | AK120: 0 | AR120: 0.00196781812
Z121: 0 | AC121: 0 | AF121: 0 | AG121: 00:00:00 | AH121: 0 | AJ121: 0 | AK121: 0 | AR121: 0.00196781812
Z122: 0 | AC122: 0 | AF122: 0 | AG122: 00:00:00 | AH122: 0 | AJ122: 0 | AK122: 0 | AR122: 0.00196781812
Z123: 0 | AC123: 0 | AF123: 0 | AG123: 00:00:00 | AH123: 0 | AJ123: 0 | AK123: 0 | AR123: 0.00196781812
Z124: 0 | AC124: 0 | AF124: 0 | AG124: 00:00:00 | AH124: 0 | AJ124: 0 | AK124: 0 | AR124: 0.00196781812
Z125: 0 | AC125: 0 | AF125: 0 | AG125: 00:00:00 | AH125: 0 | AJ125: 0 | AK125: 0 | AR125: 0.00196781812
Z126: 0 | AC126: 0 | AF126: 0 | AG126: 00:00:00 | AH126: 0 | AJ126: 0 | AK126: 0 | AR126: 0.00196781812
Z127: 0 | AC127: 0 | AF127: 0 | AG127: 00:00:00 | AH127: 0 | AJ127: 0 | AK127: 0 | AR127: 0.00196781812
Z128: 0 | AC128: 0 | AF128: 0 | AG128: 00:00:00 | AH128: 0 | AJ128: 0 | AK128: 0 | AR128: 0.00196781812
Z129: 0 | AC129: 0 | AF129: 0 | AG129: 00:00:00 | AH129: 0 | AJ129: 0 | AK129: 0 | AR129: 0.00196781812
Z130: 0 | AC130: 0 | AF130: 0 | AG130: 00:00:00 | AH130: 0 | AJ130: 0 | AK130: 0 | AR130: 0.00196781812
Z131: 0 | AC131: 0 | AF131: 0 | AG131: 00:00:00 | AH131: 0 | AJ131: 0 | AK131: 0 | AR131: 0.00196781812
Z132: 0 | AC132: 0 | AF132: 0 | AG132: 00:00:00 | AH132: 0 | AJ132: 0 | AK132: 0 | AR132: 0.00196781812
Z133: 0 | AC133: 0 | AF133: 0 | AG133: 00:00:00 | AH133: 0 | AJ133: 0 | AK133: 0 | AR133: 0.00196781812
Z134: 0 | AC134: 0 | AF134: 0 | AG134: 00:00:00 | AH134: 0 | AJ134: 0 | AK134: 0 | AR134: 0.00196781812
Z135: 0 | AC135: 0 | AF135: 0 | AG135: 00:00:00 | AH135: 0 | AJ135: 0 | AK135: 0 | AR135: 0.00196781812
Z136: 0 | AC136: 0 | AF136: 0 | AG136: 00:00:00 | AH136: 0 | AJ136: 0 | AK136: 0 | AR136: 0.00196781812
Z137: 0 | AC137: 0 | AF137: 0 | AG137: 00:00:00 | AH137: 0 | AJ137: 0 | AK137: 0 | AR137: 0.00196781812
Z138: 0 | AC138: 0 | AF138: 0 | AG138: 00:00:00 | AH138: 0 | AJ138: 0 | AK138: 0 | AR138: 0.00196781812
Z139: 0 | AC139: 0 | AF139: 0 | AG139: 00:00:00 | AH139: 0 | AJ139: 0 | AK139: 0 | AR139: 0.00196781812
Z140: 0 | AC140: 0 | AF140: 0 | AG140: 00:00:00 | AH140: 0 | AJ140: 0 | AK140: 0 | AR140: 0.00196781812
Z141: 0 | AC141: 0 | AF141: 0 | AG141: 00:00:00 | AH141: 0 | AJ141: 0 | AK141: 0 | AR141: 0.00196781812
Z142: 0 | AC142: 0 | AF142: 0 | AG142: 00:00:00 | AH142: 0 | AJ142: 0 | AK142: 0 | AR142: 0.00196781812
Z143: 0 | AC143: 0 | AF143: 0 | AG143: 00:00:00 | AH143: 0 | AJ143: 0 | AK143: 0 | AR143: 0.00196781812
Z144: 0 | AC144: 0 | AF144: 0 | AG144: 00:00:00 | AH144: 0 | AJ144: 0 | AK144: 0 | AR144: 0.00196781812
Z145: 0 | AC145: 0 | AF145: 0 | AG145: 00:00:00 | AH145: 0 | AJ145: 0 | AK145: 0 | AR145: 0.00196781812
Z146: 0 | AC146: 0 | AF146: 0 | AG146: 00:00:00 | AH146: 0 | AJ146: 0 | AK146: 0 | AR146: 0.00196781812
Z147: 0 | AC147: 0 | AF147: 0 | AG147: 00:00:00 | AH147: 0 | AJ147: 0 | AK147: 0 | AR147: 0.00196781812
Z148: 0 | AC148: 0 | AF148: 0 | AG148: 00:00:00 | AH148: 0 | AJ148: 0 | AK148: 0 | AR148: 0.00196781812
Z149: 0 | AC149: 0 | AF149: 0 | AG149: 00:00:00 | AH149: 0 | AJ149: 0 | AK149: 0 | AR149: 0.00196781812
Z150: 0 | AC150: 0 | AF150: 0 | AG150: 00:00:00 | AH150: 0 | AJ150: 0 | AK150: 0 | AR150: 0.00196781812
Z151: 0 | AC151: 0 | AF151: 0 | AG151: 00:00:00 | AH151: 0 | AJ151: 0 | AK151: 0 | AR151: 0.00196781812
Z152: 0 | AC152: 0 | AF152: 0 | AG152: 00:00:00 | AH152: 0 | AJ152: 0 | AK152: 0 | AR152: 0.00196781812
Z153: 0 | AC153: 0 | AF153: 0 | AG153: 00:00:00 | AH153: 0 | AJ153: 0 | AK153: 0 | AR153: 0.00196781812
Z154: 0 | AC154: 0 | AF154: 0 | AG154: 00:00:00 | AH154: 0 | AJ154: 0 | AK154: 0 | AR154: 0.00196781812
Z155: 0 | AC155: 0 | AF155: 0 | AG155: 00:00:00 | AH155: 0 | AJ155: 0 | AK155: 0 | AR155: 0.00196781812
Z156: 0 | AC156: 0 | AF156: 0 | AG156: 00:00:00 | AH156: 0 | AJ156: 0 | AK156: 0 | AR156: 0.00196781812
Z157: 0 | AC157: 0 | AF157: 0 | AG157: 00:00:00 | AH157: 0 | AJ157: 0 | AK157: 0 | AR157: 0.00196781812
Z158: 0 | AC158: 0 | AF158: 0 | AG158: 00:00:00 | AH158: 0 | AJ158: 0 | AK158: 0 | AR158: 0.00196781812
Z159: 0 | AC159: 0 | AF159: 0 | AG159: 00:00:00 | AH159: 0 | AJ159: 0 | AK159: 0 | AR159: 0.00196781812
Z160: 0 | AC160: 0 | AF160: 0 | AG160: 00:00:00 | AH160: 0 | AJ160: 0 | AK160: 0 | AR160: 0.00196781812
D161: =IF(B161="","",IF(OR(MONTH(C161)=$H$18,MONTH(C161)=$H$19),"D","")) ->  | K161: =IF(B161="","",IF((IF(ISERROR(MATCH(MONTH(C161),$H$18:$H$19,0))=FALSE,$J$24 + $Q$29,0) + $J$24+$Q$29+$S$27)-L161<0,0.01,IF(ISERROR(MATCH(MONTH(C161),$H$18:$H$19,0))=FALSE,$J$24 + $Q$29,0)+ ($J$24+$Q$29+$S$27)-L161)- R161 -S161-Q161) ->  | L161: =IF(B161="","",IF($J$24+$Q$29<ROUND(ROUND(J161*(((1+(H161/100))^(I161/G161))-1),4),2),$J$24+$Q$29 +-0.01,IF(ROUND(ROUND(J161*(((1+(H161/100))^(I161/G161))-1),4),2)>$J$24,$J$24+ -0.01,ROUND(ROUND(J161*(((1+(H161/100))^(I161/G161))-1),4),2)))) ->  | M161: =IF(B161="","",IF(ISERROR(MATCH(MONTH(C161),$H$18:$H$19,0))=FALSE,$J$23,0) + $J$23) ->  | N161: =IF(B161="","",L161+M161) ->  | O161: =IF(B161="","",K161+N161) ->  | P161: =IF(B161="","",$J$27) ->  | T161: =IF(B161="","",Q161+R161+S161) ->  | U161: =IF(B161="","",$J$28) ->  | W161: =IF(B161="","",(ROUND(J161-K161,2))) ->  | X161: =IF(B161="","",IF(ROUND(ROUND(J161*(((1+(H161/100))^(I161/G161))-1),4),2) - $J$24<0,0,ROUND(ROUND(J161*(((1+(H161/100))^(I161/G161))-1),4),2) - $J$24)) ->  | Z161: =SUM(K161:M161) -> 0 | AB161: =+Q161 ->  | AC161: 0 | AE161: =IFERROR(AA161+K161 + P161 + U161+AB161 + M161 + AC161 + AD161,"") ->  | AF161: 0 | AG161: 00:00:00 | AH161: 0 | AJ161: 0 | AK161: 0 | AN161: =(1/((1+($J$8/100))^(AM161/$Q$9))*1) * IF(D161="D",2,1) ->  | AQ161: =(((1+($J$8/100))^((K161)/$Q$9))-1)*AO161 ->  | AR161: =IF(D161="D",$K$23,0)+ $K$23 -> 0.00196781812
B162: =IF(A162="","",IF(A162<=$H$22,0,1)) ->  | C162: =IF(B162="","",IF(OR(MONTH(EDATE($Q$6,E162))=$H$16,MONTH(EDATE($Q$6,E162))=$H$17),IF(ABS($H$17-$H$16)=1,EDATE($Q$6,E162+2),EDATE($Q$6,E162+1)),EDATE($Q$6,E162))) ->  | H162: =IF(B162="","",$H$10) ->  | S162: =IF(B162="","",IF(E162-E161>1,ROUNDDOWN($J162*$H$9/30*(DATE(YEAR($C162),MONTH($C162)-1,DAY($C162))-C161),2),0)) ->  | V162: =IF(B162="","",O162+P162+Q162+R162+S162+U162) ->  | Z162: 0 | AA162: =+L162 ->  | AC162: 0 | AF162: =IFERROR(IF(D162="D",$J$24*2,$J$24)+Q162,0) -> 0 | AG162: 00:00:00 | AH162: 0 | AJ162: =+IFERROR(AE162-V162,0) -> 0 | AK162: =+IFERROR(AA162-L162,0) -> 0 | AM162: =I162 + AM161 ->  | AP162: =AR162-AQ162 ->  | AR162: 0.00196781812 | AS162: =AO162-AP162 -> 
A163: =+IF(A162>=$H$14,"",A162+1) ->  | E163: =+IF(B163="","",IF(OR(MONTH(DATE(YEAR(C162)+0.0833333333333333,MONTH(C162)+1,DAY(C162)))=$H$16,MONTH(DATE(YEAR(C162)+0.5,MONTH(C162)+1,DAY(C162)))=$H$17),IF(ABS($H$17-$H$16)=1,E162+1,E162+2),E162+1)) ->  | F163: =+IF(B163="","",F162+1) ->  | G163: =IF(B163="","",$Q$9) ->  | I163: =IF(B163="","",C163-C162) ->  | J163: =IF(B163="","",W162) ->  | Q163: =IF(B163="","",ROUND($H$9*J163/30*$I163,2)-S163) ->  | Z163: 0 | AC163: 0 | AF163: 0 | AG163: 00:00:00 | AH163: 0 | AJ163: 0 | AK163: 0 | AO163: =AS162 ->  | AR163: 0.00196781812
Z164: 0 | AC164: 0 | AF164: 0 | AG164: 00:00:00 | AH164: 0 | AJ164: 0 | AK164: 0 | AR164: 0.00196781812
Z165: 0 | AC165: 0 | AF165: 0 | AG165: 00:00:00 | AH165: 0 | AJ165: 0 | AK165: 0 | AR165: 0.00196781812
Z166: 0 | AC166: 0 | AF166: 0 | AG166: 00:00:00 | AH166: 0 | AJ166: 0 | AK166: 0 | AR166: 0.00196781812
Z167: 0 | AC167: 0 | AF167: 0 | AG167: 00:00:00 | AH167: 0 | AJ167: 0 | AK167: 0 | AR167: 0.00196781812
Z168: 0 | AC168: 0 | AF168: 0 | AG168: 00:00:00 | AH168: 0 | AJ168: 0 | AK168: 0 | AR168: 0.00196781812
Z169: 0 | AC169: 0 | AF169: 0 | AG169: 00:00:00 | AH169: 0 | AJ169: 0 | AK169: 0 | AR169: 0.00196781812
Z170: 0 | AC170: 0 | AF170: 0 | AG170: 00:00:00 | AH170: 0 | AJ170: 0 | AK170: 0 | AR170: 0.00196781812
Z171: 0 | AC171: 0 | AF171: 0 | AG171: 00:00:00 | AH171: 0 | AJ171: 0 | AK171: 0 | AR171: 0.00196781812
Z172: 0 | AC172: 0 | AF172: 0 | AG172: 00:00:00 | AH172: 0 | AJ172: 0 | AK172: 0 | AR172: 0.00196781812
Z173: 0 | AC173: 0 | AF173: 0 | AG173: 00:00:00 | AH173: 0 | AJ173: 0 | AK173: 0 | AR173: 0.00196781812
Z174: 0 | AC174: 0 | AF174: 0 | AG174: =+IF(C174="",0,C174) -> 00:00:00 | AH174: =+IF(AE174="",0,AE174) -> 0 | AJ174: 0 | AK174: 0 | AR174: 0.00196781812
Z175: 0 | AC175: 0 | AF175: 0 | AG175: 00:00:00 | AH175: 0 | AJ175: 0 | AK175: 0 | AR175: 0.00196781812
Z176: 0 | AC176: 0 | AF176: 0 | AG176: 00:00:00 | AH176: 0 | AJ176: 0 | AK176: 0 | AR176: 0.00196781812
Z177: 0 | AC177: 0 | AF177: 0 | AG177: 00:00:00 | AH177: 0 | AJ177: 0 | AK177: 0 | AR177: 0.00196781812
Z178: 0 | AC178: 0 | AF178: 0 | AG178: 00:00:00 | AH178: 0 | AJ178: 0 | AK178: 0 | AR178: 0.00196781812
Z179: 0 | AC179: 0 | AF179: 0 | AG179: 00:00:00 | AH179: 0 | AJ179: 0 | AK179: 0 | AR179: 0.00196781812
Z180: 0 | AC180: 0 | AF180: 0 | AG180: 00:00:00 | AH180: 0 | AJ180: 0 | AK180: 0 | AR180: 0.00196781812
Z181: 0 | AC181: 0 | AF181: 0 | AG181: 00:00:00 | AH181: 0 | AJ181: 0 | AK181: 0 | AR181: 0.00196781812
Z182: 0 | AC182: 0 | AF182: 0 | AG182: 00:00:00 | AH182: 0 | AJ182: 0 | AK182: 0 | AR182: 0.00196781812
Z183: 0 | AC183: 0 | AF183: 0 | AG183: 00:00:00 | AH183: 0 | AJ183: 0 | AK183: 0 | AR183: 0.00196781812
Z184: 0 | AC184: 0 | AF184: 0 | AG184: 00:00:00 | AH184: 0 | AJ184: 0 | AK184: 0 | AR184: 0.00196781812
Z185: 0 | AC185: 0 | AF185: 0 | AG185: 00:00:00 | AH185: 0 | AJ185: 0 | AK185: 0 | AR185: 0.00196781812
Z186: 0 | AC186: 0 | AF186: 0 | AG186: 00:00:00 | AH186: 0 | AJ186: 0 | AK186: 0 | AR186: 0.00196781812
Z187: 0 | AC187: 0 | AF187: 0 | AG187: 00:00:00 | AH187: 0 | AJ187: 0 | AK187: 0 | AR187: 0.00196781812
Z188: 0 | AC188: 0 | AF188: 0 | AG188: 00:00:00 | AH188: 0 | AJ188: 0 | AK188: 0 | AR188: 0.00196781812
Z189: 0 | AC189: 0 | AF189: 0 | AG189: 00:00:00 | AH189: 0 | AJ189: 0 | AK189: 0 | AR189: 0.00196781812
Z190: 0 | AC190: 0 | AF190: 0 | AG190: 00:00:00 | AH190: 0 | AJ190: 0 | AK190: 0 | AR190: 0.00196781812
Z191: 0 | AC191: 0 | AF191: 0 | AG191: 00:00:00 | AH191: 0 | AJ191: 0 | AK191: 0 | AR191: 0.00196781812
Z192: 0 | AC192: 0 | AF192: 0 | AG192: 00:00:00 | AH192: 0 | AJ192: 0 | AK192: 0 | AR192: 0.00196781812
Z193: 0 | AC193: 0 | AF193: 0 | AG193: 00:00:00 | AH193: 0 | AJ193: 0 | AK193: 0 | AR193: 0.00196781812
Z194: 0 | AC194: 0 | AF194: 0 | AG194: 00:00:00 | AH194: 0 | AJ194: 0 | AK194: 0 | AR194: 0.00196781812
Z195: 0 | AC195: 0 | AF195: 0 | AG195: 00:00:00 | AH195: 0 | AJ195: 0 | AK195: 0 | AR195: 0.00196781812
Z196: 0 | AC196: 0 | AF196: 0 | AG196: 00:00:00 | AH196: 0 | AJ196: 0 | AK196: 0 | AR196: 0.00196781812
Z197: 0 | AC197: 0 | AF197: 0 | AG197: 00:00:00 | AH197: 0 | AJ197: 0 | AK197: 0 | AR197: 0.00196781812
Z198: 0 | AC198: 0 | AF198: 0 | AG198: 00:00:00 | AH198: 0 | AJ198: 0 | AK198: 0 | AR198: 0.00196781812
Z199: 0 | AC199: 0 | AF199: 0 | AG199: 00:00:00 | AH199: 0 | AJ199: 0 | AK199: 0 | AR199: 0.00196781812
Z200: 0 | AC200: 0 | AF200: 0 | AG200: 00:00:00 | AH200: 0 | AJ200: 0 | AK200: 0 | AR200: 0.00196781812
Z201: 0 | AC201: 0 | AF201: 0 | AG201: 00:00:00 | AH201: 0 | AJ201: 0 | AK201: 0 | AR201: 0.00196781812
Z202: 0 | AC202: 0 | AF202: 0 | AG202: 00:00:00 | AH202: 0 | AJ202: 0 | AK202: 0 | AR202: 0.00196781812
Z203: 0 | AC203: 0 | AF203: 0 | AG203: 00:00:00 | AH203: 0 | AJ203: 0 | AK203: 0 | AR203: 0.00196781812
Z204: 0 | AC204: 0 | AF204: 0 | AG204: 00:00:00 | AH204: 0 | AJ204: 0 | AK204: 0 | AR204: 0.00196781812
Z205: 0 | AC205: 0 | AF205: 0 | AG205: 00:00:00 | AH205: 0 | AJ205: 0 | AK205: 0 | AR205: 0.00196781812
... 69 more rows

Sheet Calculos PLD (hidden)
A1: Factores utilizados en Meses de No Pago para cálculo del valor cuota
A3: N° de Cuota | B3: Equivalente | C3: Fecha | D3: Mes | E3: Marca Cuota No Pago | F3: Factor (10) | G3: Acumulado
A4: 1 | B4: =IF(E4<>"C",IF(ISERROR(1+B3)=TRUE,1,1+B3),IF(ISNUMBER(B3),B3,1)) -> 1 | C4: =Simulador!Q7 -> 2023-02-28 | D4: =MONTH(C4) -> 2 | E4: =IF(ISERROR(MATCH(D4,Simulador!$H$16:$H$17,0))=FALSE,"C",IF(ISERROR(MATCH(D4,Simulador!$H$18:$H$19,0))=FALSE,"D","")) ->  | F4: =IF(E4="C",0,IF(E4 ="D",ROUND(1/((1+Simulador!$Q$13)^A4),9) * 2,ROUND(1/((1+Simulador!$Q$13)^A4),9))) -> 0.95153473 | G4: =ROUND(F4,9) -> 0.95153473
A5: =A4+1 -> 2 | B5: =IF(E5<>"C",IF(ISERROR(1+B4)=TRUE,1,1+B4),IF(ISNUMBER(B4),B4,1)) -> 2 | C5: =DATE(YEAR(C4) + 1/12,MONTH(C4)+1,DAY(C4)) -> 2023-03-28 | D5: 3 | E5: =IF(ISERROR(MATCH(D5,Simulador!$H$16:$H$17,0))=FALSE,"C",IF(ISERROR(MATCH(D5,Simulador!$H$18:$H$19,0))=FALSE,"D","")) ->  | F5: =IF(E5="C",0,IF(E5 ="D",ROUND(1/((1+Simulador!$Q$13)^A5),9) * 2,ROUND(1/((1+Simulador!$Q$13)^A5),9))) -> 0.905418342 | G5: =G4+ROUND(F5,9) -> 1.856953072
A6: 3 | B6: 3 | C6: 2023-04-28 | D6: 4 | E6: =IF(ISERROR(MATCH(D6,Simulador!$H$16:$H$17,0))=FALSE,"C",IF(ISERROR(MATCH(D6,Simulador!$H$18:$H$19,0))=FALSE,"D","")) ->  | F6: =IF(E6="C",0,IF(E6 ="D",ROUND(1/((1+Simulador!$Q$13)^A6),9) * 2,ROUND(1/((1+Simulador!$Q$13)^A6),9))) -> 0.861536998 | G6: =G5+ROUND(F6,9) -> 2.71849007
A7: 4 | B7: 4 | C7: 2023-05-28 | D7: 5 | E7: =IF(ISERROR(MATCH(D7,Simulador!$H$16:$H$17,0))=FALSE,"C",IF(ISERROR(MATCH(D7,Simulador!$H$18:$H$19,0))=FALSE,"D","")) ->  | F7: =IF(E7="C",0,IF(E7 ="D",ROUND(1/((1+Simulador!$Q$13)^A7),9) * 2,ROUND(1/((1+Simulador!$Q$13)^A7),9))) -> 0.819782374 | G7: 3.538272444
A8: 5 | B8: 5 | C8: 2023-06-28 | D8: 6 | E8: =IF(ISERROR(MATCH(D8,Simulador!$H$16:$H$17,0))=FALSE,"C",IF(ISERROR(MATCH(D8,Simulador!$H$18:$H$19,0))=FALSE,"D","")) ->  | F8: =IF(E8="C",0,IF(E8 ="D",ROUND(1/((1+Simulador!$Q$13)^A8),9) * 2,ROUND(1/((1+Simulador!$Q$13)^A8),9))) -> 0.7800514 | G8: 4.318323844
A9: 6 | B9: 6 | C9: 2023-07-28 | D9: 7 | E9: =IF(ISERROR(MATCH(D9,Simulador!$H$16:$H$17,0))=FALSE,"C",IF(ISERROR(MATCH(D9,Simulador!$H$18:$H$19,0))=FALSE,"D","")) ->  | F9: =IF(E9="C",0,IF(E9 ="D",ROUND(1/((1+Simulador!$Q$13)^A9),9) * 2,ROUND(1/((1+Simulador!$Q$13)^A9),9))) -> 0.742245998 | G9: 5.060569842
A10: 7 | B10: 7 | C10: 2023-08-28 | D10: 8 | E10: =IF(ISERROR(MATCH(D10,Simulador!$H$16:$H$17,0))=FALSE,"C",IF(ISERROR(MATCH(D10,Simulador!$H$18:$H$19,0))=FALSE,"D","")) ->  | F10: =IF(E10="C",0,IF(E10 ="D",ROUND(1/((1+Simulador!$Q$13)^A10),9) * 2,ROUND(1/((1+Simulador!$Q$13)^A10),9))) -> 0.706272846 | G10: 5.766842688
A11: 8 | B11: 8 | C11: 2023-09-28 | D11: 9 | E11: =IF(ISERROR(MATCH(D11,Simulador!$H$16:$H$17,0))=FALSE,"C",IF(ISERROR(MATCH(D11,Simulador!$H$18:$H$19,0))=FALSE,"D","")) ->  | F11: =IF(E11="C",0,IF(E11 ="D",ROUND(1/((1+Simulador!$Q$13)^A11),9) * 2,ROUND(1/((1+Simulador!$Q$13)^A11),9))) -> 0.672043141 | G11: 6.438885829
A12: 9 | B12: 9 | C12: 2023-10-28 | D12: 10 | E12: =IF(ISERROR(MATCH(D12,Simulador!$H$16:$H$17,0))=FALSE,"C",IF(ISERROR(MATCH(D12,Simulador!$H$18:$H$19,0))=FALSE,"D","")) ->  | F12: =IF(E12="C",0,IF(E12 ="D",ROUND(1/((1+Simulador!$Q$13)^A12),9) * 2,ROUND(1/((1+Simulador!$Q$13)^A12),9))) -> 0.639472389 | G12: 7.078358218
A13: 10 | B13: 10 | C13: 2023-11-28 | D13: 11 | E13: =IF(ISERROR(MATCH(D13,Simulador!$H$16:$H$17,0))=FALSE,"C",IF(ISERROR(MATCH(D13,Simulador!$H$18:$H$19,0))=FALSE,"D","")) ->  | F13: =IF(E13="C",0,IF(E13 ="D",ROUND(1/((1+Simulador!$Q$13)^A13),9) * 2,ROUND(1/((1+Simulador!$Q$13)^A13),9))) -> 0.608480187 | G13: 7.686838405
A14: 11 | B14: 11 | C14: 2023-12-28 | D14: 12 | E14: =IF(ISERROR(MATCH(D14,Simulador!$H$16:$H$17,0))=FALSE,"C",IF(ISERROR(MATCH(D14,Simulador!$H$18:$H$19,0))=FALSE,"D","")) ->  | F14: =IF(E14="C",0,IF(E14 ="D",ROUND(1/((1+Simulador!$Q$13)^A14),9) * 2,ROUND(1/((1+Simulador!$Q$13)^A14),9))) -> 0.57899003 | G14: 8.265828435
A15: 12 | B15: 12 | C15: 2024-01-28 | D15: 1 | E15: =IF(ISERROR(MATCH(D15,Simulador!$H$16:$H$17,0))=FALSE,"C",IF(ISERROR(MATCH(D15,Simulador!$H$18:$H$19,0))=FALSE,"D","")) ->  | F15: =IF(E15="C",0,IF(E15 ="D",ROUND(1/((1+Simulador!$Q$13)^A15),9) * 2,ROUND(1/((1+Simulador!$Q$13)^A15),9))) -> 0.550929122 | G15: 8.816757557
A16: 13 | B16: 13 | C16: 2024-02-28 | D16: 2 | E16: =IF(ISERROR(MATCH(D16,Simulador!$H$16:$H$17,0))=FALSE,"C",IF(ISERROR(MATCH(D16,Simulador!$H$18:$H$19,0))=FALSE,"D","")) ->  | F16: =IF(E16="C",0,IF(E16 ="D",ROUND(1/((1+Simulador!$Q$13)^A16),9) * 2,ROUND(1/((1+Simulador!$Q$13)^A16),9))) -> 0.524228193 | G16: 9.34098575
A17: 14 | B17: 14 | C17: 2024-03-28 | D17: 3 | E17: =IF(ISERROR(MATCH(D17,Simulador!$H$16:$H$17,0))=FALSE,"C",IF(ISERROR(MATCH(D17,Simulador!$H$18:$H$19,0))=FALSE,"D","")) ->  | F17: =IF(E17="C",0,IF(E17 ="D",ROUND(1/((1+Simulador!$Q$13)^A17),9) * 2,ROUND(1/((1+Simulador!$Q$13)^A17),9))) -> 0.498821332 | G17: 9.839807082
A18: 15 | B18: 15 | C18: 2024-04-28 | D18: 4 | E18: =IF(ISERROR(MATCH(D18,Simulador!$H$16:$H$17,0))=FALSE,"C",IF(ISERROR(MATCH(D18,Simulador!$H$18:$H$19,0))=FALSE,"D","")) ->  | F18: =IF(E18="C",0,IF(E18 ="D",ROUND(1/((1+Simulador!$Q$13)^A18),9) * 2,ROUND(1/((1+Simulador!$Q$13)^A18),9))) -> 0.474645822 | G18: 10.3144529
A19: 16 | B19: 16 | C19: 2024-05-28 | D19: 5 | E19: =IF(ISERROR(MATCH(D19,Simulador!$H$16:$H$17,0))=FALSE,"C",IF(ISERROR(MATCH(D19,Simulador!$H$18:$H$19,0))=FALSE,"D","")) ->  | F19: =IF(E19="C",0,IF(E19 ="D",ROUND(1/((1+Simulador!$Q$13)^A19),9) * 2,ROUND(1/((1+Simulador!$Q$13)^A19),9))) -> 0.451641984 | G19: 10.76609489
A20: 17 | B20: 17 | C20: 2024-06-28 | D20: 6 | E20: =IF(ISERROR(MATCH(D20,Simulador!$H$16:$H$17,0))=FALSE,"C",IF(ISERROR(MATCH(D20,Simulador!$H$18:$H$19,0))=FALSE,"D","")) ->  | F20: =IF(E20="C",0,IF(E20 ="D",ROUND(1/((1+Simulador!$Q$13)^A20),9) * 2,ROUND(1/((1+Simulador!$Q$13)^A20),9))) -> 0.429753033 | G20: 11.19584792
A21: 18 | B21: 18 | C21: 2024-07-28 | D21: 7 | E21: =IF(ISERROR(MATCH(D21,Simulador!$H$16:$H$17,0))=FALSE,"C",IF(ISERROR(MATCH(D21,Simulador!$H$18:$H$19,0))=FALSE,"D","")) ->  | F21: =IF(E21="C",0,IF(E21 ="D",ROUND(1/((1+Simulador!$Q$13)^A21),9) * 2,ROUND(1/((1+Simulador!$Q$13)^A21),9))) -> 0.408924936 | G21: 11.60477286
A22: 19 | B22: 19 | C22: 2024-08-28 | D22: 8 | E22: =IF(ISERROR(MATCH(D22,Simulador!$H$16:$H$17,0))=FALSE,"C",IF(ISERROR(MATCH(D22,Simulador!$H$18:$H$19,0))=FALSE,"D","")) ->  | F22: =IF(E22="C",0,IF(E22 ="D",ROUND(1/((1+Simulador!$Q$13)^A22),9) * 2,ROUND(1/((1+Simulador!$Q$13)^A22),9))) -> 0.389106279 | G22: 11.99387914
A23: 20 | B23: 20 | C23: 2024-09-28 | D23: 9 | E23: =IF(ISERROR(MATCH(D23,Simulador!$H$16:$H$17,0))=FALSE,"C",IF(ISERROR(MATCH(D23,Simulador!$H$18:$H$19,0))=FALSE,"D","")) ->  | F23: =IF(E23="C",0,IF(E23 ="D",ROUND(1/((1+Simulador!$Q$13)^A23),9) * 2,ROUND(1/((1+Simulador!$Q$13)^A23),9))) -> 0.370248138 | G23: 12.36412727
A24: 21 | B24: 21 | C24: 2024-10-28 | D24: 10 | E24: =IF(ISERROR(MATCH(D24,Simulador!$H$16:$H$17,0))=FALSE,"C",IF(ISERROR(MATCH(D24,Simulador!$H$18:$H$19,0))=FALSE,"D","")) ->  | F24: =IF(E24="C",0,IF(E24 ="D",ROUND(1/((1+Simulador!$Q$13)^A24),9) * 2,ROUND(1/((1+Simulador!$Q$13)^A24),9))) -> 0.352303962 | G24: 12.71643124
A25: 22 | B25: 22 | C25: 2024-11-28 | D25: 11 | E25: =IF(ISERROR(MATCH(D25,Simulador!$H$16:$H$17,0))=FALSE,"C",IF(ISERROR(MATCH(D25,Simulador!$H$18:$H$19,0))=FALSE,"D","")) ->  | F25: =IF(E25="C",0,IF(E25 ="D",ROUND(1/((1+Simulador!$Q$13)^A25),9) * 2,ROUND(1/((1+Simulador!$Q$13)^A25),9))) -> 0.335229455 | G25: 13.05166069
A26: 23 | B26: 23 | C26: 2024-12-28 | D26: 12 | E26: =IF(ISERROR(MATCH(D26,Simulador!$H$16:$H$17,0))=FALSE,"C",IF(ISERROR(MATCH(D26,Simulador!$H$18:$H$19,0))=FALSE,"D","")) ->  | F26: =IF(E26="C",0,IF(E26 ="D",ROUND(1/((1+Simulador!$Q$13)^A26),9) * 2,ROUND(1/((1+Simulador!$Q$13)^A26),9))) -> 0.318982469 | G26: 13.37064316
A27: 24 | B27: 24 | C27: 2025-01-28 | D27: 1 | E27: =IF(ISERROR(MATCH(D27,Simulador!$H$16:$H$17,0))=FALSE,"C",IF(ISERROR(MATCH(D27,Simulador!$H$18:$H$19,0))=FALSE,"D","")) ->  | F27: =IF(E27="C",0,IF(E27 ="D",ROUND(1/((1+Simulador!$Q$13)^A27),9) * 2,ROUND(1/((1+Simulador!$Q$13)^A27),9))) -> 0.303522898 | G27: 13.67416606
A28: 25 | B28: 25 | C28: 2025-02-28 | D28: 2 | E28: =IF(ISERROR(MATCH(D28,Simulador!$H$16:$H$17,0))=FALSE,"C",IF(ISERROR(MATCH(D28,Simulador!$H$18:$H$19,0))=FALSE,"D","")) ->  | F28: =IF(E28="C",0,IF(E28 ="D",ROUND(1/((1+Simulador!$Q$13)^A28),9) * 2,ROUND(1/((1+Simulador!$Q$13)^A28),9))) -> 0.288812578 | G28: 13.96297864
A29: 26 | B29: 26 | C29: 2025-03-28 | D29: 3 | E29: =IF(ISERROR(MATCH(D29,Simulador!$H$16:$H$17,0))=FALSE,"C",IF(ISERROR(MATCH(D29,Simulador!$H$18:$H$19,0))=FALSE,"D","")) ->  | F29: =IF(E29="C",0,IF(E29 ="D",ROUND(1/((1+Simulador!$Q$13)^A29),9) * 2,ROUND(1/((1+Simulador!$Q$13)^A29),9))) -> 0.274815199 | G29: 14.23779384
A30: 27 | B30: 27 | C30: 2025-04-28 | D30: 4 | E30: =IF(ISERROR(MATCH(D30,Simulador!$H$16:$H$17,0))=FALSE,"C",IF(ISERROR(MATCH(D30,Simulador!$H$18:$H$19,0))=FALSE,"D","")) ->  | F30: =IF(E30="C",0,IF(E30 ="D",ROUND(1/((1+Simulador!$Q$13)^A30),9) * 2,ROUND(1/((1+Simulador!$Q$13)^A30),9))) -> 0.261496206 | G30: 14.49929004
A31: 28 | B31: 28 | C31: 2025-05-28 | D31: 5 | E31: =IF(ISERROR(MATCH(D31,Simulador!$H$16:$H$17,0))=FALSE,"C",IF(ISERROR(MATCH(D31,Simulador!$H$18:$H$19,0))=FALSE,"D","")) ->  | F31: =IF(E31="C",0,IF(E31 ="D",ROUND(1/((1+Simulador!$Q$13)^A31),9) * 2,ROUND(1/((1+Simulador!$Q$13)^A31),9))) -> 0.248822722 | G31: 14.74811276
A32: 29 | B32: 29 | C32: 2025-06-28 | D32: 6 | E32: =IF(ISERROR(MATCH(D32,Simulador!$H$16:$H$17,0))=FALSE,"C",IF(ISERROR(MATCH(D32,Simulador!$H$18:$H$19,0))=FALSE,"D","")) ->  | F32: =IF(E32="C",0,IF(E32 ="D",ROUND(1/((1+Simulador!$Q$13)^A32),9) * 2,ROUND(1/((1+Simulador!$Q$13)^A32),9))) -> 0.236763461 | G32: 14.98487622
A33: 30 | B33: 30 | C33: 2025-07-28 | D33: 7 | E33: =IF(ISERROR(MATCH(D33,Simulador!$H$16:$H$17,0))=FALSE,"C",IF(ISERROR(MATCH(D33,Simulador!$H$18:$H$19,0))=FALSE,"D","")) ->  | F33: =IF(E33="C",0,IF(E33 ="D",ROUND(1/((1+Simulador!$Q$13)^A33),9) * 2,ROUND(1/((1+Simulador!$Q$13)^A33),9))) -> 0.225288656 | G33: 15.21016488
A34: 31 | B34: 31 | C34: 2025-08-28 | D34: 8 | E34: =IF(ISERROR(MATCH(D34,Simulador!$H$16:$H$17,0))=FALSE,"C",IF(ISERROR(MATCH(D34,Simulador!$H$18:$H$19,0))=FALSE,"D","")) ->  | F34: =IF(E34="C",0,IF(E34 ="D",ROUND(1/((1+Simulador!$Q$13)^A34),9) * 2,ROUND(1/((1+Simulador!$Q$13)^A34),9))) -> 0.214369981 | G34: 15.42453486
A35: 32 | B35: 32 | C35: 2025-09-28 | D35: 9 | E35: =IF(ISERROR(MATCH(D35,Simulador!$H$16:$H$17,0))=FALSE,"C",IF(ISERROR(MATCH(D35,Simulador!$H$18:$H$19,0))=FALSE,"D","")) ->  | F35: =IF(E35="C",0,IF(E35 ="D",ROUND(1/((1+Simulador!$Q$13)^A35),9) * 2,ROUND(1/((1+Simulador!$Q$13)^A35),9))) -> 0.203980482 | G35: 15.62851534
A36: 33 | B36: 33 | C36: 2025-10-28 | D36: 10 | E36: =IF(ISERROR(MATCH(D36,Simulador!$H$16:$H$17,0))=FALSE,"C",IF(ISERROR(MATCH(D36,Simulador!$H$18:$H$19,0))=FALSE,"D","")) ->  | F36: =IF(E36="C",0,IF(E36 ="D",ROUND(1/((1+Simulador!$Q$13)^A36),9) * 2,ROUND(1/((1+Simulador!$Q$13)^A36),9))) -> 0.194094512 | G36: 15.82260986
A37: 34 | B37: 34 | C37: 2025-11-28 | D37: 11 | E37: =IF(ISERROR(MATCH(D37,Simulador!$H$16:$H$17,0))=FALSE,"C",IF(ISERROR(MATCH(D37,Simulador!$H$18:$H$19,0))=FALSE,"D","")) ->  | F37: =IF(E37="C",0,IF(E37 ="D",ROUND(1/((1+Simulador!$Q$13)^A37),9) * 2,ROUND(1/((1+Simulador!$Q$13)^A37),9))) -> 0.184687669 | G37: 16.00729752
A38: 35 | B38: 35 | C38: 2025-12-28 | D38: 12 | E38: =IF(ISERROR(MATCH(D38,Simulador!$H$16:$H$17,0))=FALSE,"C",IF(ISERROR(MATCH(D38,Simulador!$H$18:$H$19,0))=FALSE,"D","")) ->  | F38: =IF(E38="C",0,IF(E38 ="D",ROUND(1/((1+Simulador!$Q$13)^A38),9) * 2,ROUND(1/((1+Simulador!$Q$13)^A38),9))) -> 0.175736732 | G38: 16.18303426
A39: 36 | B39: 36 | C39: 2026-01-28 | D39: 1 | E39: =IF(ISERROR(MATCH(D39,Simulador!$H$16:$H$17,0))=FALSE,"C",IF(ISERROR(MATCH(D39,Simulador!$H$18:$H$19,0))=FALSE,"D","")) ->  | F39: =IF(E39="C",0,IF(E39 ="D",ROUND(1/((1+Simulador!$Q$13)^A39),9) * 2,ROUND(1/((1+Simulador!$Q$13)^A39),9))) -> 0.167219603 | G39: 16.35025386
A40: 37 | B40: 37 | C40: 2026-02-28 | D40: 2 | E40: =IF(ISERROR(MATCH(D40,Simulador!$H$16:$H$17,0))=FALSE,"C",IF(ISERROR(MATCH(D40,Simulador!$H$18:$H$19,0))=FALSE,"D","")) ->  | F40: =IF(E40="C",0,IF(E40 ="D",ROUND(1/((1+Simulador!$Q$13)^A40),9) * 2,ROUND(1/((1+Simulador!$Q$13)^A40),9))) -> 0.15911526 | G40: 16.50936912
A41: 38 | B41: 38 | C41: 2026-03-28 | D41: 3 | E41: =IF(ISERROR(MATCH(D41,Simulador!$H$16:$H$17,0))=FALSE,"C",IF(ISERROR(MATCH(D41,Simulador!$H$18:$H$19,0))=FALSE,"D","")) ->  | F41: =IF(E41="C",0,IF(E41 ="D",ROUND(1/((1+Simulador!$Q$13)^A41),9) * 2,ROUND(1/((1+Simulador!$Q$13)^A41),9))) -> 0.151403696 | G41: 16.66077282
A42: 39 | B42: 39 | C42: 2026-04-28 | D42: 4 | E42: =IF(ISERROR(MATCH(D42,Simulador!$H$16:$H$17,0))=FALSE,"C",IF(ISERROR(MATCH(D42,Simulador!$H$18:$H$19,0))=FALSE,"D","")) ->  | F42: =IF(E42="C",0,IF(E42 ="D",ROUND(1/((1+Simulador!$Q$13)^A42),9) * 2,ROUND(1/((1+Simulador!$Q$13)^A42),9))) -> 0.144065875 | G42: 16.80483869
A43: 40 | B43: 40 | C43: 2026-05-28 | D43: 5 | E43: =IF(ISERROR(MATCH(D43,Simulador!$H$16:$H$17,0))=FALSE,"C",IF(ISERROR(MATCH(D43,Simulador!$H$18:$H$19,0))=FALSE,"D","")) ->  | F43: =IF(E43="C",0,IF(E43 ="D",ROUND(1/((1+Simulador!$Q$13)^A43),9) * 2,ROUND(1/((1+Simulador!$Q$13)^A43),9))) -> 0.137083684 | G43: 16.94192237
A44: 41 | B44: 41 | C44: 2026-06-28 | D44: 6 | E44: =IF(ISERROR(MATCH(D44,Simulador!$H$16:$H$17,0))=FALSE,"C",IF(ISERROR(MATCH(D44,Simulador!$H$18:$H$19,0))=FALSE,"D","")) ->  | F44: =IF(E44="C",0,IF(E44 ="D",ROUND(1/((1+Simulador!$Q$13)^A44),9) * 2,ROUND(1/((1+Simulador!$Q$13)^A44),9))) -> 0.130439886 | G44: 17.07236226
A45: 42 | B45: 42 | C45: 2026-07-28 | D45: 7 | E45: =IF(ISERROR(MATCH(D45,Simulador!$H$16:$H$17,0))=FALSE,"C",IF(ISERROR(MATCH(D45,Simulador!$H$18:$H$19,0))=FALSE,"D","")) ->  | F45: =IF(E45="C",0,IF(E45 ="D",ROUND(1/((1+Simulador!$Q$13)^A45),9) * 2,ROUND(1/((1+Simulador!$Q$13)^A45),9))) -> 0.124118082 | G45: 17.19648034
A46: 43 | B46: 43 | C46: 2026-08-28 | D46: 8 | E46: =IF(ISERROR(MATCH(D46,Simulador!$H$16:$H$17,0))=FALSE,"C",IF(ISERROR(MATCH(D46,Simulador!$H$18:$H$19,0))=FALSE,"D","")) ->  | F46: =IF(E46="C",0,IF(E46 ="D",ROUND(1/((1+Simulador!$Q$13)^A46),9) * 2,ROUND(1/((1+Simulador!$Q$13)^A46),9))) -> 0.118102665 | G46: 17.31458301
A47: 44 | B47: 44 | C47: 2026-09-28 | D47: 9 | E47: =IF(ISERROR(MATCH(D47,Simulador!$H$16:$H$17,0))=FALSE,"C",IF(ISERROR(MATCH(D47,Simulador!$H$18:$H$19,0))=FALSE,"D","")) ->  | F47: =IF(E47="C",0,IF(E47 ="D",ROUND(1/((1+Simulador!$Q$13)^A47),9) * 2,ROUND(1/((1+Simulador!$Q$13)^A47),9))) -> 0.112378788 | G47: 17.4269618
A48: 45 | B48: 45 | C48: 2026-10-28 | D48: 10 | E48: =IF(ISERROR(MATCH(D48,Simulador!$H$16:$H$17,0))=FALSE,"C",IF(ISERROR(MATCH(D48,Simulador!$H$18:$H$19,0))=FALSE,"D","")) ->  | F48: =IF(E48="C",0,IF(E48 ="D",ROUND(1/((1+Simulador!$Q$13)^A48),9) * 2,ROUND(1/((1+Simulador!$Q$13)^A48),9))) -> 0.106932319 | G48: 17.53389411
A49: 46 | B49: 46 | C49: 2026-11-28 | D49: 11 | E49: =IF(ISERROR(MATCH(D49,Simulador!$H$16:$H$17,0))=FALSE,"C",IF(ISERROR(MATCH(D49,Simulador!$H$18:$H$19,0))=FALSE,"D","")) ->  | F49: =IF(E49="C",0,IF(E49 ="D",ROUND(1/((1+Simulador!$Q$13)^A49),9) * 2,ROUND(1/((1+Simulador!$Q$13)^A49),9))) -> 0.101749816 | G49: 17.63564393
A50: 47 | B50: 47 | C50: 2026-12-28 | D50: 12 | E50: =IF(ISERROR(MATCH(D50,Simulador!$H$16:$H$17,0))=FALSE,"C",IF(ISERROR(MATCH(D50,Simulador!$H$18:$H$19,0))=FALSE,"D","")) ->  | F50: =IF(E50="C",0,IF(E50 ="D",ROUND(1/((1+Simulador!$Q$13)^A50),9) * 2,ROUND(1/((1+Simulador!$Q$13)^A50),9))) -> 0.096818483 | G50: 17.73246241
A51: 48 | B51: 48 | C51: 2027-01-28 | D51: 1 | E51: =IF(ISERROR(MATCH(D51,Simulador!$H$16:$H$17,0))=FALSE,"C",IF(ISERROR(MATCH(D51,Simulador!$H$18:$H$19,0))=FALSE,"D","")) ->  | F51: =IF(E51="C",0,IF(E51 ="D",ROUND(1/((1+Simulador!$Q$13)^A51),9) * 2,ROUND(1/((1+Simulador!$Q$13)^A51),9))) -> 0.092126149 | G51: 17.82458856
A52: 49 | B52: 49 | C52: 2027-02-28 | D52: 2 | E52: =IF(ISERROR(MATCH(D52,Simulador!$H$16:$H$17,0))=FALSE,"C",IF(ISERROR(MATCH(D52,Simulador!$H$18:$H$19,0))=FALSE,"D","")) ->  | F52: =IF(E52="C",0,IF(E52 ="D",ROUND(1/((1+Simulador!$Q$13)^A52),9) * 2,ROUND(1/((1+Simulador!$Q$13)^A52),9))) -> 0.087661231 | G52: 17.91224979
A53: 50 | B53: 50 | C53: 2027-03-28 | D53: 3 | E53: =IF(ISERROR(MATCH(D53,Simulador!$H$16:$H$17,0))=FALSE,"C",IF(ISERROR(MATCH(D53,Simulador!$H$18:$H$19,0))=FALSE,"D","")) ->  | F53: =IF(E53="C",0,IF(E53 ="D",ROUND(1/((1+Simulador!$Q$13)^A53),9) * 2,ROUND(1/((1+Simulador!$Q$13)^A53),9))) -> 0.083412705 | G53: 17.9956625
A54: 51 | B54: 51 | C54: 2027-04-28 | D54: 4 | E54: =IF(ISERROR(MATCH(D54,Simulador!$H$16:$H$17,0))=FALSE,"C",IF(ISERROR(MATCH(D54,Simulador!$H$18:$H$19,0))=FALSE,"D","")) ->  | F54: =IF(E54="C",0,IF(E54 ="D",ROUND(1/((1+Simulador!$Q$13)^A54),9) * 2,ROUND(1/((1+Simulador!$Q$13)^A54),9))) -> 0.079370086 | G54: 18.07503258
A55: 52 | B55: 52 | C55: 2027-05-28 | D55: 5 | E55: =IF(ISERROR(MATCH(D55,Simulador!$H$16:$H$17,0))=FALSE,"C",IF(ISERROR(MATCH(D55,Simulador!$H$18:$H$19,0))=FALSE,"D","")) ->  | F55: =IF(E55="C",0,IF(E55 ="D",ROUND(1/((1+Simulador!$Q$13)^A55),9) * 2,ROUND(1/((1+Simulador!$Q$13)^A55),9))) -> 0.075523393 | G55: 18.15055598
A56: 53 | B56: 53 | C56: 2027-06-28 | D56: 6 | E56: =IF(ISERROR(MATCH(D56,Simulador!$H$16:$H$17,0))=FALSE,"C",IF(ISERROR(MATCH(D56,Simulador!$H$18:$H$19,0))=FALSE,"D","")) ->  | F56: =IF(E56="C",0,IF(E56 ="D",ROUND(1/((1+Simulador!$Q$13)^A56),9) * 2,ROUND(1/((1+Simulador!$Q$13)^A56),9))) -> 0.071863132 | G56: 18.22241911
A57: 54 | B57: 54 | C57: 2027-07-28 | D57: 7 | E57: =IF(ISERROR(MATCH(D57,Simulador!$H$16:$H$17,0))=FALSE,"C",IF(ISERROR(MATCH(D57,Simulador!$H$18:$H$19,0))=FALSE,"D","")) ->  | F57: =IF(E57="C",0,IF(E57 ="D",ROUND(1/((1+Simulador!$Q$13)^A57),9) * 2,ROUND(1/((1+Simulador!$Q$13)^A57),9))) -> 0.068380266 | G57: 18.29079938
A58: 55 | B58: 55 | C58: 2027-08-28 | D58: 8 | E58: =IF(ISERROR(MATCH(D58,Simulador!$H$16:$H$17,0))=FALSE,"C",IF(ISERROR(MATCH(D58,Simulador!$H$18:$H$19,0))=FALSE,"D","")) ->  | F58: =IF(E58="C",0,IF(E58 ="D",ROUND(1/((1+Simulador!$Q$13)^A58),9) * 2,ROUND(1/((1+Simulador!$Q$13)^A58),9))) -> 0.065066198 | G58: 18.35586557
A59: 56 | B59: 56 | C59: 2027-09-28 | D59: 9 | E59: =IF(ISERROR(MATCH(D59,Simulador!$H$16:$H$17,0))=FALSE,"C",IF(ISERROR(MATCH(D59,Simulador!$H$18:$H$19,0))=FALSE,"D","")) ->  | F59: =IF(E59="C",0,IF(E59 ="D",ROUND(1/((1+Simulador!$Q$13)^A59),9) * 2,ROUND(1/((1+Simulador!$Q$13)^A59),9))) -> 0.061912747 | G59: 18.41777832
A60: 57 | B60: 57 | C60: 2027-10-28 | D60: 10 | E60: =IF(ISERROR(MATCH(D60,Simulador!$H$16:$H$17,0))=FALSE,"C",IF(ISERROR(MATCH(D60,Simulador!$H$18:$H$19,0))=FALSE,"D","")) ->  | F60: =IF(E60="C",0,IF(E60 ="D",ROUND(1/((1+Simulador!$Q$13)^A60),9) * 2,ROUND(1/((1+Simulador!$Q$13)^A60),9))) -> 0.058912129 | G60: 18.47669045
A61: 58 | B61: 58 | C61: 2027-11-28 | D61: 11 | E61: =IF(ISERROR(MATCH(D61,Simulador!$H$16:$H$17,0))=FALSE,"C",IF(ISERROR(MATCH(D61,Simulador!$H$18:$H$19,0))=FALSE,"D","")) ->  | F61: =IF(E61="C",0,IF(E61 ="D",ROUND(1/((1+Simulador!$Q$13)^A61),9) * 2,ROUND(1/((1+Simulador!$Q$13)^A61),9))) -> 0.056056937 | G61: 18.53274739
A62: 59 | B62: 59 | C62: 2027-12-28 | D62: 12 | E62: =IF(ISERROR(MATCH(D62,Simulador!$H$16:$H$17,0))=FALSE,"C",IF(ISERROR(MATCH(D62,Simulador!$H$18:$H$19,0))=FALSE,"D","")) ->  | F62: =IF(E62="C",0,IF(E62 ="D",ROUND(1/((1+Simulador!$Q$13)^A62),9) * 2,ROUND(1/((1+Simulador!$Q$13)^A62),9))) -> 0.053340122 | G62: 18.58608751
A63: 60 | B63: 60 | C63: 2028-01-28 | D63: 1 | E63: =IF(ISERROR(MATCH(D63,Simulador!$H$16:$H$17,0))=FALSE,"C",IF(ISERROR(MATCH(D63,Simulador!$H$18:$H$19,0))=FALSE,"D","")) ->  | F63: =IF(E63="C",0,IF(E63 ="D",ROUND(1/((1+Simulador!$Q$13)^A63),9) * 2,ROUND(1/((1+Simulador!$Q$13)^A63),9))) -> 0.050754979 | G63: 18.63684249
A64: 61 | B64: 61 | C64: 2028-02-28 | D64: 2 | E64: =IF(ISERROR(MATCH(D64,Simulador!$H$16:$H$17,0))=FALSE,"C",IF(ISERROR(MATCH(D64,Simulador!$H$18:$H$19,0))=FALSE,"D","")) ->  | F64: =IF(E64="C",0,IF(E64 ="D",ROUND(1/((1+Simulador!$Q$13)^A64),9) * 2,ROUND(1/((1+Simulador!$Q$13)^A64),9))) -> 0.048295125 | G64: 18.68513761
A65: 62 | B65: 62 | C65: 2028-03-28 | D65: 3 | E65: =IF(ISERROR(MATCH(D65,Simulador!$H$16:$H$17,0))=FALSE,"C",IF(ISERROR(MATCH(D65,Simulador!$H$18:$H$19,0))=FALSE,"D","")) ->  | F65: =IF(E65="C",0,IF(E65 ="D",ROUND(1/((1+Simulador!$Q$13)^A65),9) * 2,ROUND(1/((1+Simulador!$Q$13)^A65),9))) -> 0.045954489 | G65: 18.7310921
A66: 63 | B66: 63 | C66: 2028-04-28 | D66: 4 | E66: =IF(ISERROR(MATCH(D66,Simulador!$H$16:$H$17,0))=FALSE,"C",IF(ISERROR(MATCH(D66,Simulador!$H$18:$H$19,0))=FALSE,"D","")) ->  | F66: =IF(E66="C",0,IF(E66 ="D",ROUND(1/((1+Simulador!$Q$13)^A66),9) * 2,ROUND(1/((1+Simulador!$Q$13)^A66),9))) -> 0.043727292 | G66: 18.77481939
A67: 64 | B67: 64 | C67: 2028-05-28 | D67: 5 | E67: =IF(ISERROR(MATCH(D67,Simulador!$H$16:$H$17,0))=FALSE,"C",IF(ISERROR(MATCH(D67,Simulador!$H$18:$H$19,0))=FALSE,"D","")) ->  | F67: =IF(E67="C",0,IF(E67 ="D",ROUND(1/((1+Simulador!$Q$13)^A67),9) * 2,ROUND(1/((1+Simulador!$Q$13)^A67),9))) -> 0.041608037 | G67: 18.81642743
A68: 65 | B68: 65 | C68: 2028-06-28 | D68: =MONTH(C68) -> 6 | E68: =IF(ISERROR(MATCH(D68,Simulador!$H$16:$H$17,0))=FALSE,"C",IF(ISERROR(MATCH(D68,Simulador!$H$18:$H$19,0))=FALSE,"D","")) ->  | F68: =IF(E68="C",0,IF(E68 ="D",ROUND(1/((1+Simulador!$Q$13)^A68),9) * 2,ROUND(1/((1+Simulador!$Q$13)^A68),9))) -> 0.039591492 | G68: 18.85601892
A69: =A68+1 -> 66 | B69: =IF(E69<>"C",IF(ISERROR(1+B68)=TRUE,1,1+B68),IF(ISNUMBER(B68),B68,1)) -> 66 | C69: =DATE(YEAR(C68) + 1/12,MONTH(C68)+1,DAY(C68)) -> 2028-07-28 | D69: 7 | E69: =IF(ISERROR(MATCH(D69,Simulador!$H$16:$H$17,0))=FALSE,"C",IF(ISERROR(MATCH(D69,Simulador!$H$18:$H$19,0))=FALSE,"D","")) ->  | F69: =IF(E69="C",0,IF(E69 ="D",ROUND(1/((1+Simulador!$Q$13)^A69),9) * 2,ROUND(1/((1+Simulador!$Q$13)^A69),9))) -> 0.03767268 | G69: 18.8936916
A70: 67 | B70: 67 | C70: 2028-08-28 | D70: 8 | E70: =IF(ISERROR(MATCH(D70,Simulador!$H$16:$H$17,0))=FALSE,"C",IF(ISERROR(MATCH(D70,Simulador!$H$18:$H$19,0))=FALSE,"D","")) ->  | F70: =IF(E70="C",0,IF(E70 ="D",ROUND(1/((1+Simulador!$Q$13)^A70),9) * 2,ROUND(1/((1+Simulador!$Q$13)^A70),9))) -> 0.035846863 | G70: =G69+ROUND(F70,9) -> 18.92953847
A71: 68 | B71: 68 | C71: 2028-09-28 | D71: 9 | E71: =IF(ISERROR(MATCH(D71,Simulador!$H$16:$H$17,0))=FALSE,"C",IF(ISERROR(MATCH(D71,Simulador!$H$18:$H$19,0))=FALSE,"D","")) ->  | F71: =IF(E71="C",0,IF(E71 ="D",ROUND(1/((1+Simulador!$Q$13)^A71),9) * 2,ROUND(1/((1+Simulador!$Q$13)^A71),9))) -> 0.034109535 | G71: 18.963648
A72: 69 | B72: 69 | C72: 2028-10-28 | D72: 10 | E72: =IF(ISERROR(MATCH(D72,Simulador!$H$16:$H$17,0))=FALSE,"C",IF(ISERROR(MATCH(D72,Simulador!$H$18:$H$19,0))=FALSE,"D","")) ->  | F72: =IF(E72="C",0,IF(E72 ="D",ROUND(1/((1+Simulador!$Q$13)^A72),9) * 2,ROUND(1/((1+Simulador!$Q$13)^A72),9))) -> 0.032456407 | G72: 18.99610441
A73: 70 | B73: 70 | C73: 2028-11-28 | D73: 11 | E73: =IF(ISERROR(MATCH(D73,Simulador!$H$16:$H$17,0))=FALSE,"C",IF(ISERROR(MATCH(D73,Simulador!$H$18:$H$19,0))=FALSE,"D","")) ->  | F73: =IF(E73="C",0,IF(E73 ="D",ROUND(1/((1+Simulador!$Q$13)^A73),9) * 2,ROUND(1/((1+Simulador!$Q$13)^A73),9))) -> 0.030883399 | G73: 19.02698781
A74: 71 | B74: 71 | C74: 2028-12-28 | D74: 12 | E74: =IF(ISERROR(MATCH(D74,Simulador!$H$16:$H$17,0))=FALSE,"C",IF(ISERROR(MATCH(D74,Simulador!$H$18:$H$19,0))=FALSE,"D","")) ->  | F74: =IF(E74="C",0,IF(E74 ="D",ROUND(1/((1+Simulador!$Q$13)^A74),9) * 2,ROUND(1/((1+Simulador!$Q$13)^A74),9))) -> 0.029386627 | G74: 19.05637443
A75: 72 | B75: 72 | C75: 2029-01-28 | D75: 1 | E75: =IF(ISERROR(MATCH(D75,Simulador!$H$16:$H$17,0))=FALSE,"C",IF(ISERROR(MATCH(D75,Simulador!$H$18:$H$19,0))=FALSE,"D","")) ->  | F75: =IF(E75="C",0,IF(E75 ="D",ROUND(1/((1+Simulador!$Q$13)^A75),9) * 2,ROUND(1/((1+Simulador!$Q$13)^A75),9))) -> 0.027962396 | G75: 19.08433683
A76: 73 | B76: 73 | C76: 2029-02-28 | D76: 2 | E76: =IF(ISERROR(MATCH(D76,Simulador!$H$16:$H$17,0))=FALSE,"C",IF(ISERROR(MATCH(D76,Simulador!$H$18:$H$19,0))=FALSE,"D","")) ->  | F76: =IF(E76="C",0,IF(E76 ="D",ROUND(1/((1+Simulador!$Q$13)^A76),9) * 2,ROUND(1/((1+Simulador!$Q$13)^A76),9))) -> 0.026607191 | G76: 19.11094402
A77: 74 | B77: 74 | C77: 2029-03-28 | D77: 3 | E77: =IF(ISERROR(MATCH(D77,Simulador!$H$16:$H$17,0))=FALSE,"C",IF(ISERROR(MATCH(D77,Simulador!$H$18:$H$19,0))=FALSE,"D","")) ->  | F77: =IF(E77="C",0,IF(E77 ="D",ROUND(1/((1+Simulador!$Q$13)^A77),9) * 2,ROUND(1/((1+Simulador!$Q$13)^A77),9))) -> 0.025317666 | G77: 19.13626169
A78: 75 | B78: 75 | C78: 2029-04-28 | D78: 4 | E78: =IF(ISERROR(MATCH(D78,Simulador!$H$16:$H$17,0))=FALSE,"C",IF(ISERROR(MATCH(D78,Simulador!$H$18:$H$19,0))=FALSE,"D","")) ->  | F78: =IF(E78="C",0,IF(E78 ="D",ROUND(1/((1+Simulador!$Q$13)^A78),9) * 2,ROUND(1/((1+Simulador!$Q$13)^A78),9))) -> 0.024090639 | G78: 19.16035233
A79: 76 | B79: 76 | C79: 2029-05-28 | D79: 5 | E79: =IF(ISERROR(MATCH(D79,Simulador!$H$16:$H$17,0))=FALSE,"C",IF(ISERROR(MATCH(D79,Simulador!$H$18:$H$19,0))=FALSE,"D","")) ->  | F79: =IF(E79="C",0,IF(E79 ="D",ROUND(1/((1+Simulador!$Q$13)^A79),9) * 2,ROUND(1/((1+Simulador!$Q$13)^A79),9))) -> 0.022923079 | G79: 19.1832754
A80: 77 | B80: 77 | C80: 2029-06-28 | D80: 6 | E80: =IF(ISERROR(MATCH(D80,Simulador!$H$16:$H$17,0))=FALSE,"C",IF(ISERROR(MATCH(D80,Simulador!$H$18:$H$19,0))=FALSE,"D","")) ->  | F80: =IF(E80="C",0,IF(E80 ="D",ROUND(1/((1+Simulador!$Q$13)^A80),9) * 2,ROUND(1/((1+Simulador!$Q$13)^A80),9))) -> 0.021812106 | G80: 19.20508751
A81: 78 | B81: 78 | C81: 2029-07-28 | D81: 7 | E81: =IF(ISERROR(MATCH(D81,Simulador!$H$16:$H$17,0))=FALSE,"C",IF(ISERROR(MATCH(D81,Simulador!$H$18:$H$19,0))=FALSE,"D","")) ->  | F81: =IF(E81="C",0,IF(E81 ="D",ROUND(1/((1+Simulador!$Q$13)^A81),9) * 2,ROUND(1/((1+Simulador!$Q$13)^A81),9))) -> 0.020754976 | G81: 19.22584249
A82: 79 | B82: 79 | C82: 2029-08-28 | D82: 8 | E82: =IF(ISERROR(MATCH(D82,Simulador!$H$16:$H$17,0))=FALSE,"C",IF(ISERROR(MATCH(D82,Simulador!$H$18:$H$19,0))=FALSE,"D","")) ->  | F82: =IF(E82="C",0,IF(E82 ="D",ROUND(1/((1+Simulador!$Q$13)^A82),9) * 2,ROUND(1/((1+Simulador!$Q$13)^A82),9))) -> 0.019749081 | G82: 19.24559157
A83: 80 | B83: 80 | C83: 2029-09-28 | D83: 9 | E83: =IF(ISERROR(MATCH(D83,Simulador!$H$16:$H$17,0))=FALSE,"C",IF(ISERROR(MATCH(D83,Simulador!$H$18:$H$19,0))=FALSE,"D","")) ->  | F83: =IF(E83="C",0,IF(E83 ="D",ROUND(1/((1+Simulador!$Q$13)^A83),9) * 2,ROUND(1/((1+Simulador!$Q$13)^A83),9))) -> 0.018791936 | G83: 19.2643835
A84: 81 | B84: 81 | C84: 2029-10-28 | D84: 10 | E84: =IF(ISERROR(MATCH(D84,Simulador!$H$16:$H$17,0))=FALSE,"C",IF(ISERROR(MATCH(D84,Simulador!$H$18:$H$19,0))=FALSE,"D","")) ->  | F84: =IF(E84="C",0,IF(E84 ="D",ROUND(1/((1+Simulador!$Q$13)^A84),9) * 2,ROUND(1/((1+Simulador!$Q$13)^A84),9))) -> 0.01788118 | G84: 19.28226468
A85: 82 | B85: 82 | C85: 2029-11-28 | D85: 11 | E85: =IF(ISERROR(MATCH(D85,Simulador!$H$16:$H$17,0))=FALSE,"C",IF(ISERROR(MATCH(D85,Simulador!$H$18:$H$19,0))=FALSE,"D","")) ->  | F85: =IF(E85="C",0,IF(E85 ="D",ROUND(1/((1+Simulador!$Q$13)^A85),9) * 2,ROUND(1/((1+Simulador!$Q$13)^A85),9))) -> 0.017014564 | G85: 19.29927925
A86: 83 | B86: 83 | C86: 2029-12-28 | D86: 12 | E86: =IF(ISERROR(MATCH(D86,Simulador!$H$16:$H$17,0))=FALSE,"C",IF(ISERROR(MATCH(D86,Simulador!$H$18:$H$19,0))=FALSE,"D","")) ->  | F86: =IF(E86="C",0,IF(E86 ="D",ROUND(1/((1+Simulador!$Q$13)^A86),9) * 2,ROUND(1/((1+Simulador!$Q$13)^A86),9))) -> 0.016189948 | G86: 19.3154692
A87: 84 | B87: 84 | C87: 2030-01-28 | D87: 1 | E87: =IF(ISERROR(MATCH(D87,Simulador!$H$16:$H$17,0))=FALSE,"C",IF(ISERROR(MATCH(D87,Simulador!$H$18:$H$19,0))=FALSE,"D","")) ->  | F87: =IF(E87="C",0,IF(E87 ="D",ROUND(1/((1+Simulador!$Q$13)^A87),9) * 2,ROUND(1/((1+Simulador!$Q$13)^A87),9))) -> 0.015405298 | G87: 19.33087449
A88: 85 | B88: 85 | C88: 2030-02-28 | D88: 2 | E88: =IF(ISERROR(MATCH(D88,Simulador!$H$16:$H$17,0))=FALSE,"C",IF(ISERROR(MATCH(D88,Simulador!$H$18:$H$19,0))=FALSE,"D","")) ->  | F88: =IF(E88="C",0,IF(E88 ="D",ROUND(1/((1+Simulador!$Q$13)^A88),9) * 2,ROUND(1/((1+Simulador!$Q$13)^A88),9))) -> 0.014658676 | G88: 19.34553317
A89: 86 | B89: 86 | C89: 2030-03-28 | D89: 3 | E89: =IF(ISERROR(MATCH(D89,Simulador!$H$16:$H$17,0))=FALSE,"C",IF(ISERROR(MATCH(D89,Simulador!$H$18:$H$19,0))=FALSE,"D","")) ->  | F89: =IF(E89="C",0,IF(E89 ="D",ROUND(1/((1+Simulador!$Q$13)^A89),9) * 2,ROUND(1/((1+Simulador!$Q$13)^A89),9))) -> 0.01394824 | G89: 19.35948141
A90: 87 | B90: 87 | C90: 2030-04-28 | D90: 4 | E90: =IF(ISERROR(MATCH(D90,Simulador!$H$16:$H$17,0))=FALSE,"C",IF(ISERROR(MATCH(D90,Simulador!$H$18:$H$19,0))=FALSE,"D","")) ->  | F90: =IF(E90="C",0,IF(E90 ="D",ROUND(1/((1+Simulador!$Q$13)^A90),9) * 2,ROUND(1/((1+Simulador!$Q$13)^A90),9))) -> 0.013272234 | G90: 19.37275364
A91: 88 | B91: 88 | C91: 2030-05-28 | D91: 5 | E91: =IF(ISERROR(MATCH(D91,Simulador!$H$16:$H$17,0))=FALSE,"C",IF(ISERROR(MATCH(D91,Simulador!$H$18:$H$19,0))=FALSE,"D","")) ->  | F91: =IF(E91="C",0,IF(E91 ="D",ROUND(1/((1+Simulador!$Q$13)^A91),9) * 2,ROUND(1/((1+Simulador!$Q$13)^A91),9))) -> 0.012628992 | G91: 19.38538264
A92: 89 | B92: 89 | C92: 2030-06-28 | D92: 6 | E92: =IF(ISERROR(MATCH(D92,Simulador!$H$16:$H$17,0))=FALSE,"C",IF(ISERROR(MATCH(D92,Simulador!$H$18:$H$19,0))=FALSE,"D","")) ->  | F92: =IF(E92="C",0,IF(E92 ="D",ROUND(1/((1+Simulador!$Q$13)^A92),9) * 2,ROUND(1/((1+Simulador!$Q$13)^A92),9))) -> 0.012016924 | G92: 19.39739956
A93: 90 | B93: 90 | C93: 2030-07-28 | D93: 7 | E93: =IF(ISERROR(MATCH(D93,Simulador!$H$16:$H$17,0))=FALSE,"C",IF(ISERROR(MATCH(D93,Simulador!$H$18:$H$19,0))=FALSE,"D","")) ->  | F93: =IF(E93="C",0,IF(E93 ="D",ROUND(1/((1+Simulador!$Q$13)^A93),9) * 2,ROUND(1/((1+Simulador!$Q$13)^A93),9))) -> 0.011434521 | G93: 19.40883408
A94: 91 | B94: 91 | C94: 2030-08-28 | D94: 8 | E94: =IF(ISERROR(MATCH(D94,Simulador!$H$16:$H$17,0))=FALSE,"C",IF(ISERROR(MATCH(D94,Simulador!$H$18:$H$19,0))=FALSE,"D","")) ->  | F94: =IF(E94="C",0,IF(E94 ="D",ROUND(1/((1+Simulador!$Q$13)^A94),9) * 2,ROUND(1/((1+Simulador!$Q$13)^A94),9))) -> 0.010880344 | G94: 19.41971442
A95: 92 | B95: 92 | C95: 2030-09-28 | D95: 9 | E95: =IF(ISERROR(MATCH(D95,Simulador!$H$16:$H$17,0))=FALSE,"C",IF(ISERROR(MATCH(D95,Simulador!$H$18:$H$19,0))=FALSE,"D","")) ->  | F95: =IF(E95="C",0,IF(E95 ="D",ROUND(1/((1+Simulador!$Q$13)^A95),9) * 2,ROUND(1/((1+Simulador!$Q$13)^A95),9))) -> 0.010353025 | G95: 19.43006745
A96: 93 | B96: 93 | C96: 2030-10-28 | D96: 10 | E96: =IF(ISERROR(MATCH(D96,Simulador!$H$16:$H$17,0))=FALSE,"C",IF(ISERROR(MATCH(D96,Simulador!$H$18:$H$19,0))=FALSE,"D","")) ->  | F96: =IF(E96="C",0,IF(E96 ="D",ROUND(1/((1+Simulador!$Q$13)^A96),9) * 2,ROUND(1/((1+Simulador!$Q$13)^A96),9))) -> 0.009851263 | G96: 19.43991871
A97: 94 | B97: 94 | C97: 2030-11-28 | D97: 11 | E97: =IF(ISERROR(MATCH(D97,Simulador!$H$16:$H$17,0))=FALSE,"C",IF(ISERROR(MATCH(D97,Simulador!$H$18:$H$19,0))=FALSE,"D","")) ->  | F97: =IF(E97="C",0,IF(E97 ="D",ROUND(1/((1+Simulador!$Q$13)^A97),9) * 2,ROUND(1/((1+Simulador!$Q$13)^A97),9))) -> 0.009373819 | G97: 19.44929253
A98: 95 | B98: 95 | C98: 2030-12-28 | D98: 12 | E98: =IF(ISERROR(MATCH(D98,Simulador!$H$16:$H$17,0))=FALSE,"C",IF(ISERROR(MATCH(D98,Simulador!$H$18:$H$19,0))=FALSE,"D","")) ->  | F98: =IF(E98="C",0,IF(E98 ="D",ROUND(1/((1+Simulador!$Q$13)^A98),9) * 2,ROUND(1/((1+Simulador!$Q$13)^A98),9))) -> 0.008919514 | G98: 19.45821205
A99: 96 | B99: 96 | C99: 2031-01-28 | D99: 1 | E99: =IF(ISERROR(MATCH(D99,Simulador!$H$16:$H$17,0))=FALSE,"C",IF(ISERROR(MATCH(D99,Simulador!$H$18:$H$19,0))=FALSE,"D","")) ->  | F99: =IF(E99="C",0,IF(E99 ="D",ROUND(1/((1+Simulador!$Q$13)^A99),9) * 2,ROUND(1/((1+Simulador!$Q$13)^A99),9))) -> 0.008487227 | G99: 19.46669927
A100: 97 | B100: 97 | C100: 2031-02-28 | D100: 2 | E100: =IF(ISERROR(MATCH(D100,Simulador!$H$16:$H$17,0))=FALSE,"C",IF(ISERROR(MATCH(D100,Simulador!$H$18:$H$19,0))=FALSE,"D","")) ->  | F100: =IF(E100="C",0,IF(E100 ="D",ROUND(1/((1+Simulador!$Q$13)^A100),9) * 2,ROUND(1/((1+Simulador!$Q$13)^A100),9))) -> 0.008075892 | G100: 19.47477516
A101: 98 | B101: 98 | C101: 2031-03-28 | D101: 3 | E101: =IF(ISERROR(MATCH(D101,Simulador!$H$16:$H$17,0))=FALSE,"C",IF(ISERROR(MATCH(D101,Simulador!$H$18:$H$19,0))=FALSE,"D","")) ->  | F101: =IF(E101="C",0,IF(E101 ="D",ROUND(1/((1+Simulador!$Q$13)^A101),9) * 2,ROUND(1/((1+Simulador!$Q$13)^A101),9))) -> 0.007684491 | G101: 19.48245966
A102: 99 | B102: 99 | C102: 2031-04-28 | D102: 4 | E102: =IF(ISERROR(MATCH(D102,Simulador!$H$16:$H$17,0))=FALSE,"C",IF(ISERROR(MATCH(D102,Simulador!$H$18:$H$19,0))=FALSE,"D","")) ->  | F102: =IF(E102="C",0,IF(E102 ="D",ROUND(1/((1+Simulador!$Q$13)^A102),9) * 2,ROUND(1/((1+Simulador!$Q$13)^A102),9))) -> 0.00731206 | G102: 19.48977172
A103: 100 | B103: 100 | C103: 2031-05-28 | D103: 5 | E103: =IF(ISERROR(MATCH(D103,Simulador!$H$16:$H$17,0))=FALSE,"C",IF(ISERROR(MATCH(D103,Simulador!$H$18:$H$19,0))=FALSE,"D","")) ->  | F103: =IF(E103="C",0,IF(E103 ="D",ROUND(1/((1+Simulador!$Q$13)^A103),9) * 2,ROUND(1/((1+Simulador!$Q$13)^A103),9))) -> 0.006957679 | G103: 19.49672939
A104: 101 | B104: 101 | C104: 2031-06-28 | D104: 6 | E104: =IF(ISERROR(MATCH(D104,Simulador!$H$16:$H$17,0))=FALSE,"C",IF(ISERROR(MATCH(D104,Simulador!$H$18:$H$19,0))=FALSE,"D","")) ->  | F104: =IF(E104="C",0,IF(E104 ="D",ROUND(1/((1+Simulador!$Q$13)^A104),9) * 2,ROUND(1/((1+Simulador!$Q$13)^A104),9))) -> 0.006620474 | G104: 19.50334987
A105: 102 | B105: 102 | C105: 2031-07-28 | D105: 7 | E105: =IF(ISERROR(MATCH(D105,Simulador!$H$16:$H$17,0))=FALSE,"C",IF(ISERROR(MATCH(D105,Simulador!$H$18:$H$19,0))=FALSE,"D","")) ->  | F105: =IF(E105="C",0,IF(E105 ="D",ROUND(1/((1+Simulador!$Q$13)^A105),9) * 2,ROUND(1/((1+Simulador!$Q$13)^A105),9))) -> 0.006299611 | G105: 19.50964948
A106: 103 | B106: 103 | C106: 2031-08-28 | D106: 8 | E106: =IF(ISERROR(MATCH(D106,Simulador!$H$16:$H$17,0))=FALSE,"C",IF(ISERROR(MATCH(D106,Simulador!$H$18:$H$19,0))=FALSE,"D","")) ->  | F106: =IF(E106="C",0,IF(E106 ="D",ROUND(1/((1+Simulador!$Q$13)^A106),9) * 2,ROUND(1/((1+Simulador!$Q$13)^A106),9))) -> 0.005994298 | G106: 19.51564378
A107: 104 | B107: 104 | C107: 2031-09-28 | D107: 9 | E107: =IF(ISERROR(MATCH(D107,Simulador!$H$16:$H$17,0))=FALSE,"C",IF(ISERROR(MATCH(D107,Simulador!$H$18:$H$19,0))=FALSE,"D","")) ->  | F107: =IF(E107="C",0,IF(E107 ="D",ROUND(1/((1+Simulador!$Q$13)^A107),9) * 2,ROUND(1/((1+Simulador!$Q$13)^A107),9))) -> 0.005703783 | G107: 19.52134756
A108: 105 | B108: 105 | C108: 2031-10-28 | D108: 10 | E108: =IF(ISERROR(MATCH(D108,Simulador!$H$16:$H$17,0))=FALSE,"C",IF(ISERROR(MATCH(D108,Simulador!$H$18:$H$19,0))=FALSE,"D","")) ->  | F108: =IF(E108="C",0,IF(E108 ="D",ROUND(1/((1+Simulador!$Q$13)^A108),9) * 2,ROUND(1/((1+Simulador!$Q$13)^A108),9))) -> 0.005427348 | G108: 19.52677491
A109: 106 | B109: 106 | C109: 2031-11-28 | D109: 11 | E109: =IF(ISERROR(MATCH(D109,Simulador!$H$16:$H$17,0))=FALSE,"C",IF(ISERROR(MATCH(D109,Simulador!$H$18:$H$19,0))=FALSE,"D","")) ->  | F109: =IF(E109="C",0,IF(E109 ="D",ROUND(1/((1+Simulador!$Q$13)^A109),9) * 2,ROUND(1/((1+Simulador!$Q$13)^A109),9))) -> 0.00516431 | G109: 19.53193922
A110: 107 | B110: 107 | C110: 2031-12-28 | D110: 12 | E110: =IF(ISERROR(MATCH(D110,Simulador!$H$16:$H$17,0))=FALSE,"C",IF(ISERROR(MATCH(D110,Simulador!$H$18:$H$19,0))=FALSE,"D","")) ->  | F110: =IF(E110="C",0,IF(E110 ="D",ROUND(1/((1+Simulador!$Q$13)^A110),9) * 2,ROUND(1/((1+Simulador!$Q$13)^A110),9))) -> 0.00491402 | G110: 19.53685324
A111: 108 | B111: 108 | C111: 2032-01-28 | D111: 1 | E111: =IF(ISERROR(MATCH(D111,Simulador!$H$16:$H$17,0))=FALSE,"C",IF(ISERROR(MATCH(D111,Simulador!$H$18:$H$19,0))=FALSE,"D","")) ->  | F111: =IF(E111="C",0,IF(E111 ="D",ROUND(1/((1+Simulador!$Q$13)^A111),9) * 2,ROUND(1/((1+Simulador!$Q$13)^A111),9))) -> 0.004675861 | G111: 19.5415291
A112: 109 | B112: 109 | C112: 2032-02-28 | D112: 2 | E112: =IF(ISERROR(MATCH(D112,Simulador!$H$16:$H$17,0))=FALSE,"C",IF(ISERROR(MATCH(D112,Simulador!$H$18:$H$19,0))=FALSE,"D","")) ->  | F112: =IF(E112="C",0,IF(E112 ="D",ROUND(1/((1+Simulador!$Q$13)^A112),9) * 2,ROUND(1/((1+Simulador!$Q$13)^A112),9))) -> 0.004449244 | G112: 19.54597834
A113: 110 | B113: 110 | C113: 2032-03-28 | D113: 3 | E113: =IF(ISERROR(MATCH(D113,Simulador!$H$16:$H$17,0))=FALSE,"C",IF(ISERROR(MATCH(D113,Simulador!$H$18:$H$19,0))=FALSE,"D","")) ->  | F113: =IF(E113="C",0,IF(E113 ="D",ROUND(1/((1+Simulador!$Q$13)^A113),9) * 2,ROUND(1/((1+Simulador!$Q$13)^A113),9))) -> 0.00423361 | G113: 19.55021195
A114: 111 | B114: 111 | C114: 2032-04-28 | D114: 4 | E114: =IF(ISERROR(MATCH(D114,Simulador!$H$16:$H$17,0))=FALSE,"C",IF(ISERROR(MATCH(D114,Simulador!$H$18:$H$19,0))=FALSE,"D","")) ->  | F114: =IF(E114="C",0,IF(E114 ="D",ROUND(1/((1+Simulador!$Q$13)^A114),9) * 2,ROUND(1/((1+Simulador!$Q$13)^A114),9))) -> 0.004028427 | G114: 19.55424038
A115: 112 | B115: 112 | C115: 2032-05-28 | D115: 5 | E115: =IF(ISERROR(MATCH(D115,Simulador!$H$16:$H$17,0))=FALSE,"C",IF(ISERROR(MATCH(D115,Simulador!$H$18:$H$19,0))=FALSE,"D","")) ->  | F115: =IF(E115="C",0,IF(E115 ="D",ROUND(1/((1+Simulador!$Q$13)^A115),9) * 2,ROUND(1/((1+Simulador!$Q$13)^A115),9))) -> 0.003833188 | G115: 19.55807357
A116: 113 | B116: 113 | C116: 2032-06-28 | D116: 6 | E116: =IF(ISERROR(MATCH(D116,Simulador!$H$16:$H$17,0))=FALSE,"C",IF(ISERROR(MATCH(D116,Simulador!$H$18:$H$19,0))=FALSE,"D","")) ->  | F116: =IF(E116="C",0,IF(E116 ="D",ROUND(1/((1+Simulador!$Q$13)^A116),9) * 2,ROUND(1/((1+Simulador!$Q$13)^A116),9))) -> 0.003647412 | G116: 19.56172098
A117: 114 | B117: 114 | C117: 2032-07-28 | D117: 7 | E117: =IF(ISERROR(MATCH(D117,Simulador!$H$16:$H$17,0))=FALSE,"C",IF(ISERROR(MATCH(D117,Simulador!$H$18:$H$19,0))=FALSE,"D","")) ->  | F117: =IF(E117="C",0,IF(E117 ="D",ROUND(1/((1+Simulador!$Q$13)^A117),9) * 2,ROUND(1/((1+Simulador!$Q$13)^A117),9))) -> 0.003470639 | G117: 19.56519162
A118: 115 | B118: 115 | C118: 2032-08-28 | D118: 8 | E118: =IF(ISERROR(MATCH(D118,Simulador!$H$16:$H$17,0))=FALSE,"C",IF(ISERROR(MATCH(D118,Simulador!$H$18:$H$19,0))=FALSE,"D","")) ->  | F118: =IF(E118="C",0,IF(E118 ="D",ROUND(1/((1+Simulador!$Q$13)^A118),9) * 2,ROUND(1/((1+Simulador!$Q$13)^A118),9))) -> 0.003302433 | G118: 19.56849405
A119: 116 | B119: 116 | C119: 2032-09-28 | D119: 9 | E119: =IF(ISERROR(MATCH(D119,Simulador!$H$16:$H$17,0))=FALSE,"C",IF(ISERROR(MATCH(D119,Simulador!$H$18:$H$19,0))=FALSE,"D","")) ->  | F119: =IF(E119="C",0,IF(E119 ="D",ROUND(1/((1+Simulador!$Q$13)^A119),9) * 2,ROUND(1/((1+Simulador!$Q$13)^A119),9))) -> 0.00314238 | G119: 19.57163643
A120: 117 | B120: 117 | C120: 2032-10-28 | D120: 10 | E120: =IF(ISERROR(MATCH(D120,Simulador!$H$16:$H$17,0))=FALSE,"C",IF(ISERROR(MATCH(D120,Simulador!$H$18:$H$19,0))=FALSE,"D","")) ->  | F120: =IF(E120="C",0,IF(E120 ="D",ROUND(1/((1+Simulador!$Q$13)^A120),9) * 2,ROUND(1/((1+Simulador!$Q$13)^A120),9))) -> 0.002990084 | G120: 19.57462652
A121: 118 | B121: 118 | C121: 2032-11-28 | D121: 11 | E121: =IF(ISERROR(MATCH(D121,Simulador!$H$16:$H$17,0))=FALSE,"C",IF(ISERROR(MATCH(D121,Simulador!$H$18:$H$19,0))=FALSE,"D","")) ->  | F121: =IF(E121="C",0,IF(E121 ="D",ROUND(1/((1+Simulador!$Q$13)^A121),9) * 2,ROUND(1/((1+Simulador!$Q$13)^A121),9))) -> 0.002845169 | G121: 19.57747169
A122: 119 | B122: 119 | C122: 2032-12-28 | D122: 12 | E122: =IF(ISERROR(MATCH(D122,Simulador!$H$16:$H$17,0))=FALSE,"C",IF(ISERROR(MATCH(D122,Simulador!$H$18:$H$19,0))=FALSE,"D","")) ->  | F122: =IF(E122="C",0,IF(E122 ="D",ROUND(1/((1+Simulador!$Q$13)^A122),9) * 2,ROUND(1/((1+Simulador!$Q$13)^A122),9))) -> 0.002707277 | G122: 19.58017896
A123: 120 | B123: 120 | C123: 2033-01-28 | D123: 1 | E123: =IF(ISERROR(MATCH(D123,Simulador!$H$16:$H$17,0))=FALSE,"C",IF(ISERROR(MATCH(D123,Simulador!$H$18:$H$19,0))=FALSE,"D","")) ->  | F123: =IF(E123="C",0,IF(E123 ="D",ROUND(1/((1+Simulador!$Q$13)^A123),9) * 2,ROUND(1/((1+Simulador!$Q$13)^A123),9))) -> 0.002576068 | G123: 19.58275503
A124: 121 | B124: 121 | C124: 2033-02-28 | D124: 2 | E124: =IF(ISERROR(MATCH(D124,Simulador!$H$16:$H$17,0))=FALSE,"C",IF(ISERROR(MATCH(D124,Simulador!$H$18:$H$19,0))=FALSE,"D","")) ->  | F124: =IF(E124="C",0,IF(E124 ="D",ROUND(1/((1+Simulador!$Q$13)^A124),9) * 2,ROUND(1/((1+Simulador!$Q$13)^A124),9))) -> 0.002451218 | G124: 19.58520625
A125: 122 | B125: 122 | C125: 2033-03-28 | D125: 3 | E125: =IF(ISERROR(MATCH(D125,Simulador!$H$16:$H$17,0))=FALSE,"C",IF(ISERROR(MATCH(D125,Simulador!$H$18:$H$19,0))=FALSE,"D","")) ->  | F125: =IF(E125="C",0,IF(E125 ="D",ROUND(1/((1+Simulador!$Q$13)^A125),9) * 2,ROUND(1/((1+Simulador!$Q$13)^A125),9))) -> 0.002332419 | G125: 19.58753867
A126: 123 | B126: 123 | C126: 2033-04-28 | D126: 4 | E126: =IF(ISERROR(MATCH(D126,Simulador!$H$16:$H$17,0))=FALSE,"C",IF(ISERROR(MATCH(D126,Simulador!$H$18:$H$19,0))=FALSE,"D","")) ->  | F126: =IF(E126="C",0,IF(E126 ="D",ROUND(1/((1+Simulador!$Q$13)^A126),9) * 2,ROUND(1/((1+Simulador!$Q$13)^A126),9))) -> 0.002219378 | G126: 19.58975805
A127: 124 | B127: 124 | C127: 2033-05-28 | D127: 5 | E127: =IF(ISERROR(MATCH(D127,Simulador!$H$16:$H$17,0))=FALSE,"C",IF(ISERROR(MATCH(D127,Simulador!$H$18:$H$19,0))=FALSE,"D","")) ->  | F127: =IF(E127="C",0,IF(E127 ="D",ROUND(1/((1+Simulador!$Q$13)^A127),9) * 2,ROUND(1/((1+Simulador!$Q$13)^A127),9))) -> 0.002111815 | G127: 19.59186986
A128: 125 | B128: 125 | C128: 2033-06-28 | D128: 6 | E128: =IF(ISERROR(MATCH(D128,Simulador!$H$16:$H$17,0))=FALSE,"C",IF(ISERROR(MATCH(D128,Simulador!$H$18:$H$19,0))=FALSE,"D","")) ->  | F128: =IF(E128="C",0,IF(E128 ="D",ROUND(1/((1+Simulador!$Q$13)^A128),9) * 2,ROUND(1/((1+Simulador!$Q$13)^A128),9))) -> 0.002009465 | G128: 19.59387933
A129: 126 | B129: 126 | C129: 2033-07-28 | D129: 7 | E129: =IF(ISERROR(MATCH(D129,Simulador!$H$16:$H$17,0))=FALSE,"C",IF(ISERROR(MATCH(D129,Simulador!$H$18:$H$19,0))=FALSE,"D","")) ->  | F129: =IF(E129="C",0,IF(E129 ="D",ROUND(1/((1+Simulador!$Q$13)^A129),9) * 2,ROUND(1/((1+Simulador!$Q$13)^A129),9))) -> 0.001912076 | G129: 19.5957914
A130: 127 | B130: 127 | C130: 2033-08-28 | D130: 8 | E130: =IF(ISERROR(MATCH(D130,Simulador!$H$16:$H$17,0))=FALSE,"C",IF(ISERROR(MATCH(D130,Simulador!$H$18:$H$19,0))=FALSE,"D","")) ->  | F130: =IF(E130="C",0,IF(E130 ="D",ROUND(1/((1+Simulador!$Q$13)^A130),9) * 2,ROUND(1/((1+Simulador!$Q$13)^A130),9))) -> 0.001819407 | G130: 19.59761081
A131: 128 | B131: 128 | C131: 2033-09-28 | D131: 9 | E131: =IF(ISERROR(MATCH(D131,Simulador!$H$16:$H$17,0))=FALSE,"C",IF(ISERROR(MATCH(D131,Simulador!$H$18:$H$19,0))=FALSE,"D","")) ->  | F131: =IF(E131="C",0,IF(E131 ="D",ROUND(1/((1+Simulador!$Q$13)^A131),9) * 2,ROUND(1/((1+Simulador!$Q$13)^A131),9))) -> 0.001731229 | G131: 19.59934204
A132: 129 | B132: 129 | C132: 2033-10-28 | D132: =MONTH(C132) -> 10 | E132: =IF(ISERROR(MATCH(D132,Simulador!$H$16:$H$17,0))=FALSE,"C",IF(ISERROR(MATCH(D132,Simulador!$H$18:$H$19,0))=FALSE,"D","")) ->  | F132: =IF(E132="C",0,IF(E132 ="D",ROUND(1/((1+Simulador!$Q$13)^A132),9) * 2,ROUND(1/((1+Simulador!$Q$13)^A132),9))) -> 0.001647324 | G132: 19.60098936
A133: =A132+1 -> 130 | B133: =IF(E133<>"C",IF(ISERROR(1+B132)=TRUE,1,1+B132),IF(ISNUMBER(B132),B132,1)) -> 130 | C133: =DATE(YEAR(C132) + 1/12,MONTH(C132)+1,DAY(C132)) -> 2033-11-28 | D133: 11 | E133: =IF(ISERROR(MATCH(D133,Simulador!$H$16:$H$17,0))=FALSE,"C",IF(ISERROR(MATCH(D133,Simulador!$H$18:$H$19,0))=FALSE,"D","")) ->  | F133: =IF(E133="C",0,IF(E133 ="D",ROUND(1/((1+Simulador!$Q$13)^A133),9) * 2,ROUND(1/((1+Simulador!$Q$13)^A133),9))) -> 0.001567486 | G133: 19.60255685
A134: 131 | B134: 131 | C134: 2033-12-28 | D134: 12 | E134: =IF(ISERROR(MATCH(D134,Simulador!$H$16:$H$17,0))=FALSE,"C",IF(ISERROR(MATCH(D134,Simulador!$H$18:$H$19,0))=FALSE,"D","")) ->  | F134: =IF(E134="C",0,IF(E134 ="D",ROUND(1/((1+Simulador!$Q$13)^A134),9) * 2,ROUND(1/((1+Simulador!$Q$13)^A134),9))) -> 0.001491518 | G134: =G133+ROUND(F134,9) -> 19.60404837
A135: 132 | B135: 132 | C135: 2034-01-28 | D135: 1 | E135: =IF(ISERROR(MATCH(D135,Simulador!$H$16:$H$17,0))=FALSE,"C",IF(ISERROR(MATCH(D135,Simulador!$H$18:$H$19,0))=FALSE,"D","")) ->  | F135: =IF(E135="C",0,IF(E135 ="D",ROUND(1/((1+Simulador!$Q$13)^A135),9) * 2,ROUND(1/((1+Simulador!$Q$13)^A135),9))) -> 0.001419231 | G135: 19.6054676
A136: 133 | B136: 133 | C136: 2034-02-28 | D136: 2 | E136: =IF(ISERROR(MATCH(D136,Simulador!$H$16:$H$17,0))=FALSE,"C",IF(ISERROR(MATCH(D136,Simulador!$H$18:$H$19,0))=FALSE,"D","")) ->  | F136: =IF(E136="C",0,IF(E136 ="D",ROUND(1/((1+Simulador!$Q$13)^A136),9) * 2,ROUND(1/((1+Simulador!$Q$13)^A136),9))) -> 0.001350447 | G136: 19.60681804
A137: 134 | B137: 134 | C137: 2034-03-28 | D137: 3 | E137: =IF(ISERROR(MATCH(D137,Simulador!$H$16:$H$17,0))=FALSE,"C",IF(ISERROR(MATCH(D137,Simulador!$H$18:$H$19,0))=FALSE,"D","")) ->  | F137: =IF(E137="C",0,IF(E137 ="D",ROUND(1/((1+Simulador!$Q$13)^A137),9) * 2,ROUND(1/((1+Simulador!$Q$13)^A137),9))) -> 0.001284998 | G137: 19.60810304
A138: 135 | B138: 135 | C138: 2034-04-28 | D138: 4 | E138: =IF(ISERROR(MATCH(D138,Simulador!$H$16:$H$17,0))=FALSE,"C",IF(ISERROR(MATCH(D138,Simulador!$H$18:$H$19,0))=FALSE,"D","")) ->  | F138: =IF(E138="C",0,IF(E138 ="D",ROUND(1/((1+Simulador!$Q$13)^A138),9) * 2,ROUND(1/((1+Simulador!$Q$13)^A138),9))) -> 0.00122272 | G138: 19.60932576
A139: 136 | B139: 136 | C139: 2034-05-28 | D139: 5 | E139: =IF(ISERROR(MATCH(D139,Simulador!$H$16:$H$17,0))=FALSE,"C",IF(ISERROR(MATCH(D139,Simulador!$H$18:$H$19,0))=FALSE,"D","")) ->  | F139: =IF(E139="C",0,IF(E139 ="D",ROUND(1/((1+Simulador!$Q$13)^A139),9) * 2,ROUND(1/((1+Simulador!$Q$13)^A139),9))) -> 0.00116346 | G139: 19.61048922
A140: 137 | B140: 137 | C140: 2034-06-28 | D140: 6 | E140: =IF(ISERROR(MATCH(D140,Simulador!$H$16:$H$17,0))=FALSE,"C",IF(ISERROR(MATCH(D140,Simulador!$H$18:$H$19,0))=FALSE,"D","")) ->  | F140: =IF(E140="C",0,IF(E140 ="D",ROUND(1/((1+Simulador!$Q$13)^A140),9) * 2,ROUND(1/((1+Simulador!$Q$13)^A140),9))) -> 0.001107073 | G140: 19.61159629
A141: 138 | B141: 138 | C141: 2034-07-28 | D141: 7 | E141: =IF(ISERROR(MATCH(D141,Simulador!$H$16:$H$17,0))=FALSE,"C",IF(ISERROR(MATCH(D141,Simulador!$H$18:$H$19,0))=FALSE,"D","")) ->  | F141: =IF(E141="C",0,IF(E141 ="D",ROUND(1/((1+Simulador!$Q$13)^A141),9) * 2,ROUND(1/((1+Simulador!$Q$13)^A141),9))) -> 0.001053418 | G141: 19.61264971
A142: 139 | B142: 139 | C142: 2034-08-28 | D142: 8 | E142: =IF(ISERROR(MATCH(D142,Simulador!$H$16:$H$17,0))=FALSE,"C",IF(ISERROR(MATCH(D142,Simulador!$H$18:$H$19,0))=FALSE,"D","")) ->  | F142: =IF(E142="C",0,IF(E142 ="D",ROUND(1/((1+Simulador!$Q$13)^A142),9) * 2,ROUND(1/((1+Simulador!$Q$13)^A142),9))) -> 0.001002364 | G142: 19.61365208
A143: 140 | B143: 140 | C143: 2034-09-28 | D143: 9 | E143: =IF(ISERROR(MATCH(D143,Simulador!$H$16:$H$17,0))=FALSE,"C",IF(ISERROR(MATCH(D143,Simulador!$H$18:$H$19,0))=FALSE,"D","")) ->  | F143: =IF(E143="C",0,IF(E143 ="D",ROUND(1/((1+Simulador!$Q$13)^A143),9) * 2,ROUND(1/((1+Simulador!$Q$13)^A143),9))) -> 0.000953784 | G143: 19.61460586
A144: 141 | B144: 141 | C144: 2034-10-28 | D144: 10 | E144: =IF(ISERROR(MATCH(D144,Simulador!$H$16:$H$17,0))=FALSE,"C",IF(ISERROR(MATCH(D144,Simulador!$H$18:$H$19,0))=FALSE,"D","")) ->  | F144: =IF(E144="C",0,IF(E144 ="D",ROUND(1/((1+Simulador!$Q$13)^A144),9) * 2,ROUND(1/((1+Simulador!$Q$13)^A144),9))) -> 0.000907559 | G144: 19.61551342
A145: 142 | B145: 142 | C145: 2034-11-28 | D145: 11 | E145: =IF(ISERROR(MATCH(D145,Simulador!$H$16:$H$17,0))=FALSE,"C",IF(ISERROR(MATCH(D145,Simulador!$H$18:$H$19,0))=FALSE,"D","")) ->  | F145: =IF(E145="C",0,IF(E145 ="D",ROUND(1/((1+Simulador!$Q$13)^A145),9) * 2,ROUND(1/((1+Simulador!$Q$13)^A145),9))) -> 0.000863574 | G145: 19.61637699
A146: 143 | B146: 143 | C146: 2034-12-28 | D146: 12 | E146: =IF(ISERROR(MATCH(D146,Simulador!$H$16:$H$17,0))=FALSE,"C",IF(ISERROR(MATCH(D146,Simulador!$H$18:$H$19,0))=FALSE,"D","")) ->  | F146: =IF(E146="C",0,IF(E146 ="D",ROUND(1/((1+Simulador!$Q$13)^A146),9) * 2,ROUND(1/((1+Simulador!$Q$13)^A146),9))) -> 0.00082172 | G146: 19.61719871
A147: 144 | B147: 144 | C147: 2035-01-28 | D147: 1 | E147: =IF(ISERROR(MATCH(D147,Simulador!$H$16:$H$17,0))=FALSE,"C",IF(ISERROR(MATCH(D147,Simulador!$H$18:$H$19,0))=FALSE,"D","")) ->  | F147: =IF(E147="C",0,IF(E147 ="D",ROUND(1/((1+Simulador!$Q$13)^A147),9) * 2,ROUND(1/((1+Simulador!$Q$13)^A147),9))) -> 0.000781896 | G147: 19.61798061
A148: 145 | B148: 145 | C148: 2035-02-28 | D148: 2 | E148: =IF(ISERROR(MATCH(D148,Simulador!$H$16:$H$17,0))=FALSE,"C",IF(ISERROR(MATCH(D148,Simulador!$H$18:$H$19,0))=FALSE,"D","")) ->  | F148: =IF(E148="C",0,IF(E148 ="D",ROUND(1/((1+Simulador!$Q$13)^A148),9) * 2,ROUND(1/((1+Simulador!$Q$13)^A148),9))) -> 0.000744001 | G148: 19.61872461
A149: 146 | B149: 146 | C149: 2035-03-28 | D149: 3 | E149: =IF(ISERROR(MATCH(D149,Simulador!$H$16:$H$17,0))=FALSE,"C",IF(ISERROR(MATCH(D149,Simulador!$H$18:$H$19,0))=FALSE,"D","")) ->  | F149: =IF(E149="C",0,IF(E149 ="D",ROUND(1/((1+Simulador!$Q$13)^A149),9) * 2,ROUND(1/((1+Simulador!$Q$13)^A149),9))) -> 0.000707943 | G149: 19.61943255
A150: 147 | B150: 147 | C150: 2035-04-28 | D150: 4 | E150: =IF(ISERROR(MATCH(D150,Simulador!$H$16:$H$17,0))=FALSE,"C",IF(ISERROR(MATCH(D150,Simulador!$H$18:$H$19,0))=FALSE,"D","")) ->  | F150: =IF(E150="C",0,IF(E150 ="D",ROUND(1/((1+Simulador!$Q$13)^A150),9) * 2,ROUND(1/((1+Simulador!$Q$13)^A150),9))) -> 0.000673632 | G150: 19.62010619
A151: 148 | B151: 148 | C151: 2035-05-28 | D151: 5 | E151: =IF(ISERROR(MATCH(D151,Simulador!$H$16:$H$17,0))=FALSE,"C",IF(ISERROR(MATCH(D151,Simulador!$H$18:$H$19,0))=FALSE,"D","")) ->  | F151: =IF(E151="C",0,IF(E151 ="D",ROUND(1/((1+Simulador!$Q$13)^A151),9) * 2,ROUND(1/((1+Simulador!$Q$13)^A151),9))) -> 0.000640984 | G151: 19.62074717
A152: 149 | B152: 149 | C152: 2035-06-28 | D152: 6 | E152: =IF(ISERROR(MATCH(D152,Simulador!$H$16:$H$17,0))=FALSE,"C",IF(ISERROR(MATCH(D152,Simulador!$H$18:$H$19,0))=FALSE,"D","")) ->  | F152: =IF(E152="C",0,IF(E152 ="D",ROUND(1/((1+Simulador!$Q$13)^A152),9) * 2,ROUND(1/((1+Simulador!$Q$13)^A152),9))) -> 0.000609919 | G152: 19.62135709
A153: 150 | B153: 150 | C153: 2035-07-28 | D153: 7 | E153: =IF(ISERROR(MATCH(D153,Simulador!$H$16:$H$17,0))=FALSE,"C",IF(ISERROR(MATCH(D153,Simulador!$H$18:$H$19,0))=FALSE,"D","")) ->  | F153: =IF(E153="C",0,IF(E153 ="D",ROUND(1/((1+Simulador!$Q$13)^A153),9) * 2,ROUND(1/((1+Simulador!$Q$13)^A153),9))) -> 0.000580359 | G153: 19.62193745
A154: 151 | B154: 151 | C154: 2035-08-28 | D154: 8 | E154: =IF(ISERROR(MATCH(D154,Simulador!$H$16:$H$17,0))=FALSE,"C",IF(ISERROR(MATCH(D154,Simulador!$H$18:$H$19,0))=FALSE,"D","")) ->  | F154: =IF(E154="C",0,IF(E154 ="D",ROUND(1/((1+Simulador!$Q$13)^A154),9) * 2,ROUND(1/((1+Simulador!$Q$13)^A154),9))) -> 0.000552232 | G154: 19.62248968
A155: 152 | B155: 152 | C155: 2035-09-28 | D155: 9 | E155: =IF(ISERROR(MATCH(D155,Simulador!$H$16:$H$17,0))=FALSE,"C",IF(ISERROR(MATCH(D155,Simulador!$H$18:$H$19,0))=FALSE,"D","")) ->  | F155: =IF(E155="C",0,IF(E155 ="D",ROUND(1/((1+Simulador!$Q$13)^A155),9) * 2,ROUND(1/((1+Simulador!$Q$13)^A155),9))) -> 0.000525468 | G155: 19.62301515
A156: 153 | B156: 153 | C156: 2035-10-28 | D156: 10 | E156: =IF(ISERROR(MATCH(D156,Simulador!$H$16:$H$17,0))=FALSE,"C",IF(ISERROR(MATCH(D156,Simulador!$H$18:$H$19,0))=FALSE,"D","")) ->  | F156: =IF(E156="C",0,IF(E156 ="D",ROUND(1/((1+Simulador!$Q$13)^A156),9) * 2,ROUND(1/((1+Simulador!$Q$13)^A156),9))) -> 0.000500001 | G156: 19.62351515
A157: 154 | B157: 154 | C157: 2035-11-28 | D157: 11 | E157: =IF(ISERROR(MATCH(D157,Simulador!$H$16:$H$17,0))=FALSE,"C",IF(ISERROR(MATCH(D157,Simulador!$H$18:$H$19,0))=FALSE,"D","")) ->  | F157: =IF(E157="C",0,IF(E157 ="D",ROUND(1/((1+Simulador!$Q$13)^A157),9) * 2,ROUND(1/((1+Simulador!$Q$13)^A157),9))) -> 0.000475768 | G157: 19.62399092
A158: 155 | B158: 155 | C158: 2035-12-28 | D158: 12 | E158: =IF(ISERROR(MATCH(D158,Simulador!$H$16:$H$17,0))=FALSE,"C",IF(ISERROR(MATCH(D158,Simulador!$H$18:$H$19,0))=FALSE,"D","")) ->  | F158: =IF(E158="C",0,IF(E158 ="D",ROUND(1/((1+Simulador!$Q$13)^A158),9) * 2,ROUND(1/((1+Simulador!$Q$13)^A158),9))) -> 0.00045271 | G158: 19.62444363
A159: 156 | B159: 156 | C159: 2036-01-28 | D159: 1 | E159: =IF(ISERROR(MATCH(D159,Simulador!$H$16:$H$17,0))=FALSE,"C",IF(ISERROR(MATCH(D159,Simulador!$H$18:$H$19,0))=FALSE,"D","")) ->  | F159: =IF(E159="C",0,IF(E159 ="D",ROUND(1/((1+Simulador!$Q$13)^A159),9) * 2,ROUND(1/((1+Simulador!$Q$13)^A159),9))) -> 0.000430769 | G159: 19.6248744
A160: 157 | B160: 157 | C160: 2036-02-28 | D160: 2 | E160: =IF(ISERROR(MATCH(D160,Simulador!$H$16:$H$17,0))=FALSE,"C",IF(ISERROR(MATCH(D160,Simulador!$H$18:$H$19,0))=FALSE,"D","")) ->  | F160: =IF(E160="C",0,IF(E160 ="D",ROUND(1/((1+Simulador!$Q$13)^A160),9) * 2,ROUND(1/((1+Simulador!$Q$13)^A160),9))) -> 0.000409892 | G160: 19.62528429
A161: 158 | B161: 158 | C161: 2036-03-28 | D161: 3 | E161: =IF(ISERROR(MATCH(D161,Simulador!$H$16:$H$17,0))=FALSE,"C",IF(ISERROR(MATCH(D161,Simulador!$H$18:$H$19,0))=FALSE,"D","")) ->  | F161: =IF(E161="C",0,IF(E161 ="D",ROUND(1/((1+Simulador!$Q$13)^A161),9) * 2,ROUND(1/((1+Simulador!$Q$13)^A161),9))) -> 0.000390026 | G161: 19.62567431
A162: 159 | B162: 159 | C162: 2036-04-28 | D162: 4 | E162: =IF(ISERROR(MATCH(D162,Simulador!$H$16:$H$17,0))=FALSE,"C",IF(ISERROR(MATCH(D162,Simulador!$H$18:$H$19,0))=FALSE,"D","")) ->  | F162: =IF(E162="C",0,IF(E162 ="D",ROUND(1/((1+Simulador!$Q$13)^A162),9) * 2,ROUND(1/((1+Simulador!$Q$13)^A162),9))) -> 0.000371123 | G162: 19.62604544
A163: 160 | B163: 160 | C163: 2036-05-28 | D163: 5 | E163: =IF(ISERROR(MATCH(D163,Simulador!$H$16:$H$17,0))=FALSE,"C",IF(ISERROR(MATCH(D163,Simulador!$H$18:$H$19,0))=FALSE,"D","")) ->  | F163: =IF(E163="C",0,IF(E163 ="D",ROUND(1/((1+Simulador!$Q$13)^A163),9) * 2,ROUND(1/((1+Simulador!$Q$13)^A163),9))) -> 0.000353137 | G163: 19.62639857
A164: 161 | B164: 161 | C164: 2036-06-28 | D164: 6 | E164: =IF(ISERROR(MATCH(D164,Simulador!$H$16:$H$17,0))=FALSE,"C",IF(ISERROR(MATCH(D164,Simulador!$H$18:$H$19,0))=FALSE,"D","")) ->  | F164: =IF(E164="C",0,IF(E164 ="D",ROUND(1/((1+Simulador!$Q$13)^A164),9) * 2,ROUND(1/((1+Simulador!$Q$13)^A164),9))) -> 0.000336022 | G164: 19.6267346
A165: 162 | B165: 162 | C165: 2036-07-28 | D165: 7 | E165: =IF(ISERROR(MATCH(D165,Simulador!$H$16:$H$17,0))=FALSE,"C",IF(ISERROR(MATCH(D165,Simulador!$H$18:$H$19,0))=FALSE,"D","")) ->  | F165: =IF(E165="C",0,IF(E165 ="D",ROUND(1/((1+Simulador!$Q$13)^A165),9) * 2,ROUND(1/((1+Simulador!$Q$13)^A165),9))) -> 0.000319737 | G165: 19.62705433
A166: 163 | B166: 163 | C166: 2036-08-28 | D166: 8 | E166: =IF(ISERROR(MATCH(D166,Simulador!$H$16:$H$17,0))=FALSE,"C",IF(ISERROR(MATCH(D166,Simulador!$H$18:$H$19,0))=FALSE,"D","")) ->  | F166: =IF(E166="C",0,IF(E166 ="D",ROUND(1/((1+Simulador!$Q$13)^A166),9) * 2,ROUND(1/((1+Simulador!$Q$13)^A166),9))) -> 0.00030424 | G166: 19.62735857
A167: 164 | B167: 164 | C167: 2036-09-28 | D167: 9 | E167: =IF(ISERROR(MATCH(D167,Simulador!$H$16:$H$17,0))=FALSE,"C",IF(ISERROR(MATCH(D167,Simulador!$H$18:$H$19,0))=FALSE,"D","")) ->  | F167: =IF(E167="C",0,IF(E167 ="D",ROUND(1/((1+Simulador!$Q$13)^A167),9) * 2,ROUND(1/((1+Simulador!$Q$13)^A167),9))) -> 0.000289495 | G167: 19.62764807
A168: 165 | B168: 165 | C168: 2036-10-28 | D168: 10 | E168: =IF(ISERROR(MATCH(D168,Simulador!$H$16:$H$17,0))=FALSE,"C",IF(ISERROR(MATCH(D168,Simulador!$H$18:$H$19,0))=FALSE,"D","")) ->  | F168: =IF(E168="C",0,IF(E168 ="D",ROUND(1/((1+Simulador!$Q$13)^A168),9) * 2,ROUND(1/((1+Simulador!$Q$13)^A168),9))) -> 0.000275465 | G168: 19.62792353
A169: 166 | B169: 166 | C169: 2036-11-28 | D169: 11 | E169: =IF(ISERROR(MATCH(D169,Simulador!$H$16:$H$17,0))=FALSE,"C",IF(ISERROR(MATCH(D169,Simulador!$H$18:$H$19,0))=FALSE,"D","")) ->  | F169: =IF(E169="C",0,IF(E169 ="D",ROUND(1/((1+Simulador!$Q$13)^A169),9) * 2,ROUND(1/((1+Simulador!$Q$13)^A169),9))) -> 0.000262114 | G169: 19.62818565
A170: 167 | B170: 167 | C170: 2036-12-28 | D170: 12 | E170: =IF(ISERROR(MATCH(D170,Simulador!$H$16:$H$17,0))=FALSE,"C",IF(ISERROR(MATCH(D170,Simulador!$H$18:$H$19,0))=FALSE,"D","")) ->  | F170: =IF(E170="C",0,IF(E170 ="D",ROUND(1/((1+Simulador!$Q$13)^A170),9) * 2,ROUND(1/((1+Simulador!$Q$13)^A170),9))) -> 0.000249411 | G170: 19.62843506
A171: 168 | B171: 168 | C171: 2037-01-28 | D171: 1 | E171: =IF(ISERROR(MATCH(D171,Simulador!$H$16:$H$17,0))=FALSE,"C",IF(ISERROR(MATCH(D171,Simulador!$H$18:$H$19,0))=FALSE,"D","")) ->  | F171: =IF(E171="C",0,IF(E171 ="D",ROUND(1/((1+Simulador!$Q$13)^A171),9) * 2,ROUND(1/((1+Simulador!$Q$13)^A171),9))) -> 0.000237323 | G171: 19.62867238
A172: 169 | B172: 169 | C172: 2037-02-28 | D172: 2 | E172: =IF(ISERROR(MATCH(D172,Simulador!$H$16:$H$17,0))=FALSE,"C",IF(ISERROR(MATCH(D172,Simulador!$H$18:$H$19,0))=FALSE,"D","")) ->  | F172: =IF(E172="C",0,IF(E172 ="D",ROUND(1/((1+Simulador!$Q$13)^A172),9) * 2,ROUND(1/((1+Simulador!$Q$13)^A172),9))) -> 0.000225821 | G172: 19.6288982
A173: 170 | B173: 170 | C173: 2037-03-28 | D173: 3 | E173: =IF(ISERROR(MATCH(D173,Simulador!$H$16:$H$17,0))=FALSE,"C",IF(ISERROR(MATCH(D173,Simulador!$H$18:$H$19,0))=FALSE,"D","")) ->  | F173: =IF(E173="C",0,IF(E173 ="D",ROUND(1/((1+Simulador!$Q$13)^A173),9) * 2,ROUND(1/((1+Simulador!$Q$13)^A173),9))) -> 0.000214877 | G173: 19.62911308
A174: 171 | B174: 171 | C174: 2037-04-28 | D174: 4 | E174: =IF(ISERROR(MATCH(D174,Simulador!$H$16:$H$17,0))=FALSE,"C",IF(ISERROR(MATCH(D174,Simulador!$H$18:$H$19,0))=FALSE,"D","")) ->  | F174: =IF(E174="C",0,IF(E174 ="D",ROUND(1/((1+Simulador!$Q$13)^A174),9) * 2,ROUND(1/((1+Simulador!$Q$13)^A174),9))) -> 0.000204463 | G174: 19.62931754
A175: 172 | B175: 172 | C175: 2037-05-28 | D175: 5 | E175: =IF(ISERROR(MATCH(D175,Simulador!$H$16:$H$17,0))=FALSE,"C",IF(ISERROR(MATCH(D175,Simulador!$H$18:$H$19,0))=FALSE,"D","")) ->  | F175: =IF(E175="C",0,IF(E175 ="D",ROUND(1/((1+Simulador!$Q$13)^A175),9) * 2,ROUND(1/((1+Simulador!$Q$13)^A175),9))) -> 0.000194553 | G175: 19.62951209
A176: 173 | B176: 173 | C176: 2037-06-28 | D176: 6 | E176: =IF(ISERROR(MATCH(D176,Simulador!$H$16:$H$17,0))=FALSE,"C",IF(ISERROR(MATCH(D176,Simulador!$H$18:$H$19,0))=FALSE,"D","")) ->  | F176: =IF(E176="C",0,IF(E176 ="D",ROUND(1/((1+Simulador!$Q$13)^A176),9) * 2,ROUND(1/((1+Simulador!$Q$13)^A176),9))) -> 0.000185124 | G176: 19.62969722
A177: 174 | B177: 174 | C177: 2037-07-28 | D177: 7 | E177: =IF(ISERROR(MATCH(D177,Simulador!$H$16:$H$17,0))=FALSE,"C",IF(ISERROR(MATCH(D177,Simulador!$H$18:$H$19,0))=FALSE,"D","")) ->  | F177: =IF(E177="C",0,IF(E177 ="D",ROUND(1/((1+Simulador!$Q$13)^A177),9) * 2,ROUND(1/((1+Simulador!$Q$13)^A177),9))) -> 0.000176152 | G177: 19.62987337
A178: 175 | B178: 175 | C178: 2037-08-28 | D178: 8 | E178: =IF(ISERROR(MATCH(D178,Simulador!$H$16:$H$17,0))=FALSE,"C",IF(ISERROR(MATCH(D178,Simulador!$H$18:$H$19,0))=FALSE,"D","")) ->  | F178: =IF(E178="C",0,IF(E178 ="D",ROUND(1/((1+Simulador!$Q$13)^A178),9) * 2,ROUND(1/((1+Simulador!$Q$13)^A178),9))) -> 0.000167615 | G178: 19.63004099
A179: 176 | B179: 176 | C179: 2037-09-28 | D179: 9 | E179: =IF(ISERROR(MATCH(D179,Simulador!$H$16:$H$17,0))=FALSE,"C",IF(ISERROR(MATCH(D179,Simulador!$H$18:$H$19,0))=FALSE,"D","")) ->  | F179: =IF(E179="C",0,IF(E179 ="D",ROUND(1/((1+Simulador!$Q$13)^A179),9) * 2,ROUND(1/((1+Simulador!$Q$13)^A179),9))) -> 0.000159491 | G179: 19.63020048
A180: 177 | B180: 177 | C180: 2037-10-28 | D180: 10 | E180: =IF(ISERROR(MATCH(D180,Simulador!$H$16:$H$17,0))=FALSE,"C",IF(ISERROR(MATCH(D180,Simulador!$H$18:$H$19,0))=FALSE,"D","")) ->  | F180: =IF(E180="C",0,IF(E180 ="D",ROUND(1/((1+Simulador!$Q$13)^A180),9) * 2,ROUND(1/((1+Simulador!$Q$13)^A180),9))) -> 0.000151762 | G180: 19.63035224
A181: 178 | B181: 178 | C181: 2037-11-28 | D181: 11 | E181: =IF(ISERROR(MATCH(D181,Simulador!$H$16:$H$17,0))=FALSE,"C",IF(ISERROR(MATCH(D181,Simulador!$H$18:$H$19,0))=FALSE,"D","")) ->  | F181: =IF(E181="C",0,IF(E181 ="D",ROUND(1/((1+Simulador!$Q$13)^A181),9) * 2,ROUND(1/((1+Simulador!$Q$13)^A181),9))) -> 0.000144406 | G181: 19.63049664
A182: 179 | B182: 179 | C182: 2037-12-28 | D182: 12 | E182: =IF(ISERROR(MATCH(D182,Simulador!$H$16:$H$17,0))=FALSE,"C",IF(ISERROR(MATCH(D182,Simulador!$H$18:$H$19,0))=FALSE,"D","")) ->  | F182: =IF(E182="C",0,IF(E182 ="D",ROUND(1/((1+Simulador!$Q$13)^A182),9) * 2,ROUND(1/((1+Simulador!$Q$13)^A182),9))) -> 0.000137408 | G182: 19.63063405
A183: 180 | B183: 180 | C183: 2038-01-28 | D183: 1 | E183: =IF(ISERROR(MATCH(D183,Simulador!$H$16:$H$17,0))=FALSE,"C",IF(ISERROR(MATCH(D183,Simulador!$H$18:$H$19,0))=FALSE,"D","")) ->  | F183: =IF(E183="C",0,IF(E183 ="D",ROUND(1/((1+Simulador!$Q$13)^A183),9) * 2,ROUND(1/((1+Simulador!$Q$13)^A183),9))) -> 0.000130748 | G183: 19.6307648
A184: 181 | B184: 181 | C184: 2038-02-28 | D184: 2 | E184: =IF(ISERROR(MATCH(D184,Simulador!$H$16:$H$17,0))=FALSE,"C",IF(ISERROR(MATCH(D184,Simulador!$H$18:$H$19,0))=FALSE,"D","")) ->  | F184: =IF(E184="C",0,IF(E184 ="D",ROUND(1/((1+Simulador!$Q$13)^A184),9) * 2,ROUND(1/((1+Simulador!$Q$13)^A184),9))) -> 0.000124412 | G184: 19.63088921
A185: 182 | B185: 182 | C185: 2038-03-28 | D185: 3 | E185: =IF(ISERROR(MATCH(D185,Simulador!$H$16:$H$17,0))=FALSE,"C",IF(ISERROR(MATCH(D185,Simulador!$H$18:$H$19,0))=FALSE,"D","")) ->  | F185: =IF(E185="C",0,IF(E185 ="D",ROUND(1/((1+Simulador!$Q$13)^A185),9) * 2,ROUND(1/((1+Simulador!$Q$13)^A185),9))) -> 0.000118382 | G185: 19.63100759
A186: 183 | B186: 183 | C186: 2038-04-28 | D186: 4 | E186: =IF(ISERROR(MATCH(D186,Simulador!$H$16:$H$17,0))=FALSE,"C",IF(ISERROR(MATCH(D186,Simulador!$H$18:$H$19,0))=FALSE,"D","")) ->  | F186: =IF(E186="C",0,IF(E186 ="D",ROUND(1/((1+Simulador!$Q$13)^A186),9) * 2,ROUND(1/((1+Simulador!$Q$13)^A186),9))) -> 0.000112644 | G186: 19.63112024
A187: 184 | B187: 184 | C187: 2038-05-28 | D187: 5 | E187: =IF(ISERROR(MATCH(D187,Simulador!$H$16:$H$17,0))=FALSE,"C",IF(ISERROR(MATCH(D187,Simulador!$H$18:$H$19,0))=FALSE,"D","")) ->  | F187: =IF(E187="C",0,IF(E187 ="D",ROUND(1/((1+Simulador!$Q$13)^A187),9) * 2,ROUND(1/((1+Simulador!$Q$13)^A187),9))) -> 0.000107185 | G187: 19.63122742
A188: 185 | B188: 185 | C188: 2038-06-28 | D188: 6 | E188: =IF(ISERROR(MATCH(D188,Simulador!$H$16:$H$17,0))=FALSE,"C",IF(ISERROR(MATCH(D188,Simulador!$H$18:$H$19,0))=FALSE,"D","")) ->  | F188: =IF(E188="C",0,IF(E188 ="D",ROUND(1/((1+Simulador!$Q$13)^A188),9) * 2,ROUND(1/((1+Simulador!$Q$13)^A188),9))) -> 0.00010199 | G188: 19.63132941
A189: 186 | B189: 186 | C189: 2038-07-28 | D189: 7 | E189: =IF(ISERROR(MATCH(D189,Simulador!$H$16:$H$17,0))=FALSE,"C",IF(ISERROR(MATCH(D189,Simulador!$H$18:$H$19,0))=FALSE,"D","")) ->  | F189: =IF(E189="C",0,IF(E189 ="D",ROUND(1/((1+Simulador!$Q$13)^A189),9) * 2,ROUND(1/((1+Simulador!$Q$13)^A189),9))) -> 9.7047e-05 | G189: 19.63142646
A190: 187 | B190: 187 | C190: 2038-08-28 | D190: 8 | E190: =IF(ISERROR(MATCH(D190,Simulador!$H$16:$H$17,0))=FALSE,"C",IF(ISERROR(MATCH(D190,Simulador!$H$18:$H$19,0))=FALSE,"D","")) ->  | F190: =IF(E190="C",0,IF(E190 ="D",ROUND(1/((1+Simulador!$Q$13)^A190),9) * 2,ROUND(1/((1+Simulador!$Q$13)^A190),9))) -> 9.2344e-05 | G190: 19.6315188
A191: 188 | B191: 188 | C191: 2038-09-28 | D191: 9 | E191: =IF(ISERROR(MATCH(D191,Simulador!$H$16:$H$17,0))=FALSE,"C",IF(ISERROR(MATCH(D191,Simulador!$H$18:$H$19,0))=FALSE,"D","")) ->  | F191: =IF(E191="C",0,IF(E191 ="D",ROUND(1/((1+Simulador!$Q$13)^A191),9) * 2,ROUND(1/((1+Simulador!$Q$13)^A191),9))) -> 8.7868e-05 | G191: 19.63160667
A192: 189 | B192: 189 | C192: 2038-10-28 | D192: 10 | E192: =IF(ISERROR(MATCH(D192,Simulador!$H$16:$H$17,0))=FALSE,"C",IF(ISERROR(MATCH(D192,Simulador!$H$18:$H$19,0))=FALSE,"D","")) ->  | F192: =IF(E192="C",0,IF(E192 ="D",ROUND(1/((1+Simulador!$Q$13)^A192),9) * 2,ROUND(1/((1+Simulador!$Q$13)^A192),9))) -> 8.361e-05 | G192: 19.63169028
A193: 190 | B193: 190 | C193: 2038-11-28 | D193: 11 | E193: =IF(ISERROR(MATCH(D193,Simulador!$H$16:$H$17,0))=FALSE,"C",IF(ISERROR(MATCH(D193,Simulador!$H$18:$H$19,0))=FALSE,"D","")) ->  | F193: =IF(E193="C",0,IF(E193 ="D",ROUND(1/((1+Simulador!$Q$13)^A193),9) * 2,ROUND(1/((1+Simulador!$Q$13)^A193),9))) -> 7.9558e-05 | G193: 19.63176984
A194: 191 | B194: 191 | C194: 2038-12-28 | D194: 12 | E194: =IF(ISERROR(MATCH(D194,Simulador!$H$16:$H$17,0))=FALSE,"C",IF(ISERROR(MATCH(D194,Simulador!$H$18:$H$19,0))=FALSE,"D","")) ->  | F194: =IF(E194="C",0,IF(E194 ="D",ROUND(1/((1+Simulador!$Q$13)^A194),9) * 2,ROUND(1/((1+Simulador!$Q$13)^A194),9))) -> 7.5702e-05 | G194: 19.63184554
A195: 192 | B195: 192 | C195: 2039-01-28 | D195: 1 | E195: =IF(ISERROR(MATCH(D195,Simulador!$H$16:$H$17,0))=FALSE,"C",IF(ISERROR(MATCH(D195,Simulador!$H$18:$H$19,0))=FALSE,"D","")) ->  | F195: =IF(E195="C",0,IF(E195 ="D",ROUND(1/((1+Simulador!$Q$13)^A195),9) * 2,ROUND(1/((1+Simulador!$Q$13)^A195),9))) -> 7.2033e-05 | G195: 19.63191758
A196: 193 | B196: 193 | C196: 2039-02-28 | D196: =MONTH(C196) -> 2 | E196: =IF(ISERROR(MATCH(D196,Simulador!$H$16:$H$17,0))=FALSE,"C",IF(ISERROR(MATCH(D196,Simulador!$H$18:$H$19,0))=FALSE,"D","")) ->  | F196: =IF(E196="C",0,IF(E196 ="D",ROUND(1/((1+Simulador!$Q$13)^A196),9) * 2,ROUND(1/((1+Simulador!$Q$13)^A196),9))) -> 6.8542e-05 | G196: 19.63198612
A197: =A196+1 -> 194 | B197: =IF(E197<>"C",IF(ISERROR(1+B196)=TRUE,1,1+B196),IF(ISNUMBER(B196),B196,1)) -> 194 | C197: =DATE(YEAR(C196) + 1/12,MONTH(C196)+1,DAY(C196)) -> 2039-03-28 | D197: 3 | E197: =IF(ISERROR(MATCH(D197,Simulador!$H$16:$H$17,0))=FALSE,"C",IF(ISERROR(MATCH(D197,Simulador!$H$18:$H$19,0))=FALSE,"D","")) ->  | F197: =IF(E197="C",0,IF(E197 ="D",ROUND(1/((1+Simulador!$Q$13)^A197),9) * 2,ROUND(1/((1+Simulador!$Q$13)^A197),9))) -> 6.522e-05 | G197: 19.63205134
A198: 195 | B198: 195 | C198: 2039-04-28 | D198: 4 | E198: =IF(ISERROR(MATCH(D198,Simulador!$H$16:$H$17,0))=FALSE,"C",IF(ISERROR(MATCH(D198,Simulador!$H$18:$H$19,0))=FALSE,"D","")) ->  | F198: =IF(E198="C",0,IF(E198 ="D",ROUND(1/((1+Simulador!$Q$13)^A198),9) * 2,ROUND(1/((1+Simulador!$Q$13)^A198),9))) -> 6.2059e-05 | G198: =G197+ROUND(F198,9) -> 19.6321134
A199: 196 | B199: 196 | C199: 2039-05-28 | D199: 5 | E199: =IF(ISERROR(MATCH(D199,Simulador!$H$16:$H$17,0))=FALSE,"C",IF(ISERROR(MATCH(D199,Simulador!$H$18:$H$19,0))=FALSE,"D","")) ->  | F199: =IF(E199="C",0,IF(E199 ="D",ROUND(1/((1+Simulador!$Q$13)^A199),9) * 2,ROUND(1/((1+Simulador!$Q$13)^A199),9))) -> 5.9051e-05 | G199: 19.63217245
A200: 197 | B200: 197 | C200: 2039-06-28 | D200: 6 | E200: =IF(ISERROR(MATCH(D200,Simulador!$H$16:$H$17,0))=FALSE,"C",IF(ISERROR(MATCH(D200,Simulador!$H$18:$H$19,0))=FALSE,"D","")) ->  | F200: =IF(E200="C",0,IF(E200 ="D",ROUND(1/((1+Simulador!$Q$13)^A200),9) * 2,ROUND(1/((1+Simulador!$Q$13)^A200),9))) -> 5.6189e-05 | G200: 19.63222864
A201: 198 | B201: 198 | C201: 2039-07-28 | D201: 7 | E201: =IF(ISERROR(MATCH(D201,Simulador!$H$16:$H$17,0))=FALSE,"C",IF(ISERROR(MATCH(D201,Simulador!$H$18:$H$19,0))=FALSE,"D","")) ->  | F201: =IF(E201="C",0,IF(E201 ="D",ROUND(1/((1+Simulador!$Q$13)^A201),9) * 2,ROUND(1/((1+Simulador!$Q$13)^A201),9))) -> 5.3466e-05 | G201: 19.6322821
... 185 more rows
